{"text_format":"1","workbook":"xlsx","n_sheets":11,"sheets":["RFC (1)","RFC (2)","RFC (3)","RFC (4)","RFC (5)","RFC (6)","RFC (7)","RFC (8)","RFC (9)","RFC (10)","Factors"],"not_rendered":{"charts":0,"images":0,"macros":1,"external_links":0,"defined_names":21,"comments":0,"pivot_tables":0},"unopened":[],"bounds":{"document_bytes":16777216,"sheet_cells":100000,"rows_first":2000,"rows_last":500,"rows_between":2000,"halvings":0,"cell_chars":16384,"cell_head_chars":4096},"cells_cut":0,"cells_raw":0,"read":"whole","date_system":"1900"}

{"sheet":"RFC (1)","index":0,"n_rows":82,"n_cols":64,"rows_kept":82,"cut":false,"hidden":false,"merged":[[9,3,9,6],[81,55,81,59],[81,60,81,63],[79,1,79,9],[81,33,81,44],[81,45,81,54],[77,1,77,9],[78,1,78,9],[75,1,75,9],[76,1,76,9],[73,1,73,9],[74,1,74,9],[71,1,71,9],[72,1,72,9],[71,12,71,15],[72,12,72,15],[73,12,73,15],[74,12,74,15],[75,12,75,15],[66,1,66,9],[63,1,63,9],[64,1,64,9],[63,12,63,15],[64,12,64,15],[65,12,65,15],[66,12,66,15],[69,1,69,9],[70,1,70,9],[67,1,67,9],[68,1,68,9],[67,12,67,15],[68,12,68,15],[69,12,69,15],[70,12,70,15],[61,1,61,9],[62,1,62,9],[59,1,59,9],[60,1,60,9],[59,12,59,15],[60,12,60,15],[61,12,61,15],[62,12,62,15],[65,1,65,9],[53,55,53,59],[53,60,53,63],[54,1,54,9],[51,1,51,2],[54,12,54,15],[57,1,57,9],[58,1,58,9],[55,1,55,9],[56,1,56,9],[55,12,55,15],[56,12,56,15],[57,12,57,15],[58,12,58,15],[41,4,41,8],[36,1,36,15],[38,4,38,8],[38,12,38,13],[39,4,39,8],[40,4,40,8],[40,12,40,13],[53,33,53,44],[53,45,53,54],[30,2,30,8],[30,12,30,13],[34,4,34,8],[34,12,34,13],[18,2,18,4],[24,1,24,15],[26,12,26,13],[27,2,27,8],[27,12,27,13],[27,14,27,15],[43,8,43,11],[44,8,44,11],[43,4,43,7],[44,4,44,7],[43,1,43,3],[44,1,44,3],[3,2,3,6],[3,13,3,15],[5,8,5,15],[7,10,7,12],[7,13,7,15],[11,8,11,12],[8,3,8,6],[8,1,8,2],[9,1,9,2],[11,3,11,6],[10,13,10,15],[11,13,11,15],[12,2,12,6],[12,13,12,15],[8,10,8,12],[8,13,8,15],[9,8,9,12],[9,13,9,15],[80,12,80,15],[7,20,8,24],[5,19,6,25],[11,19,12,25],[13,19,13,25],[44,12,44,15],[77,12,77,15],[78,12,78,15],[79,12,79,15],[43,12,43,15],[28,12,28,13],[28,14,28,15],[76,12,76,15]]}
[null,"Mississippi Home Corporation"]
[null,"Request for Cash"]
[]
[null,"Program:","BLIGHT ELIMINATION PROGRAM",null,null,null,null,null,null,null,null,null,"Disbursement Type:"]
[]
[null,"Section A:  General Information",null,null,null,null,null,null,"Section B:  Project Information",null,null,null,null,null,null,null,null,null,null,"Instructions:"]
[]
[null,"  Recipient",null,null,null,null,null,null,"Program No.",null,"Property No.",null,null,"Blight Partner No.",null,null,null,null,null,1,"Complete the Cost Items section by entering the Cost Item Category and the amount to be reimbursed."]
[null,"  Mailing Address"]
[null,"  Street Address",null,null,null,null,null,null,"Property Location",null,null,null,null,"Request No.",null,null,null,null,null,2,"Complete Section D"]
[null,"  City, State Zip",null,null,"MS",null,null,null,null,null,null,null,null,1,null,null,null,null,null,3,"Print form, execute, and upload to MHC MITAS Portal."]
[null,"  Telephone No.",null,null,null,null,null,null,null,null,null,null,null,"RLF No.",null,null,null,null,null,"Additional Draws:"]
[]
[null,"Section C:  Request Per Cost Category",null,null,null,null,null,null,null,null,null,null,null,null,null,null,null,null,null,"For additional draws, click below:"]
[null,null,"Cost Category",null,null,null," Budget Amount",null,"Total Prior Request to Date",null,"This Request",null,"Remaining Balance"]
[null,null,"Acquisition Costs",null,null,null,0,null,0,null,{"$f":"AG82","v":0},null,{"$f":"+G16-I16-K16","v":0},{"$f":"IF(M16<0,\"ERROR\",\"\")","v":""}]
[null,null,"Pre-demolition Costs",null,null,null,0,null,0,null,{"$f":"AH82","v":0},null,0,{"$f":"IF(M17<0,\"ERROR\",\"\")","v":""}]
[null,null,"Demolition Costs",null,null,null,0,null,0,null,{"$f":"AT82","v":0},null,0,""]
[null,null,"Greening Costs",null,null,null,0,null,0,null,{"$f":"BD82","v":0},null,0,""]
[null,null,"Post Demolition Costs",null,null,null,0,null,0,null,{"$f":"BI82","v":0},null,0,""]
[null,null,null,"Total:",null,null,{"$f":"SUM(G16:G20)","v":0},null,{"$f":"SUM(I16:I20)","v":0},null,{"$f":"SUM(K16:K20)","v":0},null,{"$f":"SUM(M16:M20)","v":0}]
[]
[null,"Section D:  Authorized Signature"]
[]
[null,"By signing below, the Grantee hereby certifies to MHC that (i) the work and materials set forth above have been throgoughly reviewed by Grantee and are acceptable to Grantee; (ii) the work has been satisfactorily completed; and (iii) all suppliers and subcontractors have been paid for work currently in place."]
[]
[]
[null,null,null,null,null,null,null,null,null,null,"Date:"]
[null,null,"Signature of Authorized Official "]
[]
[]
[null,null,"Typed Name and Title of Authorized Official"]
[]
[]
[null,null,"Prepared By:",null,null,null,null,null,null,null,"Date:"]
[]
[null,"MHC USE ONLY"]
[]
[null,null,"Approved By",null,null,null,null,null,null,null,"Date:"]
[null,null,null,null,"Signature, Authorized MHC Representative"]
[null,null,"Authorized By",null,null,null,null,null,null,null,"Date:"]
[null,null,null,null,"Signature, Authorized MHC Representative"]
[]
[null,"Vendor Number",null,null,"Requisition No.",null,null,null,"Check/Wire",null,null,null,"Funding Source"]
[]
[]
[]
[null,{"$f":"I12","v":0},null,null,null,null,null,null,null,null,null,null,null,"Draw Request No.:",{"$f":"N11","v":1}]
[null,{"$f":"D8","v":0}]
[]
[]
[null,"COST ITEMS:"]
[null,"MHC will only reimburse costs that meet the BEP Program Guidelines, are necessary and reasonable, and that is supported with documentation."]
[null,null,null,null,null,null,null,null,null,null,null,null,null,null,null,null,null,null,null,null,null,null,null,null,null,null,null,null,null,null,null,null,"ACQ","PRE-DEMO COSTS",null,null,null,null,null,null,null,null,null,null,null,"DEMO COSTS",null,null,null,null,null,null,null,null,null,"GREENING COSTS",null,null,null,null,"POST-DEMO COSTS"]
[null,"Cost Item Description",null,null,null,null,null,null,null,null,null,null,"Invoice Amount",null,null,null,null,null,null,null,null,null,null,null,null,null,null,null,null,null,null,null,1,2,3,4,5,6,7,8,9,10,11,12,13,14,15,16,17,18,19,20,21,22,23,24,25,26,27,28,29,30,31,32]
[null,null,null,null,null,null,null,null,null,null,null,null,null,null,null,null,null,null,null,null,null,null,null,null,null,null,null,null,null,null,null,null,{"$f":"IF($B56=\"1-Acquisition Costs\",$M56,0)","v":0},{"$f":"IF($B56=\"2-Payoff Back Taxes\",$M56,0)","v":0},{"$f":"IF($B56=\"3-Pre-demolition title work\",$M56,0)","v":0},{"$f":"IF($B56=\"4-Appraisal Fee\",$M56,0)","v":0},{"$f":"IF($B56=\"5-Survey\",$M56,0)","v":0},{"$f":"IF($B56=\"6-Legal Fees to clear title\",$M56,0)","v":0},{"$f":"IF($B56=\"7-Recording Fees\",$M56,0)","v":0},{"$f":"IF($B56=\"8-Closing Fees\",$M56,0)","v":0},{"$f":"IF($B56=\"9-General Administrative Fees\",$M56,0)","v":0},{"$f":"IF($B56=\"10-Pre-demo Legal Notice and Advertisement for Bids\",$M56,0)","v":0},{"$f":"IF($B56=\"11-Pre-demo Architectural Engineering Costs\",$M56,0)","v":0},{"$f":"IF($B56=\"12-Pre-demo Permit and Inspection Fees\",$M56,0)","v":0},{"$f":"IF($B56=\"13-Pre-demo Asbestos Testing\",$M56,0)","v":0},{"$f":"IF($B56=\"14-Demolition of Residential Structure\",$M56,0)","v":0},{"$f":"IF($B56=\"15-Removal of Other Structure\",$M56,0)","v":0},{"$f":"IF($B56=\"16-Removal of Debris\",$M56,0)","v":0},{"$f":"IF($B56=\"17-Removal of Materials/Refuse\",$M56,0)","v":0},{"$f":"IF($B56=\"18-Removal of Asbestos\",$M56,0)","v":0},{"$f":"IF($B56=\"19-Removal of Lead Paint\",$M56,0)","v":0},{"$f":"IF($B56=\"20-Removal of Hazardous Materials\",$M56,0)","v":0},{"$f":"IF($B56=\"21-Removal of underground storage tanks\",$M56,0)","v":0},{"$f":"IF($B56=\"22-Removal, filling of capping of septic systems and wells\",$M56,0)","v":0},{"$f":"IF($B56=\"23-Removal of debris and garbage from illegal dumping\",$M56,0)","v":0},{"$f":"IF($B56=\"24-Deposit of backfill materials\",$M56,0)","v":0},{"$f":"IF($B56=\"25-Compaction of backfill materials\",$M56,0)","v":0},{"$f":"IF($B56=\"26-Grading of the demolition site\",$M56,0)","v":0},{"$f":"IF($B56=\"27-Seeding of the site\",$M56,0)","v":0},{"$f":"IF($B56=\"28-Additional greening and/or improvement post demolition\",$M56,0)","v":0},{"$f":"IF($B56=\"29-Annual Property Taxes\",$M56,0)","v":0},{"$f":"IF($B56=\"30-Property Maintenance Fees\",$M56,0)","v":0},{"$f":"IF($B56=\"31-Administration Fee\",$M56,0)","v":0},{"$f":"IF($B56=\"32-Other (specify below)\",$M56,0)","v":0}]
[null,null,null,null,null,null,null,null,null,null,null,null,null,null,null,null,null,null,null,null,null,null,null,null,null,null,null,null,null,null,null,null,{"$f":"IF($B57=\"1-Acquisition Costs\",$M57,0)","v":0},{"$f":"IF($B57=\"2-Payoff Back Taxes\",$M57,0)","v":0},{"$f":"IF($B57=\"3-Pre-demolition title work\",$M57,0)","v":0},{"$f":"IF($B57=\"4-Appraisal Fee\",$M57,0)","v":0},{"$f":"IF($B57=\"5-Survey\",$M57,0)","v":0},{"$f":"IF($B57=\"6-Legal Fees to clear title\",$M57,0)","v":0},{"$f":"IF($B57=\"7-Recording Fees\",$M57,0)","v":0},{"$f":"IF($B57=\"8-Closing Fees\",$M57,0)","v":0},{"$f":"IF($B57=\"9-General Administrative Fees\",$M57,0)","v":0},{"$f":"IF($B57=\"10-Pre-demo Legal Notice and Advertisement for Bids\",$M57,0)","v":0},{"$f":"IF($B57=\"11-Pre-demo Architectural Engineering Costs\",$M57,0)","v":0},{"$f":"IF($B57=\"12-Pre-demo Permit and Inspection Fees\",$M57,0)","v":0},{"$f":"IF($B57=\"13-Pre-demo Asbestos Testing\",$M57,0)","v":0},{"$f":"IF($B57=\"14-Demolition of Residential Structure\",$M57,0)","v":0},{"$f":"IF($B57=\"15-Removal of Other Structure\",$M57,0)","v":0},{"$f":"IF($B57=\"16-Removal of Debris\",$M57,0)","v":0},{"$f":"IF($B57=\"17-Removal of Materials/Refuse\",$M57,0)","v":0},{"$f":"IF($B57=\"18-Removal of Asbestos\",$M57,0)","v":0},{"$f":"IF($B57=\"19-Removal of Lead Paint\",$M57,0)","v":0},{"$f":"IF($B57=\"20-Removal of Hazardous Materials\",$M57,0)","v":0},{"$f":"IF($B57=\"21-Removal of underground storage tanks\",$M57,0)","v":0},{"$f":"IF($B57=\"22-Removal, filling of capping of septic systems and wells\",$M57,0)","v":0},{"$f":"IF($B57=\"23-Removal of debris and garbage from illegal dumping\",$M57,0)","v":0},{"$f":"IF($B57=\"24-Deposit of backfill materials\",$M57,0)","v":0},{"$f":"IF($B57=\"25-Compaction of backfill materials\",$M57,0)","v":0},{"$f":"IF($B57=\"26-Grading of the demolition site\",$M57,0)","v":0},{"$f":"IF($B57=\"27-Seeding of the site\",$M57,0)","v":0},{"$f":"IF($B57=\"28-Additional greening and/or improvement post demolition\",$M57,0)","v":0},{"$f":"IF($B57=\"29-Annual Property Taxes\",$M57,0)","v":0},{"$f":"IF($B57=\"30-Property Maintenance Fees\",$M57,0)","v":0},{"$f":"IF($B57=\"31-Administration Fee\",$M57,0)","v":0},{"$f":"IF($B57=\"32-Other (specify below)\",$M57,0)","v":0}]
[null,null,null,null,null,null,null,null,null,null,null,null,null,null,null,null,null,null,null,null,null,null,null,null,null,null,null,null,null,null,null,null,{"$f":"IF($B58=\"1-Acquisition Costs\",$M58,0)","v":0},0,{"$f":"IF($B58=\"3-Pre-demolition title work\",$M58,0)","v":0},0,0,0,0,0,0,0,0,0,0,0,0,0,0,0,0,0,0,0,0,0,0,0,0,0,0,0,0,0]
[null,null,null,null,null,null,null,null,null,null,null,null,null,null,null,null,null,null,null,null,null,null,null,null,null,null,null,null,null,null,null,null,0,0,0,0,0,0,0,0,0,0,0,0,0,0,0,0,0,0,0,0,0,0,0,0,0,0,0,0,0,0,0,0]
[null,null,null,null,null,null,null,null,null,null,null,null,null,null,null,null,null,null,null,null,null,null,null,null,null,null,null,null,null,null,null,null,0,0,0,0,0,0,0,0,0,0,0,0,0,0,0,0,0,0,0,0,0,0,0,0,0,0,0,0,0,0,0,0]
[null,null,null,null,null,null,null,null,null,null,null,null,null,null,null,null,null,null,null,null,null,null,null,null,null,null,null,null,null,null,null,null,0,0,0,0,0,0,0,0,0,0,0,0,0,0,0,0,0,0,0,0,0,0,0,0,0,0,0,0,0,0,0,0]
[null,null,null,null,null,null,null,null,null,null,null,null,null,null,null,null,null,null,null,null,null,null,null,null,null,null,null,null,null,null,null,null,0,0,0,0,0,0,0,0,0,0,0,0,0,0,0,0,0,0,0,0,0,0,0,0,0,0,0,0,0,0,0,0]
[null,null,null,null,null,null,null,null,null,null,null,null,null,null,null,null,null,null,null,null,null,null,null,null,null,null,null,null,null,null,null,null,0,0,0,0,0,0,0,0,0,0,0,0,0,0,0,0,0,0,0,0,0,0,0,0,0,0,0,0,0,0,0,0]
[null,null,null,null,null,null,null,null,null,null,null,null,null,null,null,null,null,null,null,null,null,null,null,null,null,null,null,null,null,null,null,null,0,0,0,0,0,0,0,0,0,0,0,0,0,0,0,0,0,0,0,0,0,0,0,0,0,0,0,0,0,0,0,0]
[null,null,null,null,null,null,null,null,null,null,null,null,null,null,null,null,null,null,null,null,null,null,null,null,null,null,null,null,null,null,null,null,0,0,0,0,0,0,0,0,0,0,0,0,0,0,0,0,0,0,0,0,0,0,0,0,0,0,0,0,0,0,0,0]
[null,null,null,null,null,null,null,null,null,null,null,null,null,null,null,null,null,null,null,null,null,null,null,null,null,null,null,null,null,null,null,null,0,0,0,0,0,0,0,0,0,0,0,0,0,0,0,0,0,0,0,0,0,0,0,0,0,0,0,0,0,0,0,0]
[null,null,null,null,null,null,null,null,null,null,null,null,null,null,null,null,null,null,null,null,null,null,null,null,null,null,null,null,null,null,null,null,0,0,0,0,0,0,0,0,0,0,0,0,0,0,0,0,0,0,0,0,0,0,0,0,0,0,0,0,0,0,0,0]
[null,null,null,null,null,null,null,null,null,null,null,null,null,null,null,null,null,null,null,null,null,null,null,null,null,null,null,null,null,null,null,null,0,0,0,0,0,0,0,0,0,0,0,0,0,0,0,0,0,0,0,0,0,0,0,0,0,0,0,0,0,0,0,0]
[null,null,null,null,null,null,null,null,null,null,null,null,null,null,null,null,null,null,null,null,null,null,null,null,null,null,null,null,null,null,null,null,0,0,0,0,0,0,0,0,0,0,0,0,0,0,0,0,0,0,0,0,0,0,0,0,0,0,0,0,0,0,0,0]
[null,null,null,null,null,null,null,null,null,null,null,null,null,null,null,null,null,null,null,null,null,null,null,null,null,null,null,null,null,null,null,null,0,0,0,0,0,0,0,0,0,0,0,0,0,0,0,0,0,0,0,0,0,0,0,0,0,0,0,0,0,0,0,0]
[null,null,null,null,null,null,null,null,null,null,null,null,null,null,null,null,null,null,null,null,null,null,null,null,null,null,null,null,null,null,null,null,0,0,0,0,0,0,0,0,0,0,0,0,0,0,0,0,0,0,0,0,0,0,0,0,0,0,0,0,0,0,0,0]
[null,null,null,null,null,null,null,null,null,null,null,null,null,null,null,null,null,null,null,null,null,null,null,null,null,null,null,null,null,null,null,null,0,0,0,0,0,0,0,0,0,0,0,0,0,0,0,0,0,0,0,0,0,0,0,0,0,0,0,0,0,0,0,0]
[null,null,null,null,null,null,null,null,null,null,null,null,null,null,null,null,null,null,null,null,null,null,null,null,null,null,null,null,null,null,null,null,0,0,0,0,0,0,0,0,0,0,0,0,0,0,0,0,0,0,0,0,0,0,0,0,0,0,0,0,0,0,0,0]
[null,null,null,null,null,null,null,null,null,null,null,null,null,null,null,null,null,null,null,null,null,null,null,null,null,null,null,null,null,null,null,null,0,0,0,0,0,0,0,0,0,0,0,0,0,0,0,0,0,0,0,0,0,0,0,0,0,0,0,0,0,0,0,0]
[null,null,null,null,null,null,null,null,null,null,null,null,null,null,null,null,null,null,null,null,null,null,null,null,null,null,null,null,null,null,null,null,0,0,0,0,0,0,0,0,0,0,0,0,0,0,0,0,0,0,0,0,0,0,0,0,0,0,0,0,0,0,0,0]
[null,null,null,null,null,null,null,null,null,null,null,null,null,null,null,null,null,null,null,null,null,null,null,null,null,null,null,null,null,null,null,null,0,0,0,0,0,0,0,0,0,0,0,0,0,0,0,0,0,0,0,0,0,0,0,0,0,0,0,0,0,0,0,0]
[null,null,null,null,null,null,null,null,null,null,null,null,null,null,null,null,null,null,null,null,null,null,null,null,null,null,null,null,null,null,null,null,0,0,0,0,0,0,0,0,0,0,0,0,0,0,0,0,0,0,0,0,0,0,0,0,0,0,0,0,0,0,0,0]
[null,null,null,null,null,null,null,null,null,null,null,null,null,null,null,null,null,null,null,null,null,null,null,null,null,null,null,null,null,null,null,null,0,0,0,0,0,0,0,0,0,0,0,0,0,0,0,0,0,0,0,0,0,0,0,0,0,0,0,0,0,0,0,0]
[null,null,null,null,null,null,null,null,null,null,null,null,null,null,null,null,null,null,null,null,null,null,null,null,null,null,null,null,null,null,null,null,0,0,0,0,0,0,0,0,0,0,0,0,0,0,0,0,0,0,0,0,0,0,0,0,0,0,0,0,0,0,0,0]
[null,null,null,null,null,null,null,null,null,null,null,null,null,null,null,null,null,null,null,null,null,null,null,null,null,null,null,null,null,null,null,null,0,0,0,0,0,0,0,0,0,0,0,0,0,0,0,0,0,0,0,0,0,0,0,0,0,0,0,0,0,0,0,0]
[null,null,null,null,null,null,null,null,null,null,"Total Draw Request:",null,{"$f":"SUM(M56:P80)","v":0},null,null,null,null,null,null,null,null,null,null,null,null,null,null,null,null,null,null,null,{"$f":"SUM(AG56:AG80)","v":0},{"$f":"SUM(AH56:AH80)","v":0},0,0,0,0,0,0,0,0,0,0,0,0,0,0,0,0,0,0,0,0,0,0,0,0,0,0,0,0,0,0]
[null,null,null,null,null,null,null,null,null,null,null,null,null,null,null,null,null,null,null,null,null,null,null,null,null,null,null,null,null,null,null,null,{"$f":"SUM(AG81)","v":0},{"$f":"SUM(AH81:AS81)","v":0},null,null,null,null,null,null,null,null,null,null,null,{"$f":"SUM(AT81:BC81)","v":0},null,null,null,null,null,null,null,null,null,{"$f":"SUM(BD81:BH81)","v":0},null,null,null,null,{"$f":"SUM(BI81:BL81)","v":0}]

{"sheet":"RFC (2)","index":1,"n_rows":82,"n_cols":64,"rows_kept":82,"cut":false,"hidden":true,"merged":[[3,2,3,6],[3,13,3,15],[5,8,5,15],[5,19,6,25],[7,10,7,12],[7,13,7,15],[7,20,8,24],[8,1,8,2],[8,3,8,6],[8,10,8,12],[11,19,12,25],[12,2,12,6],[12,13,12,15],[13,19,13,25],[18,2,18,4],[24,1,24,15],[8,13,8,15],[9,1,9,2],[9,8,9,12],[9,13,9,15],[10,13,10,15],[11,3,11,6],[11,8,11,12],[11,13,11,15],[30,2,30,8],[30,12,30,13],[34,4,34,8],[34,12,34,13],[36,1,36,15],[38,4,38,8],[38,12,38,13],[26,12,26,13],[27,2,27,8],[27,12,27,13],[27,14,27,15],[28,12,28,13],[28,14,28,15],[44,1,44,3],[44,4,44,7],[44,8,44,11],[44,12,44,15],[51,1,51,2],[53,33,53,44],[39,4,39,8],[40,4,40,8],[40,12,40,13],[41,4,41,8],[43,1,43,3],[43,4,43,7],[43,8,43,11],[43,12,43,15],[56,1,56,9],[56,12,56,15],[57,1,57,9],[57,12,57,15],[58,1,58,9],[58,12,58,15],[53,45,53,54],[53,55,53,59],[53,60,53,63],[54,1,54,9],[54,12,54,15],[55,1,55,9],[55,12,55,15],[62,1,62,9],[62,12,62,15],[63,1,63,9],[63,12,63,15],[64,1,64,9],[64,12,64,15],[59,1,59,9],[59,12,59,15],[60,1,60,9],[60,12,60,15],[61,1,61,9],[61,12,61,15],[68,1,68,9],[68,12,68,15],[69,1,69,9],[69,12,69,15],[70,1,70,9],[70,12,70,15],[65,1,65,9],[65,12,65,15],[66,1,66,9],[66,12,66,15],[67,1,67,9],[67,12,67,15],[74,1,74,9],[74,12,74,15],[75,1,75,9],[75,12,75,15],[76,1,76,9],[76,12,76,15],[71,1,71,9],[71,12,71,15],[72,1,72,9],[72,12,72,15],[73,1,73,9],[73,12,73,15],[80,12,80,15],[81,33,81,44],[81,45,81,54],[81,55,81,59],[81,60,81,63],[77,1,77,9],[77,12,77,15],[78,1,78,9],[78,12,78,15],[79,1,79,9],[79,12,79,15]]}
[null,"Mississippi Home Corporation"]
[null,"Request for Cash"]
[]
[null,"Program:","BLIGHT ELIMINATION PROGRAM",null,null,null,null,null,null,null,null,null,"Disbursement Type:","HHF Disbursement"]
[]
[null,"Section A:  General Information",null,null,null,null,null,null,"Section B:  Project Information",null,null,null,null,null,null,null,null,null,null,"Instructions:"]
[]
[null,"  Recipient",null,{"$f":"VLOOKUP('RFC (1)'!$D$8,Factors!I4:J7,2)","v":{"$error":"#N/A"}},null,null,null,null,"Program No.",null,"Property No.",null,null,"Blight Partner No.",null,null,null,null,null,1,"Complete the Cost Items section by entering the Cost Item Category and the amount to be reimbursed."]
[null,"  Mailing Address",null,{"$f":"'RFC (1)'!D9:G9","v":0},null,null,null,null,{"$f":"'RFC (1)'!I9","v":0},null,{"$f":"'RFC (1)'!K9:M9","v":0},null,null,{"$f":"'RFC (1)'!N9:P9","v":0}]
[null,"  Street Address",null,null,null,null,null,null,"Property Location",null,null,null,null,"Request No.",null,null,null,null,null,2,"Complete Section D"]
[null,"  City, State Zip",null,{"$f":"'RFC (1)'!D11","v":0},"MS",null,{"$f":"'RFC (1)'!G11","v":0},null,null,null,null,null,null,2,null,null,null,null,null,3,"Print form, execute, and upload to MHC MITAS Portal."]
[null,"  Telephone No.",null,{"$f":"'RFC (1)'!D12:G12","v":0},null,null,null,null,{"$f":"'RFC (1)'!I12:M12","v":0},null,null,null,null,"RLF No.",null,null,null,null,null,"Additional Draws:"]
[null,null,null,null,null,null,null,null,null,null,null,null,null,{"$f":"'RFC (1)'!N13:P13","v":0}]
[null,"Section C:  Request Per Cost Category",null,null,null,null,null,null,null,null,null,null,null,null,null,null,null,null,null,"For additional draws, click below:"]
[null,null,"Cost Category",null,null,null," Budget Amount",null,"Total Prior Request to Date",null,"This Request",null,"Remaining Balance"]
[null,null,"Acquisition Costs",null,null,null,{"$f":"'RFC (1)'!G16","v":0},null,{"$f":"'RFC (1)'!K16","v":0},null,{"$f":"AG82","v":0},null,{"$f":"+G16-I16-K16","v":0},{"$f":"IF(M16<0,\"ERROR\",\"\")","v":""}]
[null,null,"Pre-demolition Costs",null,null,null,{"$f":"'RFC (1)'!G17","v":0},null,{"$f":"'RFC (1)'!K17","v":0},null,{"$f":"AH82","v":0},null,0,{"$f":"IF(M17<0,\"ERROR\",\"\")","v":""}]
[null,null,"Demolition Costs",null,null,null,{"$f":"'RFC (1)'!G18","v":0},null,{"$f":"'RFC (1)'!K18","v":0},null,{"$f":"AT82","v":0},null,0,""]
[null,null,"Greening Costs",null,null,null,{"$f":"'RFC (1)'!G19","v":0},null,{"$f":"'RFC (1)'!K19","v":0},null,{"$f":"BD82","v":0},null,0,""]
[null,null,"Post Demolition Costs",null,null,null,{"$f":"'RFC (1)'!G20","v":0},null,{"$f":"'RFC (1)'!K20","v":0},null,{"$f":"BI82","v":0},null,0,""]
[null,null,null,"Total:",null,null,{"$f":"SUM(G16:G20)","v":0},null,{"$f":"SUM(I16:I20)","v":0},null,{"$f":"SUM(K16:K20)","v":0},null,{"$f":"SUM(M16:M20)","v":0}]
[]
[null,"Section D:  Authorized Signature"]
[]
[null,"By signing below, the Grantee hereby certifies to MHC that (i) the work and materials set forth above have been throgoughly reviewed by Grantee and are acceptable to Grantee; (ii) the work has been satisfactorily completed; and (iii) all suppliers and subcontractors have been paid for work currently in place."]
[]
[]
[null,null,null,null,null,null,null,null,null,null,"Date:"]
[null,null,"Signature of Authorized Official "]
[]
[]
[null,null,"Typed Name and Title of Authorized Official"]
[]
[]
[null,null,"Prepared By:",null,null,null,null,null,null,null,"Date:"]
[]
[null,"MHC USE ONLY"]
[]
[null,null,"Approved By",null,null,null,null,null,null,null,"Date:"]
[null,null,null,null,"Signature, Authorized MHC Representative"]
[null,null,"Authorized By",null,null,null,null,null,null,null,"Date:"]
[null,null,null,null,"Signature, Authorized MHC Representative"]
[]
[null,"Vendor Number",null,null,"Requisition No.",null,null,null,"Check/Wire",null,null,null,"Funding Source"]
[]
[]
[]
[null,{"$f":"I12","v":0},null,null,null,null,null,null,null,null,null,null,null,"Draw Request No.:",{"$f":"N11","v":2}]
[null,{"$f":"D8","v":{"$error":"#N/A"}}]
[]
[]
[null,"COST ITEMS:"]
[null,"MHC will only reimburse costs that meet the BEP Program Guidelines, are necessary and reasonable, and that is supported with documentation."]
[null,null,null,null,null,null,null,null,null,null,null,null,null,null,null,null,null,null,null,null,null,null,null,null,null,null,null,null,null,null,null,null,"ACQ","PRE-DEMO COSTS",null,null,null,null,null,null,null,null,null,null,null,"DEMO COSTS",null,null,null,null,null,null,null,null,null,"GREENING COSTS",null,null,null,null,"POST-DEMO COSTS"]
[null,"Cost Item Description",null,null,null,null,null,null,null,null,null,null,"Invoice Amount",null,null,null,null,null,null,null,null,null,null,null,null,null,null,null,null,null,null,null,1,2,3,4,5,6,7,8,9,10,11,12,13,14,15,16,17,18,19,20,21,22,23,24,25,26,27,28,29,30,31,32]
[null,null,null,null,null,null,null,null,null,null,null,null,null,null,null,null,null,null,null,null,null,null,null,null,null,null,null,null,null,null,null,null,{"$f":"IF($B56=\"1-Acquisition Costs\",$M56,0)","v":0},{"$f":"IF($B56=\"2-Payoff Back Taxes\",$M56,0)","v":0},{"$f":"IF($B56=\"3-Pre-demolition title work\",$M56,0)","v":0},{"$f":"IF($B56=\"4-Appraisal Fee\",$M56,0)","v":0},{"$f":"IF($B56=\"5-Survey\",$M56,0)","v":0},{"$f":"IF($B56=\"6-Legal Fees to clear title\",$M56,0)","v":0},{"$f":"IF($B56=\"7-Recording Fees\",$M56,0)","v":0},{"$f":"IF($B56=\"8-Closing Fees\",$M56,0)","v":0},{"$f":"IF($B56=\"9-General Administrative Fees\",$M56,0)","v":0},{"$f":"IF($B56=\"10-Pre-demo Legal Notice and Advertisement for Bids\",$M56,0)","v":0},{"$f":"IF($B56=\"11-Pre-demo Architectural Engineering Costs\",$M56,0)","v":0},{"$f":"IF($B56=\"12-Pre-demo Permit and Inspection Fees\",$M56,0)","v":0},{"$f":"IF($B56=\"13-Pre-demo Asbestos Testing\",$M56,0)","v":0},{"$f":"IF($B56=\"14-Demolition of Residential Structure\",$M56,0)","v":0},{"$f":"IF($B56=\"15-Removal of Other Structure\",$M56,0)","v":0},{"$f":"IF($B56=\"16-Removal of Debris\",$M56,0)","v":0},{"$f":"IF($B56=\"17-Removal of Materials/Refuse\",$M56,0)","v":0},{"$f":"IF($B56=\"18-Removal of Asbestos\",$M56,0)","v":0},{"$f":"IF($B56=\"19-Removal of Lead Paint\",$M56,0)","v":0},{"$f":"IF($B56=\"20-Removal of Hazardous Materials\",$M56,0)","v":0},{"$f":"IF($B56=\"21-Removal of underground storage tanks\",$M56,0)","v":0},{"$f":"IF($B56=\"22-Removal, filling of capping of septic systems and wells\",$M56,0)","v":0},{"$f":"IF($B56=\"23-Removal of debris and garbage from illegal dumping\",$M56,0)","v":0},{"$f":"IF($B56=\"24-Deposit of backfill materials\",$M56,0)","v":0},{"$f":"IF($B56=\"25-Compaction of backfill materials\",$M56,0)","v":0},{"$f":"IF($B56=\"26-Grading of the demolition site\",$M56,0)","v":0},{"$f":"IF($B56=\"27-Seeding of the site\",$M56,0)","v":0},{"$f":"IF($B56=\"28-Additional greening and/or improvement post demolition\",$M56,0)","v":0},{"$f":"IF($B56=\"29-Annual Property Taxes\",$M56,0)","v":0},{"$f":"IF($B56=\"30-Property Maintenance Fees\",$M56,0)","v":0},{"$f":"IF($B56=\"31-Administration Fee\",$M56,0)","v":0},{"$f":"IF($B56=\"32-Other (specify below)\",$M56,0)","v":0}]
[null,null,null,null,null,null,null,null,null,null,null,null,null,null,null,null,null,null,null,null,null,null,null,null,null,null,null,null,null,null,null,null,{"$f":"IF($B57=\"1-Acquisition Costs\",$M57,0)","v":0},{"$f":"IF($B57=\"2-Payoff Back Taxes\",$M57,0)","v":0},{"$f":"IF($B57=\"3-Pre-demolition title work\",$M57,0)","v":0},{"$f":"IF($B57=\"4-Appraisal Fee\",$M57,0)","v":0},{"$f":"IF($B57=\"5-Survey\",$M57,0)","v":0},{"$f":"IF($B57=\"6-Legal Fees to clear title\",$M57,0)","v":0},{"$f":"IF($B57=\"7-Recording Fees\",$M57,0)","v":0},{"$f":"IF($B57=\"8-Closing Fees\",$M57,0)","v":0},{"$f":"IF($B57=\"9-General Administrative Fees\",$M57,0)","v":0},{"$f":"IF($B57=\"10-Pre-demo Legal Notice and Advertisement for Bids\",$M57,0)","v":0},{"$f":"IF($B57=\"11-Pre-demo Architectural Engineering Costs\",$M57,0)","v":0},{"$f":"IF($B57=\"12-Pre-demo Permit and Inspection Fees\",$M57,0)","v":0},{"$f":"IF($B57=\"13-Pre-demo Asbestos Testing\",$M57,0)","v":0},{"$f":"IF($B57=\"14-Demolition of Residential Structure\",$M57,0)","v":0},{"$f":"IF($B57=\"15-Removal of Other Structure\",$M57,0)","v":0},{"$f":"IF($B57=\"16-Removal of Debris\",$M57,0)","v":0},{"$f":"IF($B57=\"17-Removal of Materials/Refuse\",$M57,0)","v":0},{"$f":"IF($B57=\"18-Removal of Asbestos\",$M57,0)","v":0},{"$f":"IF($B57=\"19-Removal of Lead Paint\",$M57,0)","v":0},{"$f":"IF($B57=\"20-Removal of Hazardous Materials\",$M57,0)","v":0},{"$f":"IF($B57=\"21-Removal of underground storage tanks\",$M57,0)","v":0},{"$f":"IF($B57=\"22-Removal, filling of capping of septic systems and wells\",$M57,0)","v":0},{"$f":"IF($B57=\"23-Removal of debris and garbage from illegal dumping\",$M57,0)","v":0},{"$f":"IF($B57=\"24-Deposit of backfill materials\",$M57,0)","v":0},{"$f":"IF($B57=\"25-Compaction of backfill materials\",$M57,0)","v":0},{"$f":"IF($B57=\"26-Grading of the demolition site\",$M57,0)","v":0},{"$f":"IF($B57=\"27-Seeding of the site\",$M57,0)","v":0},{"$f":"IF($B57=\"28-Additional greening and/or improvement post demolition\",$M57,0)","v":0},{"$f":"IF($B57=\"29-Annual Property Taxes\",$M57,0)","v":0},{"$f":"IF($B57=\"30-Property Maintenance Fees\",$M57,0)","v":0},{"$f":"IF($B57=\"31-Administration Fee\",$M57,0)","v":0},{"$f":"IF($B57=\"32-Other (specify below)\",$M57,0)","v":0}]
[null,null,null,null,null,null,null,null,null,null,null,null,null,null,null,null,null,null,null,null,null,null,null,null,null,null,null,null,null,null,null,null,{"$f":"IF($B58=\"1-Acquisition Costs\",$M58,0)","v":0},0,{"$f":"IF($B58=\"3-Pre-demolition title work\",$M58,0)","v":0},0,0,0,0,0,0,0,0,0,0,0,0,0,0,0,0,0,0,0,0,0,0,0,0,0,0,0,0,0]
[null,null,null,null,null,null,null,null,null,null,null,null,null,null,null,null,null,null,null,null,null,null,null,null,null,null,null,null,null,null,null,null,0,0,0,0,0,0,0,0,0,0,0,0,0,0,0,0,0,0,0,0,0,0,0,0,0,0,0,0,0,0,0,0]
[null,null,null,null,null,null,null,null,null,null,null,null,null,null,null,null,null,null,null,null,null,null,null,null,null,null,null,null,null,null,null,null,0,0,0,0,0,0,0,0,0,0,0,0,0,0,0,0,0,0,0,0,0,0,0,0,0,0,0,0,0,0,0,0]
[null,null,null,null,null,null,null,null,null,null,null,null,null,null,null,null,null,null,null,null,null,null,null,null,null,null,null,null,null,null,null,null,0,0,0,0,0,0,0,0,0,0,0,0,0,0,0,0,0,0,0,0,0,0,0,0,0,0,0,0,0,0,0,0]
[null,null,null,null,null,null,null,null,null,null,null,null,null,null,null,null,null,null,null,null,null,null,null,null,null,null,null,null,null,null,null,null,0,0,0,0,0,0,0,0,0,0,0,0,0,0,0,0,0,0,0,0,0,0,0,0,0,0,0,0,0,0,0,0]
[null,null,null,null,null,null,null,null,null,null,null,null,null,null,null,null,null,null,null,null,null,null,null,null,null,null,null,null,null,null,null,null,0,0,0,0,0,0,0,0,0,0,0,0,0,0,0,0,0,0,0,0,0,0,0,0,0,0,0,0,0,0,0,0]
[null,null,null,null,null,null,null,null,null,null,null,null,null,null,null,null,null,null,null,null,null,null,null,null,null,null,null,null,null,null,null,null,0,0,0,0,0,0,0,0,0,0,0,0,0,0,0,0,0,0,0,0,0,0,0,0,0,0,0,0,0,0,0,0]
[null,null,null,null,null,null,null,null,null,null,null,null,null,null,null,null,null,null,null,null,null,null,null,null,null,null,null,null,null,null,null,null,0,0,0,0,0,0,0,0,0,0,0,0,0,0,0,0,0,0,0,0,0,0,0,0,0,0,0,0,0,0,0,0]
[null,null,null,null,null,null,null,null,null,null,null,null,null,null,null,null,null,null,null,null,null,null,null,null,null,null,null,null,null,null,null,null,0,0,0,0,0,0,0,0,0,0,0,0,0,0,0,0,0,0,0,0,0,0,0,0,0,0,0,0,0,0,0,0]
[null,null,null,null,null,null,null,null,null,null,null,null,null,null,null,null,null,null,null,null,null,null,null,null,null,null,null,null,null,null,null,null,0,0,0,0,0,0,0,0,0,0,0,0,0,0,0,0,0,0,0,0,0,0,0,0,0,0,0,0,0,0,0,0]
[null,null,null,null,null,null,null,null,null,null,null,null,null,null,null,null,null,null,null,null,null,null,null,null,null,null,null,null,null,null,null,null,0,0,0,0,0,0,0,0,0,0,0,0,0,0,0,0,0,0,0,0,0,0,0,0,0,0,0,0,0,0,0,0]
[null,null,null,null,null,null,null,null,null,null,null,null,null,null,null,null,null,null,null,null,null,null,null,null,null,null,null,null,null,null,null,null,0,0,0,0,0,0,0,0,0,0,0,0,0,0,0,0,0,0,0,0,0,0,0,0,0,0,0,0,0,0,0,0]
[null,null,null,null,null,null,null,null,null,null,null,null,null,null,null,null,null,null,null,null,null,null,null,null,null,null,null,null,null,null,null,null,0,0,0,0,0,0,0,0,0,0,0,0,0,0,0,0,0,0,0,0,0,0,0,0,0,0,0,0,0,0,0,0]
[null,null,null,null,null,null,null,null,null,null,null,null,null,null,null,null,null,null,null,null,null,null,null,null,null,null,null,null,null,null,null,null,0,0,0,0,0,0,0,0,0,0,0,0,0,0,0,0,0,0,0,0,0,0,0,0,0,0,0,0,0,0,0,0]
[null,null,null,null,null,null,null,null,null,null,null,null,null,null,null,null,null,null,null,null,null,null,null,null,null,null,null,null,null,null,null,null,0,0,0,0,0,0,0,0,0,0,0,0,0,0,0,0,0,0,0,0,0,0,0,0,0,0,0,0,0,0,0,0]
[null,null,null,null,null,null,null,null,null,null,null,null,null,null,null,null,null,null,null,null,null,null,null,null,null,null,null,null,null,null,null,null,0,0,0,0,0,0,0,0,0,0,0,0,0,0,0,0,0,0,0,0,0,0,0,0,0,0,0,0,0,0,0,0]
[null,null,null,null,null,null,null,null,null,null,null,null,null,null,null,null,null,null,null,null,null,null,null,null,null,null,null,null,null,null,null,null,0,0,0,0,0,0,0,0,0,0,0,0,0,0,0,0,0,0,0,0,0,0,0,0,0,0,0,0,0,0,0,0]
[null,null,null,null,null,null,null,null,null,null,null,null,null,null,null,null,null,null,null,null,null,null,null,null,null,null,null,null,null,null,null,null,0,0,0,0,0,0,0,0,0,0,0,0,0,0,0,0,0,0,0,0,0,0,0,0,0,0,0,0,0,0,0,0]
[null,null,null,null,null,null,null,null,null,null,null,null,null,null,null,null,null,null,null,null,null,null,null,null,null,null,null,null,null,null,null,null,0,0,0,0,0,0,0,0,0,0,0,0,0,0,0,0,0,0,0,0,0,0,0,0,0,0,0,0,0,0,0,0]
[null,null,null,null,null,null,null,null,null,null,null,null,null,null,null,null,null,null,null,null,null,null,null,null,null,null,null,null,null,null,null,null,0,0,0,0,0,0,0,0,0,0,0,0,0,0,0,0,0,0,0,0,0,0,0,0,0,0,0,0,0,0,0,0]
[null,null,null,null,null,null,null,null,null,null,null,null,null,null,null,null,null,null,null,null,null,null,null,null,null,null,null,null,null,null,null,null,0,0,0,0,0,0,0,0,0,0,0,0,0,0,0,0,0,0,0,0,0,0,0,0,0,0,0,0,0,0,0,0]
[null,null,null,null,null,null,null,null,null,null,null,null,null,null,null,null,null,null,null,null,null,null,null,null,null,null,null,null,null,null,null,null,0,0,0,0,0,0,0,0,0,0,0,0,0,0,0,0,0,0,0,0,0,0,0,0,0,0,0,0,0,0,0,0]
[null,null,null,null,null,null,null,null,null,null,null,null,null,null,null,null,null,null,null,null,null,null,null,null,null,null,null,null,null,null,null,null,0,0,0,0,0,0,0,0,0,0,0,0,0,0,0,0,0,0,0,0,0,0,0,0,0,0,0,0,0,0,0,0]
[null,null,null,null,null,null,null,null,null,null,"Total Draw Request:",null,{"$f":"SUM(M56:P80)","v":0},null,null,null,null,null,null,null,null,null,null,null,null,null,null,null,null,null,null,null,{"$f":"SUM(AG56:AG80)","v":0},{"$f":"SUM(AH56:AH80)","v":0},0,0,0,0,0,0,0,0,0,0,0,0,0,0,0,0,0,0,0,0,0,0,0,0,0,0,0,0,0,0]
[null,null,null,null,null,null,null,null,null,null,null,null,null,null,null,null,null,null,null,null,null,null,null,null,null,null,null,null,null,null,null,null,{"$f":"SUM(AG81)","v":0},{"$f":"SUM(AH81:AS81)","v":0},null,null,null,null,null,null,null,null,null,null,null,{"$f":"SUM(AT81:BC81)","v":0},null,null,null,null,null,null,null,null,null,{"$f":"SUM(BD81:BH81)","v":0},null,null,null,null,{"$f":"SUM(BI81:BL81)","v":0}]

{"sheet":"RFC (3)","index":2,"n_rows":82,"n_cols":64,"rows_kept":82,"cut":false,"hidden":true,"merged":[[3,2,3,6],[3,13,3,15],[5,8,5,15],[5,19,6,25],[7,10,7,12],[7,13,7,15],[7,20,8,24],[8,1,8,2],[8,3,8,6],[8,10,8,12],[11,19,12,25],[12,2,12,6],[12,13,12,15],[13,19,13,25],[18,2,18,4],[24,1,24,15],[8,13,8,15],[9,1,9,2],[9,8,9,12],[9,13,9,15],[10,13,10,15],[11,3,11,6],[11,8,11,12],[11,13,11,15],[30,2,30,8],[30,12,30,13],[34,4,34,8],[34,12,34,13],[36,1,36,15],[38,4,38,8],[38,12,38,13],[26,12,26,13],[27,2,27,8],[27,12,27,13],[27,14,27,15],[28,12,28,13],[28,14,28,15],[44,1,44,3],[44,4,44,7],[44,8,44,11],[44,12,44,15],[51,1,51,2],[53,33,53,44],[39,4,39,8],[40,4,40,8],[40,12,40,13],[41,4,41,8],[43,1,43,3],[43,4,43,7],[43,8,43,11],[43,12,43,15],[56,1,56,9],[56,12,56,15],[57,1,57,9],[57,12,57,15],[58,1,58,9],[58,12,58,15],[53,45,53,54],[53,55,53,59],[53,60,53,63],[54,1,54,9],[54,12,54,15],[55,1,55,9],[55,12,55,15],[62,1,62,9],[62,12,62,15],[63,1,63,9],[63,12,63,15],[64,1,64,9],[64,12,64,15],[59,1,59,9],[59,12,59,15],[60,1,60,9],[60,12,60,15],[61,1,61,9],[61,12,61,15],[68,1,68,9],[68,12,68,15],[69,1,69,9],[69,12,69,15],[70,1,70,9],[70,12,70,15],[65,1,65,9],[65,12,65,15],[66,1,66,9],[66,12,66,15],[67,1,67,9],[67,12,67,15],[74,1,74,9],[74,12,74,15],[75,1,75,9],[75,12,75,15],[76,1,76,9],[76,12,76,15],[71,1,71,9],[71,12,71,15],[72,1,72,9],[72,12,72,15],[73,1,73,9],[73,12,73,15],[80,12,80,15],[81,33,81,44],[81,45,81,54],[81,55,81,59],[81,60,81,63],[77,1,77,9],[77,12,77,15],[78,1,78,9],[78,12,78,15],[79,1,79,9],[79,12,79,15]]}
[null,"Mississippi Home Corporation"]
[null,"Request for Cash"]
[]
[null,"Program:","BLIGHT ELIMINATION PROGRAM",null,null,null,null,null,null,null,null,null,"Disbursement Type:","HHF Disbursement"]
[]
[null,"Section A:  General Information",null,null,null,null,null,null,"Section B:  Project Information",null,null,null,null,null,null,null,null,null,null,"Instructions:"]
[]
[null,"  Recipient",null,{"$f":"VLOOKUP('RFC (1)'!$D$8,Factors!I4:J7,2)","v":{"$error":"#N/A"}},null,null,null,null,"Program No.",null,"Property No.",null,null,"Blight Partner No.",null,null,null,null,null,1,"Complete the Cost Items section by entering the Cost Item Category and the amount to be reimbursed."]
[null,"  Mailing Address",null,{"$f":"'RFC (1)'!D9:G9","v":0},null,null,null,null,{"$f":"'RFC (1)'!I9","v":0},null,{"$f":"'RFC (1)'!K9:M9","v":0},null,null,{"$f":"'RFC (1)'!N9:P9","v":0}]
[null,"  Street Address",null,null,null,null,null,null,"Property Location",null,null,null,null,"Request No.",null,null,null,null,null,2,"Complete Section D"]
[null,"  City, State Zip",null,{"$f":"'RFC (1)'!D11","v":0},"MS",null,{"$f":"'RFC (1)'!G11","v":0},null,null,null,null,null,null,3,null,null,null,null,null,3,"Print form, execute, and upload to MHC MITAS Portal."]
[null,"  Telephone No.",null,{"$f":"'RFC (1)'!D12:G12","v":0},null,null,null,null,{"$f":"'RFC (1)'!I12:M12","v":0},null,null,null,null,"RLF No.",null,null,null,null,null,"Additional Draws:"]
[null,null,null,null,null,null,null,null,null,null,null,null,null,{"$f":"'RFC (1)'!N13:P13","v":0}]
[null,"Section C:  Request Per Cost Category",null,null,null,null,null,null,null,null,null,null,null,null,null,null,null,null,null,"For additional draws, click below:"]
[null,null,"Cost Category",null,null,null," Budget Amount",null,"Total Prior Request to Date",null,"This Request",null,"Remaining Balance"]
[null,null,"Acquisition Costs",null,null,null,{"$f":"'RFC (1)'!G16","v":0},null,{"$f":"'RFC (1)'!K16+'RFC (2)'!K16","v":0},null,{"$f":"AG82","v":0},null,{"$f":"+G16-I16-K16","v":0},{"$f":"IF(M16<0,\"ERROR\",\"\")","v":""}]
[null,null,"Pre-demolition Costs",null,null,null,{"$f":"'RFC (1)'!G17","v":0},null,{"$f":"'RFC (1)'!K17+'RFC (2)'!K17","v":0},null,{"$f":"AH82","v":0},null,0,{"$f":"IF(M17<0,\"ERROR\",\"\")","v":""}]
[null,null,"Demolition Costs",null,null,null,{"$f":"'RFC (1)'!G18","v":0},null,{"$f":"'RFC (1)'!K18+'RFC (2)'!K18","v":0},null,{"$f":"AT82","v":0},null,0,""]
[null,null,"Greening Costs",null,null,null,{"$f":"'RFC (1)'!G19","v":0},null,{"$f":"'RFC (1)'!K19+'RFC (2)'!K19","v":0},null,{"$f":"BD82","v":0},null,0,""]
[null,null,"Post Demolition Costs",null,null,null,{"$f":"'RFC (1)'!G20","v":0},null,{"$f":"'RFC (1)'!K20+'RFC (2)'!K20","v":0},null,{"$f":"BI82","v":0},null,0,""]
[null,null,null,"Total:",null,null,{"$f":"SUM(G16:G20)","v":0},null,{"$f":"SUM(I16:I20)","v":0},null,{"$f":"SUM(K16:K20)","v":0},null,{"$f":"SUM(M16:M20)","v":0}]
[]
[null,"Section D:  Authorized Signature"]
[]
[null,"By signing below, the Grantee hereby certifies to MHC that (i) the work and materials set forth above have been throgoughly reviewed by Grantee and are acceptable to Grantee; (ii) the work has been satisfactorily completed; and (iii) all suppliers and subcontractors have been paid for work currently in place."]
[]
[]
[null,null,null,null,null,null,null,null,null,null,"Date:"]
[null,null,"Signature of Authorized Official "]
[]
[]
[null,null,"Typed Name and Title of Authorized Official"]
[]
[]
[null,null,"Prepared By:",null,null,null,null,null,null,null,"Date:"]
[]
[null,"MHC USE ONLY"]
[]
[null,null,"Approved By",null,null,null,null,null,null,null,"Date:"]
[null,null,null,null,"Signature, Authorized MHC Representative"]
[null,null,"Authorized By",null,null,null,null,null,null,null,"Date:"]
[null,null,null,null,"Signature, Authorized MHC Representative"]
[]
[null,"Vendor Number",null,null,"Requisition No.",null,null,null,"Check/Wire",null,null,null,"Funding Source"]
[]
[]
[]
[null,{"$f":"I12","v":0},null,null,null,null,null,null,null,null,null,null,null,"Draw Request No.:",{"$f":"N11","v":3}]
[null,{"$f":"D8","v":{"$error":"#N/A"}}]
[]
[]
[null,"COST ITEMS:"]
[null,"MHC will only reimburse costs that meet the BEP Program Guidelines, are necessary and reasonable, and that is supported with documentation."]
[null,null,null,null,null,null,null,null,null,null,null,null,null,null,null,null,null,null,null,null,null,null,null,null,null,null,null,null,null,null,null,null,"ACQ","PRE-DEMO COSTS",null,null,null,null,null,null,null,null,null,null,null,"DEMO COSTS",null,null,null,null,null,null,null,null,null,"GREENING COSTS",null,null,null,null,"POST-DEMO COSTS"]
[null,"Cost Item Description",null,null,null,null,null,null,null,null,null,null,"Invoice Amount",null,null,null,null,null,null,null,null,null,null,null,null,null,null,null,null,null,null,null,1,2,3,4,5,6,7,8,9,10,11,12,13,14,15,16,17,18,19,20,21,22,23,24,25,26,27,28,29,30,31,32]
[null,null,null,null,null,null,null,null,null,null,null,null,null,null,null,null,null,null,null,null,null,null,null,null,null,null,null,null,null,null,null,null,{"$f":"IF($B56=\"1-Acquisition Costs\",$M56,0)","v":0},{"$f":"IF($B56=\"2-Payoff Back Taxes\",$M56,0)","v":0},{"$f":"IF($B56=\"3-Pre-demolition title work\",$M56,0)","v":0},{"$f":"IF($B56=\"4-Appraisal Fee\",$M56,0)","v":0},{"$f":"IF($B56=\"5-Survey\",$M56,0)","v":0},{"$f":"IF($B56=\"6-Legal Fees to clear title\",$M56,0)","v":0},{"$f":"IF($B56=\"7-Recording Fees\",$M56,0)","v":0},{"$f":"IF($B56=\"8-Closing Fees\",$M56,0)","v":0},{"$f":"IF($B56=\"9-General Administrative Fees\",$M56,0)","v":0},{"$f":"IF($B56=\"10-Pre-demo Legal Notice and Advertisement for Bids\",$M56,0)","v":0},{"$f":"IF($B56=\"11-Pre-demo Architectural Engineering Costs\",$M56,0)","v":0},{"$f":"IF($B56=\"12-Pre-demo Permit and Inspection Fees\",$M56,0)","v":0},{"$f":"IF($B56=\"13-Pre-demo Asbestos Testing\",$M56,0)","v":0},{"$f":"IF($B56=\"14-Demolition of Residential Structure\",$M56,0)","v":0},{"$f":"IF($B56=\"15-Removal of Other Structure\",$M56,0)","v":0},{"$f":"IF($B56=\"16-Removal of Debris\",$M56,0)","v":0},{"$f":"IF($B56=\"17-Removal of Materials/Refuse\",$M56,0)","v":0},{"$f":"IF($B56=\"18-Removal of Asbestos\",$M56,0)","v":0},{"$f":"IF($B56=\"19-Removal of Lead Paint\",$M56,0)","v":0},{"$f":"IF($B56=\"20-Removal of Hazardous Materials\",$M56,0)","v":0},{"$f":"IF($B56=\"21-Removal of underground storage tanks\",$M56,0)","v":0},{"$f":"IF($B56=\"22-Removal, filling of capping of septic systems and wells\",$M56,0)","v":0},{"$f":"IF($B56=\"23-Removal of debris and garbage from illegal dumping\",$M56,0)","v":0},{"$f":"IF($B56=\"24-Deposit of backfill materials\",$M56,0)","v":0},{"$f":"IF($B56=\"25-Compaction of backfill materials\",$M56,0)","v":0},{"$f":"IF($B56=\"26-Grading of the demolition site\",$M56,0)","v":0},{"$f":"IF($B56=\"27-Seeding of the site\",$M56,0)","v":0},{"$f":"IF($B56=\"28-Additional greening and/or improvement post demolition\",$M56,0)","v":0},{"$f":"IF($B56=\"29-Annual Property Taxes\",$M56,0)","v":0},{"$f":"IF($B56=\"30-Property Maintenance Fees\",$M56,0)","v":0},{"$f":"IF($B56=\"31-Administration Fee\",$M56,0)","v":0},{"$f":"IF($B56=\"32-Other (specify below)\",$M56,0)","v":0}]
[null,null,null,null,null,null,null,null,null,null,null,null,null,null,null,null,null,null,null,null,null,null,null,null,null,null,null,null,null,null,null,null,{"$f":"IF($B57=\"1-Acquisition Costs\",$M57,0)","v":0},{"$f":"IF($B57=\"2-Payoff Back Taxes\",$M57,0)","v":0},{"$f":"IF($B57=\"3-Pre-demolition title work\",$M57,0)","v":0},{"$f":"IF($B57=\"4-Appraisal Fee\",$M57,0)","v":0},{"$f":"IF($B57=\"5-Survey\",$M57,0)","v":0},{"$f":"IF($B57=\"6-Legal Fees to clear title\",$M57,0)","v":0},{"$f":"IF($B57=\"7-Recording Fees\",$M57,0)","v":0},{"$f":"IF($B57=\"8-Closing Fees\",$M57,0)","v":0},{"$f":"IF($B57=\"9-General Administrative Fees\",$M57,0)","v":0},{"$f":"IF($B57=\"10-Pre-demo Legal Notice and Advertisement for Bids\",$M57,0)","v":0},{"$f":"IF($B57=\"11-Pre-demo Architectural Engineering Costs\",$M57,0)","v":0},{"$f":"IF($B57=\"12-Pre-demo Permit and Inspection Fees\",$M57,0)","v":0},{"$f":"IF($B57=\"13-Pre-demo Asbestos Testing\",$M57,0)","v":0},{"$f":"IF($B57=\"14-Demolition of Residential Structure\",$M57,0)","v":0},{"$f":"IF($B57=\"15-Removal of Other Structure\",$M57,0)","v":0},{"$f":"IF($B57=\"16-Removal of Debris\",$M57,0)","v":0},{"$f":"IF($B57=\"17-Removal of Materials/Refuse\",$M57,0)","v":0},{"$f":"IF($B57=\"18-Removal of Asbestos\",$M57,0)","v":0},{"$f":"IF($B57=\"19-Removal of Lead Paint\",$M57,0)","v":0},{"$f":"IF($B57=\"20-Removal of Hazardous Materials\",$M57,0)","v":0},{"$f":"IF($B57=\"21-Removal of underground storage tanks\",$M57,0)","v":0},{"$f":"IF($B57=\"22-Removal, filling of capping of septic systems and wells\",$M57,0)","v":0},{"$f":"IF($B57=\"23-Removal of debris and garbage from illegal dumping\",$M57,0)","v":0},{"$f":"IF($B57=\"24-Deposit of backfill materials\",$M57,0)","v":0},{"$f":"IF($B57=\"25-Compaction of backfill materials\",$M57,0)","v":0},{"$f":"IF($B57=\"26-Grading of the demolition site\",$M57,0)","v":0},{"$f":"IF($B57=\"27-Seeding of the site\",$M57,0)","v":0},{"$f":"IF($B57=\"28-Additional greening and/or improvement post demolition\",$M57,0)","v":0},{"$f":"IF($B57=\"29-Annual Property Taxes\",$M57,0)","v":0},{"$f":"IF($B57=\"30-Property Maintenance Fees\",$M57,0)","v":0},{"$f":"IF($B57=\"31-Administration Fee\",$M57,0)","v":0},{"$f":"IF($B57=\"32-Other (specify below)\",$M57,0)","v":0}]
[null,null,null,null,null,null,null,null,null,null,null,null,null,null,null,null,null,null,null,null,null,null,null,null,null,null,null,null,null,null,null,null,{"$f":"IF($B58=\"1-Acquisition Costs\",$M58,0)","v":0},0,{"$f":"IF($B58=\"3-Pre-demolition title work\",$M58,0)","v":0},0,0,0,0,0,0,0,0,0,0,0,0,0,0,0,0,0,0,0,0,0,0,0,0,0,0,0,0,0]
[null,null,null,null,null,null,null,null,null,null,null,null,null,null,null,null,null,null,null,null,null,null,null,null,null,null,null,null,null,null,null,null,0,0,0,0,0,0,0,0,0,0,0,0,0,0,0,0,0,0,0,0,0,0,0,0,0,0,0,0,0,0,0,0]
[null,null,null,null,null,null,null,null,null,null,null,null,null,null,null,null,null,null,null,null,null,null,null,null,null,null,null,null,null,null,null,null,0,0,0,0,0,0,0,0,0,0,0,0,0,0,0,0,0,0,0,0,0,0,0,0,0,0,0,0,0,0,0,0]
[null,null,null,null,null,null,null,null,null,null,null,null,null,null,null,null,null,null,null,null,null,null,null,null,null,null,null,null,null,null,null,null,0,0,0,0,0,0,0,0,0,0,0,0,0,0,0,0,0,0,0,0,0,0,0,0,0,0,0,0,0,0,0,0]
[null,null,null,null,null,null,null,null,null,null,null,null,null,null,null,null,null,null,null,null,null,null,null,null,null,null,null,null,null,null,null,null,0,0,0,0,0,0,0,0,0,0,0,0,0,0,0,0,0,0,0,0,0,0,0,0,0,0,0,0,0,0,0,0]
[null,null,null,null,null,null,null,null,null,null,null,null,null,null,null,null,null,null,null,null,null,null,null,null,null,null,null,null,null,null,null,null,0,0,0,0,0,0,0,0,0,0,0,0,0,0,0,0,0,0,0,0,0,0,0,0,0,0,0,0,0,0,0,0]
[null,null,null,null,null,null,null,null,null,null,null,null,null,null,null,null,null,null,null,null,null,null,null,null,null,null,null,null,null,null,null,null,0,0,0,0,0,0,0,0,0,0,0,0,0,0,0,0,0,0,0,0,0,0,0,0,0,0,0,0,0,0,0,0]
[null,null,null,null,null,null,null,null,null,null,null,null,null,null,null,null,null,null,null,null,null,null,null,null,null,null,null,null,null,null,null,null,0,0,0,0,0,0,0,0,0,0,0,0,0,0,0,0,0,0,0,0,0,0,0,0,0,0,0,0,0,0,0,0]
[null,null,null,null,null,null,null,null,null,null,null,null,null,null,null,null,null,null,null,null,null,null,null,null,null,null,null,null,null,null,null,null,0,0,0,0,0,0,0,0,0,0,0,0,0,0,0,0,0,0,0,0,0,0,0,0,0,0,0,0,0,0,0,0]
[null,null,null,null,null,null,null,null,null,null,null,null,null,null,null,null,null,null,null,null,null,null,null,null,null,null,null,null,null,null,null,null,0,0,0,0,0,0,0,0,0,0,0,0,0,0,0,0,0,0,0,0,0,0,0,0,0,0,0,0,0,0,0,0]
[null,null,null,null,null,null,null,null,null,null,null,null,null,null,null,null,null,null,null,null,null,null,null,null,null,null,null,null,null,null,null,null,0,0,0,0,0,0,0,0,0,0,0,0,0,0,0,0,0,0,0,0,0,0,0,0,0,0,0,0,0,0,0,0]
[null,null,null,null,null,null,null,null,null,null,null,null,null,null,null,null,null,null,null,null,null,null,null,null,null,null,null,null,null,null,null,null,0,0,0,0,0,0,0,0,0,0,0,0,0,0,0,0,0,0,0,0,0,0,0,0,0,0,0,0,0,0,0,0]
[null,null,null,null,null,null,null,null,null,null,null,null,null,null,null,null,null,null,null,null,null,null,null,null,null,null,null,null,null,null,null,null,0,0,0,0,0,0,0,0,0,0,0,0,0,0,0,0,0,0,0,0,0,0,0,0,0,0,0,0,0,0,0,0]
[null,null,null,null,null,null,null,null,null,null,null,null,null,null,null,null,null,null,null,null,null,null,null,null,null,null,null,null,null,null,null,null,0,0,0,0,0,0,0,0,0,0,0,0,0,0,0,0,0,0,0,0,0,0,0,0,0,0,0,0,0,0,0,0]
[null,null,null,null,null,null,null,null,null,null,null,null,null,null,null,null,null,null,null,null,null,null,null,null,null,null,null,null,null,null,null,null,0,0,0,0,0,0,0,0,0,0,0,0,0,0,0,0,0,0,0,0,0,0,0,0,0,0,0,0,0,0,0,0]
[null,null,null,null,null,null,null,null,null,null,null,null,null,null,null,null,null,null,null,null,null,null,null,null,null,null,null,null,null,null,null,null,0,0,0,0,0,0,0,0,0,0,0,0,0,0,0,0,0,0,0,0,0,0,0,0,0,0,0,0,0,0,0,0]
[null,null,null,null,null,null,null,null,null,null,null,null,null,null,null,null,null,null,null,null,null,null,null,null,null,null,null,null,null,null,null,null,0,0,0,0,0,0,0,0,0,0,0,0,0,0,0,0,0,0,0,0,0,0,0,0,0,0,0,0,0,0,0,0]
[null,null,null,null,null,null,null,null,null,null,null,null,null,null,null,null,null,null,null,null,null,null,null,null,null,null,null,null,null,null,null,null,0,0,0,0,0,0,0,0,0,0,0,0,0,0,0,0,0,0,0,0,0,0,0,0,0,0,0,0,0,0,0,0]
[null,null,null,null,null,null,null,null,null,null,null,null,null,null,null,null,null,null,null,null,null,null,null,null,null,null,null,null,null,null,null,null,0,0,0,0,0,0,0,0,0,0,0,0,0,0,0,0,0,0,0,0,0,0,0,0,0,0,0,0,0,0,0,0]
[null,null,null,null,null,null,null,null,null,null,null,null,null,null,null,null,null,null,null,null,null,null,null,null,null,null,null,null,null,null,null,null,0,0,0,0,0,0,0,0,0,0,0,0,0,0,0,0,0,0,0,0,0,0,0,0,0,0,0,0,0,0,0,0]
[null,null,null,null,null,null,null,null,null,null,null,null,null,null,null,null,null,null,null,null,null,null,null,null,null,null,null,null,null,null,null,null,0,0,0,0,0,0,0,0,0,0,0,0,0,0,0,0,0,0,0,0,0,0,0,0,0,0,0,0,0,0,0,0]
[null,null,null,null,null,null,null,null,null,null,null,null,null,null,null,null,null,null,null,null,null,null,null,null,null,null,null,null,null,null,null,null,0,0,0,0,0,0,0,0,0,0,0,0,0,0,0,0,0,0,0,0,0,0,0,0,0,0,0,0,0,0,0,0]
[null,null,null,null,null,null,null,null,null,null,null,null,null,null,null,null,null,null,null,null,null,null,null,null,null,null,null,null,null,null,null,null,0,0,0,0,0,0,0,0,0,0,0,0,0,0,0,0,0,0,0,0,0,0,0,0,0,0,0,0,0,0,0,0]
[null,null,null,null,null,null,null,null,null,null,"Total Draw Request:",null,{"$f":"SUM(M56:P80)","v":0},null,null,null,null,null,null,null,null,null,null,null,null,null,null,null,null,null,null,null,{"$f":"SUM(AG56:AG80)","v":0},{"$f":"SUM(AH56:AH80)","v":0},0,0,0,0,0,0,0,0,0,0,0,0,0,0,0,0,0,0,0,0,0,0,0,0,0,0,0,0,0,0]
[null,null,null,null,null,null,null,null,null,null,null,null,null,null,null,null,null,null,null,null,null,null,null,null,null,null,null,null,null,null,null,null,{"$f":"SUM(AG81)","v":0},{"$f":"SUM(AH81:AS81)","v":0},null,null,null,null,null,null,null,null,null,null,null,{"$f":"SUM(AT81:BC81)","v":0},null,null,null,null,null,null,null,null,null,{"$f":"SUM(BD81:BH81)","v":0},null,null,null,null,{"$f":"SUM(BI81:BL81)","v":0}]

{"sheet":"RFC (4)","index":3,"n_rows":82,"n_cols":64,"rows_kept":82,"cut":false,"hidden":true,"merged":[[3,2,3,6],[3,13,3,15],[5,8,5,15],[5,19,6,25],[7,10,7,12],[7,13,7,15],[7,20,8,24],[8,1,8,2],[8,3,8,6],[8,10,8,12],[11,19,12,25],[12,2,12,6],[12,13,12,15],[13,19,13,25],[18,2,18,4],[24,1,24,15],[8,13,8,15],[9,1,9,2],[9,8,9,12],[9,13,9,15],[10,13,10,15],[11,3,11,6],[11,8,11,12],[11,13,11,15],[30,2,30,8],[30,12,30,13],[34,4,34,8],[34,12,34,13],[36,1,36,15],[38,4,38,8],[38,12,38,13],[26,12,26,13],[27,2,27,8],[27,12,27,13],[27,14,27,15],[28,12,28,13],[28,14,28,15],[44,1,44,3],[44,4,44,7],[44,8,44,11],[44,12,44,15],[51,1,51,2],[53,33,53,44],[39,4,39,8],[40,4,40,8],[40,12,40,13],[41,4,41,8],[43,1,43,3],[43,4,43,7],[43,8,43,11],[43,12,43,15],[56,1,56,9],[56,12,56,15],[57,1,57,9],[57,12,57,15],[58,1,58,9],[58,12,58,15],[53,45,53,54],[53,55,53,59],[53,60,53,63],[54,1,54,9],[54,12,54,15],[55,1,55,9],[55,12,55,15],[62,1,62,9],[62,12,62,15],[63,1,63,9],[63,12,63,15],[64,1,64,9],[64,12,64,15],[59,1,59,9],[59,12,59,15],[60,1,60,9],[60,12,60,15],[61,1,61,9],[61,12,61,15],[68,1,68,9],[68,12,68,15],[69,1,69,9],[69,12,69,15],[70,1,70,9],[70,12,70,15],[65,1,65,9],[65,12,65,15],[66,1,66,9],[66,12,66,15],[67,1,67,9],[67,12,67,15],[74,1,74,9],[74,12,74,15],[75,1,75,9],[75,12,75,15],[76,1,76,9],[76,12,76,15],[71,1,71,9],[71,12,71,15],[72,1,72,9],[72,12,72,15],[73,1,73,9],[73,12,73,15],[80,12,80,15],[81,33,81,44],[81,45,81,54],[81,55,81,59],[81,60,81,63],[77,1,77,9],[77,12,77,15],[78,1,78,9],[78,12,78,15],[79,1,79,9],[79,12,79,15]]}
[null,"Mississippi Home Corporation"]
[null,"Request for Cash"]
[]
[null,"Program:","BLIGHT ELIMINATION PROGRAM",null,null,null,null,null,null,null,null,null,"Disbursement Type:","HHF Disbursement"]
[]
[null,"Section A:  General Information",null,null,null,null,null,null,"Section B:  Project Information",null,null,null,null,null,null,null,null,null,null,"Instructions:"]
[]
[null,"  Recipient",null,{"$f":"VLOOKUP('RFC (1)'!$D$8,Factors!I4:J7,2)","v":{"$error":"#N/A"}},null,null,null,null,"Program No.",null,"Property No.",null,null,"Blight Partner No.",null,null,null,null,null,1,"Complete the Cost Items section by entering the Cost Item Category and the amount to be reimbursed."]
[null,"  Mailing Address",null,{"$f":"'RFC (1)'!D9:G9","v":0},null,null,null,null,{"$f":"'RFC (1)'!I9","v":0},null,{"$f":"'RFC (1)'!K9:M9","v":0},null,null,{"$f":"'RFC (1)'!N9:P9","v":0}]
[null,"  Street Address",null,null,null,null,null,null,"Property Location",null,null,null,null,"Request No.",null,null,null,null,null,2,"Complete Section D"]
[null,"  City, State Zip",null,{"$f":"'RFC (1)'!D11","v":0},"MS",null,{"$f":"'RFC (1)'!G11","v":0},null,null,null,null,null,null,4,null,null,null,null,null,3,"Print form, execute, and upload to MHC MITAS Portal."]
[null,"  Telephone No.",null,{"$f":"'RFC (1)'!D12:G12","v":0},null,null,null,null,{"$f":"'RFC (1)'!I12:M12","v":0},null,null,null,null,"RLF No.",null,null,null,null,null,"Additional Draws:"]
[null,null,null,null,null,null,null,null,null,null,null,null,null,{"$f":"'RFC (1)'!N13:P13","v":0}]
[null,"Section C:  Request Per Cost Category",null,null,null,null,null,null,null,null,null,null,null,null,null,null,null,null,null,"For additional draws, click below:"]
[null,null,"Cost Category",null,null,null," Budget Amount",null,"Total Prior Request to Date",null,"This Request",null,"Remaining Balance"]
[null,null,"Acquisition Costs",null,null,null,{"$f":"'RFC (1)'!G16","v":0},null,{"$f":"'RFC (1)'!K16+'RFC (2)'!K16+'RFC (3)'!K16","v":0},null,{"$f":"AG82","v":0},null,{"$f":"+G16-I16-K16","v":0},{"$f":"IF(M16<0,\"ERROR\",\"\")","v":""}]
[null,null,"Pre-demolition Costs",null,null,null,{"$f":"'RFC (1)'!G17","v":0},null,{"$f":"'RFC (1)'!K17+'RFC (2)'!K17+'RFC (3)'!K17","v":0},null,{"$f":"AH82","v":0},null,0,{"$f":"IF(M17<0,\"ERROR\",\"\")","v":""}]
[null,null,"Demolition Costs",null,null,null,{"$f":"'RFC (1)'!G18","v":0},null,{"$f":"'RFC (1)'!K18+'RFC (2)'!K18+'RFC (3)'!K18","v":0},null,{"$f":"AT82","v":0},null,0,""]
[null,null,"Greening Costs",null,null,null,{"$f":"'RFC (1)'!G19","v":0},null,{"$f":"'RFC (1)'!K19+'RFC (2)'!K19+'RFC (3)'!K19","v":0},null,{"$f":"BD82","v":0},null,0,""]
[null,null,"Post Demolition Costs",null,null,null,{"$f":"'RFC (1)'!G20","v":0},null,{"$f":"'RFC (1)'!K20+'RFC (2)'!K20+'RFC (3)'!K20","v":0},null,{"$f":"BI82","v":0},null,0,""]
[null,null,null,"Total:",null,null,{"$f":"SUM(G16:G20)","v":0},null,{"$f":"SUM(I16:I20)","v":0},null,{"$f":"SUM(K16:K20)","v":0},null,{"$f":"SUM(M16:M20)","v":0}]
[]
[null,"Section D:  Authorized Signature"]
[]
[null,"By signing below, the Grantee hereby certifies to MHC that (i) the work and materials set forth above have been throgoughly reviewed by Grantee and are acceptable to Grantee; (ii) the work has been satisfactorily completed; and (iii) all suppliers and subcontractors have been paid for work currently in place."]
[]
[]
[null,null,null,null,null,null,null,null,null,null,"Date:"]
[null,null,"Signature of Authorized Official "]
[]
[]
[null,null,"Typed Name and Title of Authorized Official"]
[]
[]
[null,null,"Prepared By:",null,null,null,null,null,null,null,"Date:"]
[]
[null,"MHC USE ONLY"]
[]
[null,null,"Approved By",null,null,null,null,null,null,null,"Date:"]
[null,null,null,null,"Signature, Authorized MHC Representative"]
[null,null,"Authorized By",null,null,null,null,null,null,null,"Date:"]
[null,null,null,null,"Signature, Authorized MHC Representative"]
[]
[null,"Vendor Number",null,null,"Requisition No.",null,null,null,"Check/Wire",null,null,null,"Funding Source"]
[]
[]
[]
[null,{"$f":"I12","v":0},null,null,null,null,null,null,null,null,null,null,null,"Draw Request No.:",{"$f":"N11","v":4}]
[null,{"$f":"D8","v":{"$error":"#N/A"}}]
[]
[]
[null,"COST ITEMS:"]
[null,"MHC will only reimburse costs that meet the BEP Program Guidelines, are necessary and reasonable, and that is supported with documentation."]
[null,null,null,null,null,null,null,null,null,null,null,null,null,null,null,null,null,null,null,null,null,null,null,null,null,null,null,null,null,null,null,null,"ACQ","PRE-DEMO COSTS",null,null,null,null,null,null,null,null,null,null,null,"DEMO COSTS",null,null,null,null,null,null,null,null,null,"GREENING COSTS",null,null,null,null,"POST-DEMO COSTS"]
[null,"Cost Item Description",null,null,null,null,null,null,null,null,null,null,"Invoice Amount",null,null,null,null,null,null,null,null,null,null,null,null,null,null,null,null,null,null,null,1,2,3,4,5,6,7,8,9,10,11,12,13,14,15,16,17,18,19,20,21,22,23,24,25,26,27,28,29,30,31,32]
[null,null,null,null,null,null,null,null,null,null,null,null,null,null,null,null,null,null,null,null,null,null,null,null,null,null,null,null,null,null,null,null,{"$f":"IF($B56=\"1-Acquisition Costs\",$M56,0)","v":0},{"$f":"IF($B56=\"2-Payoff Back Taxes\",$M56,0)","v":0},{"$f":"IF($B56=\"3-Pre-demolition title work\",$M56,0)","v":0},{"$f":"IF($B56=\"4-Appraisal Fee\",$M56,0)","v":0},{"$f":"IF($B56=\"5-Survey\",$M56,0)","v":0},{"$f":"IF($B56=\"6-Legal Fees to clear title\",$M56,0)","v":0},{"$f":"IF($B56=\"7-Recording Fees\",$M56,0)","v":0},{"$f":"IF($B56=\"8-Closing Fees\",$M56,0)","v":0},{"$f":"IF($B56=\"9-General Administrative Fees\",$M56,0)","v":0},{"$f":"IF($B56=\"10-Pre-demo Legal Notice and Advertisement for Bids\",$M56,0)","v":0},{"$f":"IF($B56=\"11-Pre-demo Architectural Engineering Costs\",$M56,0)","v":0},{"$f":"IF($B56=\"12-Pre-demo Permit and Inspection Fees\",$M56,0)","v":0},{"$f":"IF($B56=\"13-Pre-demo Asbestos Testing\",$M56,0)","v":0},{"$f":"IF($B56=\"14-Demolition of Residential Structure\",$M56,0)","v":0},{"$f":"IF($B56=\"15-Removal of Other Structure\",$M56,0)","v":0},{"$f":"IF($B56=\"16-Removal of Debris\",$M56,0)","v":0},{"$f":"IF($B56=\"17-Removal of Materials/Refuse\",$M56,0)","v":0},{"$f":"IF($B56=\"18-Removal of Asbestos\",$M56,0)","v":0},{"$f":"IF($B56=\"19-Removal of Lead Paint\",$M56,0)","v":0},{"$f":"IF($B56=\"20-Removal of Hazardous Materials\",$M56,0)","v":0},{"$f":"IF($B56=\"21-Removal of underground storage tanks\",$M56,0)","v":0},{"$f":"IF($B56=\"22-Removal, filling of capping of septic systems and wells\",$M56,0)","v":0},{"$f":"IF($B56=\"23-Removal of debris and garbage from illegal dumping\",$M56,0)","v":0},{"$f":"IF($B56=\"24-Deposit of backfill materials\",$M56,0)","v":0},{"$f":"IF($B56=\"25-Compaction of backfill materials\",$M56,0)","v":0},{"$f":"IF($B56=\"26-Grading of the demolition site\",$M56,0)","v":0},{"$f":"IF($B56=\"27-Seeding of the site\",$M56,0)","v":0},{"$f":"IF($B56=\"28-Additional greening and/or improvement post demolition\",$M56,0)","v":0},{"$f":"IF($B56=\"29-Annual Property Taxes\",$M56,0)","v":0},{"$f":"IF($B56=\"30-Property Maintenance Fees\",$M56,0)","v":0},{"$f":"IF($B56=\"31-Administration Fee\",$M56,0)","v":0},{"$f":"IF($B56=\"32-Other (specify below)\",$M56,0)","v":0}]
[null,null,null,null,null,null,null,null,null,null,null,null,null,null,null,null,null,null,null,null,null,null,null,null,null,null,null,null,null,null,null,null,{"$f":"IF($B57=\"1-Acquisition Costs\",$M57,0)","v":0},{"$f":"IF($B57=\"2-Payoff Back Taxes\",$M57,0)","v":0},{"$f":"IF($B57=\"3-Pre-demolition title work\",$M57,0)","v":0},{"$f":"IF($B57=\"4-Appraisal Fee\",$M57,0)","v":0},{"$f":"IF($B57=\"5-Survey\",$M57,0)","v":0},{"$f":"IF($B57=\"6-Legal Fees to clear title\",$M57,0)","v":0},{"$f":"IF($B57=\"7-Recording Fees\",$M57,0)","v":0},{"$f":"IF($B57=\"8-Closing Fees\",$M57,0)","v":0},{"$f":"IF($B57=\"9-General Administrative Fees\",$M57,0)","v":0},{"$f":"IF($B57=\"10-Pre-demo Legal Notice and Advertisement for Bids\",$M57,0)","v":0},{"$f":"IF($B57=\"11-Pre-demo Architectural Engineering Costs\",$M57,0)","v":0},{"$f":"IF($B57=\"12-Pre-demo Permit and Inspection Fees\",$M57,0)","v":0},{"$f":"IF($B57=\"13-Pre-demo Asbestos Testing\",$M57,0)","v":0},{"$f":"IF($B57=\"14-Demolition of Residential Structure\",$M57,0)","v":0},{"$f":"IF($B57=\"15-Removal of Other Structure\",$M57,0)","v":0},{"$f":"IF($B57=\"16-Removal of Debris\",$M57,0)","v":0},{"$f":"IF($B57=\"17-Removal of Materials/Refuse\",$M57,0)","v":0},{"$f":"IF($B57=\"18-Removal of Asbestos\",$M57,0)","v":0},{"$f":"IF($B57=\"19-Removal of Lead Paint\",$M57,0)","v":0},{"$f":"IF($B57=\"20-Removal of Hazardous Materials\",$M57,0)","v":0},{"$f":"IF($B57=\"21-Removal of underground storage tanks\",$M57,0)","v":0},{"$f":"IF($B57=\"22-Removal, filling of capping of septic systems and wells\",$M57,0)","v":0},{"$f":"IF($B57=\"23-Removal of debris and garbage from illegal dumping\",$M57,0)","v":0},{"$f":"IF($B57=\"24-Deposit of backfill materials\",$M57,0)","v":0},{"$f":"IF($B57=\"25-Compaction of backfill materials\",$M57,0)","v":0},{"$f":"IF($B57=\"26-Grading of the demolition site\",$M57,0)","v":0},{"$f":"IF($B57=\"27-Seeding of the site\",$M57,0)","v":0},{"$f":"IF($B57=\"28-Additional greening and/or improvement post demolition\",$M57,0)","v":0},{"$f":"IF($B57=\"29-Annual Property Taxes\",$M57,0)","v":0},{"$f":"IF($B57=\"30-Property Maintenance Fees\",$M57,0)","v":0},{"$f":"IF($B57=\"31-Administration Fee\",$M57,0)","v":0},{"$f":"IF($B57=\"32-Other (specify below)\",$M57,0)","v":0}]
[null,null,null,null,null,null,null,null,null,null,null,null,null,null,null,null,null,null,null,null,null,null,null,null,null,null,null,null,null,null,null,null,{"$f":"IF($B58=\"1-Acquisition Costs\",$M58,0)","v":0},0,{"$f":"IF($B58=\"3-Pre-demolition title work\",$M58,0)","v":0},0,0,0,0,0,0,0,0,0,0,0,0,0,0,0,0,0,0,0,0,0,0,0,0,0,0,0,0,0]
[null,null,null,null,null,null,null,null,null,null,null,null,null,null,null,null,null,null,null,null,null,null,null,null,null,null,null,null,null,null,null,null,0,0,0,0,0,0,0,0,0,0,0,0,0,0,0,0,0,0,0,0,0,0,0,0,0,0,0,0,0,0,0,0]
[null,null,null,null,null,null,null,null,null,null,null,null,null,null,null,null,null,null,null,null,null,null,null,null,null,null,null,null,null,null,null,null,0,0,0,0,0,0,0,0,0,0,0,0,0,0,0,0,0,0,0,0,0,0,0,0,0,0,0,0,0,0,0,0]
[null,null,null,null,null,null,null,null,null,null,null,null,null,null,null,null,null,null,null,null,null,null,null,null,null,null,null,null,null,null,null,null,0,0,0,0,0,0,0,0,0,0,0,0,0,0,0,0,0,0,0,0,0,0,0,0,0,0,0,0,0,0,0,0]
[null,null,null,null,null,null,null,null,null,null,null,null,null,null,null,null,null,null,null,null,null,null,null,null,null,null,null,null,null,null,null,null,0,0,0,0,0,0,0,0,0,0,0,0,0,0,0,0,0,0,0,0,0,0,0,0,0,0,0,0,0,0,0,0]
[null,null,null,null,null,null,null,null,null,null,null,null,null,null,null,null,null,null,null,null,null,null,null,null,null,null,null,null,null,null,null,null,0,0,0,0,0,0,0,0,0,0,0,0,0,0,0,0,0,0,0,0,0,0,0,0,0,0,0,0,0,0,0,0]
[null,null,null,null,null,null,null,null,null,null,null,null,null,null,null,null,null,null,null,null,null,null,null,null,null,null,null,null,null,null,null,null,0,0,0,0,0,0,0,0,0,0,0,0,0,0,0,0,0,0,0,0,0,0,0,0,0,0,0,0,0,0,0,0]
[null,null,null,null,null,null,null,null,null,null,null,null,null,null,null,null,null,null,null,null,null,null,null,null,null,null,null,null,null,null,null,null,0,0,0,0,0,0,0,0,0,0,0,0,0,0,0,0,0,0,0,0,0,0,0,0,0,0,0,0,0,0,0,0]
[null,null,null,null,null,null,null,null,null,null,null,null,null,null,null,null,null,null,null,null,null,null,null,null,null,null,null,null,null,null,null,null,0,0,0,0,0,0,0,0,0,0,0,0,0,0,0,0,0,0,0,0,0,0,0,0,0,0,0,0,0,0,0,0]
[null,null,null,null,null,null,null,null,null,null,null,null,null,null,null,null,null,null,null,null,null,null,null,null,null,null,null,null,null,null,null,null,0,0,0,0,0,0,0,0,0,0,0,0,0,0,0,0,0,0,0,0,0,0,0,0,0,0,0,0,0,0,0,0]
[null,null,null,null,null,null,null,null,null,null,null,null,null,null,null,null,null,null,null,null,null,null,null,null,null,null,null,null,null,null,null,null,0,0,0,0,0,0,0,0,0,0,0,0,0,0,0,0,0,0,0,0,0,0,0,0,0,0,0,0,0,0,0,0]
[null,null,null,null,null,null,null,null,null,null,null,null,null,null,null,null,null,null,null,null,null,null,null,null,null,null,null,null,null,null,null,null,0,0,0,0,0,0,0,0,0,0,0,0,0,0,0,0,0,0,0,0,0,0,0,0,0,0,0,0,0,0,0,0]
[null,null,null,null,null,null,null,null,null,null,null,null,null,null,null,null,null,null,null,null,null,null,null,null,null,null,null,null,null,null,null,null,0,0,0,0,0,0,0,0,0,0,0,0,0,0,0,0,0,0,0,0,0,0,0,0,0,0,0,0,0,0,0,0]
[null,null,null,null,null,null,null,null,null,null,null,null,null,null,null,null,null,null,null,null,null,null,null,null,null,null,null,null,null,null,null,null,0,0,0,0,0,0,0,0,0,0,0,0,0,0,0,0,0,0,0,0,0,0,0,0,0,0,0,0,0,0,0,0]
[null,null,null,null,null,null,null,null,null,null,null,null,null,null,null,null,null,null,null,null,null,null,null,null,null,null,null,null,null,null,null,null,0,0,0,0,0,0,0,0,0,0,0,0,0,0,0,0,0,0,0,0,0,0,0,0,0,0,0,0,0,0,0,0]
[null,null,null,null,null,null,null,null,null,null,null,null,null,null,null,null,null,null,null,null,null,null,null,null,null,null,null,null,null,null,null,null,0,0,0,0,0,0,0,0,0,0,0,0,0,0,0,0,0,0,0,0,0,0,0,0,0,0,0,0,0,0,0,0]
[null,null,null,null,null,null,null,null,null,null,null,null,null,null,null,null,null,null,null,null,null,null,null,null,null,null,null,null,null,null,null,null,0,0,0,0,0,0,0,0,0,0,0,0,0,0,0,0,0,0,0,0,0,0,0,0,0,0,0,0,0,0,0,0]
[null,null,null,null,null,null,null,null,null,null,null,null,null,null,null,null,null,null,null,null,null,null,null,null,null,null,null,null,null,null,null,null,0,0,0,0,0,0,0,0,0,0,0,0,0,0,0,0,0,0,0,0,0,0,0,0,0,0,0,0,0,0,0,0]
[null,null,null,null,null,null,null,null,null,null,null,null,null,null,null,null,null,null,null,null,null,null,null,null,null,null,null,null,null,null,null,null,0,0,0,0,0,0,0,0,0,0,0,0,0,0,0,0,0,0,0,0,0,0,0,0,0,0,0,0,0,0,0,0]
[null,null,null,null,null,null,null,null,null,null,null,null,null,null,null,null,null,null,null,null,null,null,null,null,null,null,null,null,null,null,null,null,0,0,0,0,0,0,0,0,0,0,0,0,0,0,0,0,0,0,0,0,0,0,0,0,0,0,0,0,0,0,0,0]
[null,null,null,null,null,null,null,null,null,null,null,null,null,null,null,null,null,null,null,null,null,null,null,null,null,null,null,null,null,null,null,null,0,0,0,0,0,0,0,0,0,0,0,0,0,0,0,0,0,0,0,0,0,0,0,0,0,0,0,0,0,0,0,0]
[null,null,null,null,null,null,null,null,null,null,null,null,null,null,null,null,null,null,null,null,null,null,null,null,null,null,null,null,null,null,null,null,0,0,0,0,0,0,0,0,0,0,0,0,0,0,0,0,0,0,0,0,0,0,0,0,0,0,0,0,0,0,0,0]
[null,null,null,null,null,null,null,null,null,null,null,null,null,null,null,null,null,null,null,null,null,null,null,null,null,null,null,null,null,null,null,null,0,0,0,0,0,0,0,0,0,0,0,0,0,0,0,0,0,0,0,0,0,0,0,0,0,0,0,0,0,0,0,0]
[null,null,null,null,null,null,null,null,null,null,"Total Draw Request:",null,{"$f":"SUM(M56:P80)","v":0},null,null,null,null,null,null,null,null,null,null,null,null,null,null,null,null,null,null,null,{"$f":"SUM(AG56:AG80)","v":0},{"$f":"SUM(AH56:AH80)","v":0},0,0,0,0,0,0,0,0,0,0,0,0,0,0,0,0,0,0,0,0,0,0,0,0,0,0,0,0,0,0]
[null,null,null,null,null,null,null,null,null,null,null,null,null,null,null,null,null,null,null,null,null,null,null,null,null,null,null,null,null,null,null,null,{"$f":"SUM(AG81)","v":0},{"$f":"SUM(AH81:AS81)","v":0},null,null,null,null,null,null,null,null,null,null,null,{"$f":"SUM(AT81:BC81)","v":0},null,null,null,null,null,null,null,null,null,{"$f":"SUM(BD81:BH81)","v":0},null,null,null,null,{"$f":"SUM(BI81:BL81)","v":0}]

{"sheet":"RFC (5)","index":4,"n_rows":82,"n_cols":64,"rows_kept":82,"cut":false,"hidden":true,"merged":[[3,2,3,6],[3,13,3,15],[5,8,5,15],[5,19,6,25],[7,10,7,12],[7,13,7,15],[7,20,8,24],[8,1,8,2],[8,3,8,6],[8,10,8,12],[11,19,12,25],[12,2,12,6],[12,13,12,15],[13,19,13,25],[18,2,18,4],[24,1,24,15],[8,13,8,15],[9,1,9,2],[9,8,9,12],[9,13,9,15],[10,13,10,15],[11,3,11,6],[11,8,11,12],[11,13,11,15],[30,2,30,8],[30,12,30,13],[34,4,34,8],[34,12,34,13],[36,1,36,15],[38,4,38,8],[38,12,38,13],[26,12,26,13],[27,2,27,8],[27,12,27,13],[27,14,27,15],[28,12,28,13],[28,14,28,15],[44,1,44,3],[44,4,44,7],[44,8,44,11],[44,12,44,15],[51,1,51,2],[53,33,53,44],[39,4,39,8],[40,4,40,8],[40,12,40,13],[41,4,41,8],[43,1,43,3],[43,4,43,7],[43,8,43,11],[43,12,43,15],[56,1,56,9],[56,12,56,15],[57,1,57,9],[57,12,57,15],[58,1,58,9],[58,12,58,15],[53,45,53,54],[53,55,53,59],[53,60,53,63],[54,1,54,9],[54,12,54,15],[55,1,55,9],[55,12,55,15],[62,1,62,9],[62,12,62,15],[63,1,63,9],[63,12,63,15],[64,1,64,9],[64,12,64,15],[59,1,59,9],[59,12,59,15],[60,1,60,9],[60,12,60,15],[61,1,61,9],[61,12,61,15],[68,1,68,9],[68,12,68,15],[69,1,69,9],[69,12,69,15],[70,1,70,9],[70,12,70,15],[65,1,65,9],[65,12,65,15],[66,1,66,9],[66,12,66,15],[67,1,67,9],[67,12,67,15],[74,1,74,9],[74,12,74,15],[75,1,75,9],[75,12,75,15],[76,1,76,9],[76,12,76,15],[71,1,71,9],[71,12,71,15],[72,1,72,9],[72,12,72,15],[73,1,73,9],[73,12,73,15],[80,12,80,15],[81,33,81,44],[81,45,81,54],[81,55,81,59],[81,60,81,63],[77,1,77,9],[77,12,77,15],[78,1,78,9],[78,12,78,15],[79,1,79,9],[79,12,79,15]]}
[null,"Mississippi Home Corporation"]
[null,"Request for Cash"]
[]
[null,"Program:","BLIGHT ELIMINATION PROGRAM",null,null,null,null,null,null,null,null,null,"Disbursement Type:","HHF Disbursement"]
[]
[null,"Section A:  General Information",null,null,null,null,null,null,"Section B:  Project Information",null,null,null,null,null,null,null,null,null,null,"Instructions:"]
[]
[null,"  Recipient",null,{"$f":"VLOOKUP('RFC (1)'!$D$8,Factors!I4:J7,2)","v":{"$error":"#N/A"}},null,null,null,null,"Program No.",null,"Property No.",null,null,"Blight Partner No.",null,null,null,null,null,1,"Complete the Cost Items section by entering the Cost Item Category and the amount to be reimbursed."]
[null,"  Mailing Address",null,{"$f":"'RFC (1)'!D9:G9","v":0},null,null,null,null,{"$f":"'RFC (1)'!I9","v":0},null,{"$f":"'RFC (1)'!K9:M9","v":0},null,null,{"$f":"'RFC (1)'!N9:P9","v":0}]
[null,"  Street Address",null,null,null,null,null,null,"Property Location",null,null,null,null,"Request No.",null,null,null,null,null,2,"Complete Section D"]
[null,"  City, State Zip",null,{"$f":"'RFC (1)'!D11","v":0},"MS",null,{"$f":"'RFC (1)'!G11","v":0},null,null,null,null,null,null,5,null,null,null,null,null,3,"Print form, execute, and upload to MHC MITAS Portal."]
[null,"  Telephone No.",null,{"$f":"'RFC (1)'!D12:G12","v":0},null,null,null,null,{"$f":"'RFC (1)'!I12:M12","v":0},null,null,null,null,"RLF No.",null,null,null,null,null,"Additional Draws:"]
[null,null,null,null,null,null,null,null,null,null,null,null,null,{"$f":"'RFC (1)'!N13:P13","v":0}]
[null,"Section C:  Request Per Cost Category",null,null,null,null,null,null,null,null,null,null,null,null,null,null,null,null,null,"For additional draws, click below:"]
[null,null,"Cost Category",null,null,null," Budget Amount",null,"Total Prior Request to Date",null,"This Request",null,"Remaining Balance"]
[null,null,"Acquisition Costs",null,null,null,{"$f":"'RFC (1)'!G16","v":0},null,{"$f":"'RFC (1)'!K16+'RFC (2)'!K16+'RFC (3)'!K16+'RFC (4)'!K16","v":0},null,{"$f":"AG82","v":0},null,{"$f":"+G16-I16-K16","v":0},{"$f":"IF(M16<0,\"ERROR\",\"\")","v":""}]
[null,null,"Pre-demolition Costs",null,null,null,{"$f":"'RFC (1)'!G17","v":0},null,{"$f":"'RFC (1)'!K17+'RFC (2)'!K17+'RFC (3)'!K17+'RFC (4)'!K17","v":0},null,{"$f":"AH82","v":0},null,0,{"$f":"IF(M17<0,\"ERROR\",\"\")","v":""}]
[null,null,"Demolition Costs",null,null,null,{"$f":"'RFC (1)'!G18","v":0},null,{"$f":"'RFC (1)'!K18+'RFC (2)'!K18+'RFC (3)'!K18+'RFC (4)'!K18","v":0},null,{"$f":"AT82","v":0},null,0,""]
[null,null,"Greening Costs",null,null,null,{"$f":"'RFC (1)'!G19","v":0},null,{"$f":"'RFC (1)'!K19+'RFC (2)'!K19+'RFC (3)'!K19+'RFC (4)'!K19","v":0},null,{"$f":"BD82","v":0},null,0,""]
[null,null,"Post Demolition Costs",null,null,null,{"$f":"'RFC (1)'!G20","v":0},null,{"$f":"'RFC (1)'!K20+'RFC (2)'!K20+'RFC (3)'!K20+'RFC (4)'!K20","v":0},null,{"$f":"BI82","v":0},null,0,""]
[null,null,null,"Total:",null,null,{"$f":"SUM(G16:G20)","v":0},null,{"$f":"SUM(I16:I20)","v":0},null,{"$f":"SUM(K16:K20)","v":0},null,{"$f":"SUM(M16:M20)","v":0}]
[]
[null,"Section D:  Authorized Signature"]
[]
[null,"By signing below, the Grantee hereby certifies to MHC that (i) the work and materials set forth above have been throgoughly reviewed by Grantee and are acceptable to Grantee; (ii) the work has been satisfactorily completed; and (iii) all suppliers and subcontractors have been paid for work currently in place."]
[]
[]
[null,null,null,null,null,null,null,null,null,null,"Date:"]
[null,null,"Signature of Authorized Official "]
[]
[]
[null,null,"Typed Name and Title of Authorized Official"]
[]
[]
[null,null,"Prepared By:",null,null,null,null,null,null,null,"Date:"]
[]
[null,"MHC USE ONLY"]
[]
[null,null,"Approved By",null,null,null,null,null,null,null,"Date:"]
[null,null,null,null,"Signature, Authorized MHC Representative"]
[null,null,"Authorized By",null,null,null,null,null,null,null,"Date:"]
[null,null,null,null,"Signature, Authorized MHC Representative"]
[]
[null,"Vendor Number",null,null,"Requisition No.",null,null,null,"Check/Wire",null,null,null,"Funding Source"]
[]
[]
[]
[null,{"$f":"I12","v":0},null,null,null,null,null,null,null,null,null,null,null,"Draw Request No.:",{"$f":"N11","v":5}]
[null,{"$f":"D8","v":{"$error":"#N/A"}}]
[]
[]
[null,"COST ITEMS:"]
[null,"MHC will only reimburse costs that meet the BEP Program Guidelines, are necessary and reasonable, and that is supported with documentation."]
[null,null,null,null,null,null,null,null,null,null,null,null,null,null,null,null,null,null,null,null,null,null,null,null,null,null,null,null,null,null,null,null,"ACQ","PRE-DEMO COSTS",null,null,null,null,null,null,null,null,null,null,null,"DEMO COSTS",null,null,null,null,null,null,null,null,null,"GREENING COSTS",null,null,null,null,"POST-DEMO COSTS"]
[null,"Cost Item Description",null,null,null,null,null,null,null,null,null,null,"Invoice Amount",null,null,null,null,null,null,null,null,null,null,null,null,null,null,null,null,null,null,null,1,2,3,4,5,6,7,8,9,10,11,12,13,14,15,16,17,18,19,20,21,22,23,24,25,26,27,28,29,30,31,32]
[null,null,null,null,null,null,null,null,null,null,null,null,null,null,null,null,null,null,null,null,null,null,null,null,null,null,null,null,null,null,null,null,{"$f":"IF($B56=\"1-Acquisition Costs\",$M56,0)","v":0},{"$f":"IF($B56=\"2-Payoff Back Taxes\",$M56,0)","v":0},{"$f":"IF($B56=\"3-Pre-demolition title work\",$M56,0)","v":0},{"$f":"IF($B56=\"4-Appraisal Fee\",$M56,0)","v":0},{"$f":"IF($B56=\"5-Survey\",$M56,0)","v":0},{"$f":"IF($B56=\"6-Legal Fees to clear title\",$M56,0)","v":0},{"$f":"IF($B56=\"7-Recording Fees\",$M56,0)","v":0},{"$f":"IF($B56=\"8-Closing Fees\",$M56,0)","v":0},{"$f":"IF($B56=\"9-General Administrative Fees\",$M56,0)","v":0},{"$f":"IF($B56=\"10-Pre-demo Legal Notice and Advertisement for Bids\",$M56,0)","v":0},{"$f":"IF($B56=\"11-Pre-demo Architectural Engineering Costs\",$M56,0)","v":0},{"$f":"IF($B56=\"12-Pre-demo Permit and Inspection Fees\",$M56,0)","v":0},{"$f":"IF($B56=\"13-Pre-demo Asbestos Testing\",$M56,0)","v":0},{"$f":"IF($B56=\"14-Demolition of Residential Structure\",$M56,0)","v":0},{"$f":"IF($B56=\"15-Removal of Other Structure\",$M56,0)","v":0},{"$f":"IF($B56=\"16-Removal of Debris\",$M56,0)","v":0},{"$f":"IF($B56=\"17-Removal of Materials/Refuse\",$M56,0)","v":0},{"$f":"IF($B56=\"18-Removal of Asbestos\",$M56,0)","v":0},{"$f":"IF($B56=\"19-Removal of Lead Paint\",$M56,0)","v":0},{"$f":"IF($B56=\"20-Removal of Hazardous Materials\",$M56,0)","v":0},{"$f":"IF($B56=\"21-Removal of underground storage tanks\",$M56,0)","v":0},{"$f":"IF($B56=\"22-Removal, filling of capping of septic systems and wells\",$M56,0)","v":0},{"$f":"IF($B56=\"23-Removal of debris and garbage from illegal dumping\",$M56,0)","v":0},{"$f":"IF($B56=\"24-Deposit of backfill materials\",$M56,0)","v":0},{"$f":"IF($B56=\"25-Compaction of backfill materials\",$M56,0)","v":0},{"$f":"IF($B56=\"26-Grading of the demolition site\",$M56,0)","v":0},{"$f":"IF($B56=\"27-Seeding of the site\",$M56,0)","v":0},{"$f":"IF($B56=\"28-Additional greening and/or improvement post demolition\",$M56,0)","v":0},{"$f":"IF($B56=\"29-Annual Property Taxes\",$M56,0)","v":0},{"$f":"IF($B56=\"30-Property Maintenance Fees\",$M56,0)","v":0},{"$f":"IF($B56=\"31-Administration Fee\",$M56,0)","v":0},{"$f":"IF($B56=\"32-Other (specify below)\",$M56,0)","v":0}]
[null,null,null,null,null,null,null,null,null,null,null,null,null,null,null,null,null,null,null,null,null,null,null,null,null,null,null,null,null,null,null,null,{"$f":"IF($B57=\"1-Acquisition Costs\",$M57,0)","v":0},{"$f":"IF($B57=\"2-Payoff Back Taxes\",$M57,0)","v":0},{"$f":"IF($B57=\"3-Pre-demolition title work\",$M57,0)","v":0},{"$f":"IF($B57=\"4-Appraisal Fee\",$M57,0)","v":0},{"$f":"IF($B57=\"5-Survey\",$M57,0)","v":0},{"$f":"IF($B57=\"6-Legal Fees to clear title\",$M57,0)","v":0},{"$f":"IF($B57=\"7-Recording Fees\",$M57,0)","v":0},{"$f":"IF($B57=\"8-Closing Fees\",$M57,0)","v":0},{"$f":"IF($B57=\"9-General Administrative Fees\",$M57,0)","v":0},{"$f":"IF($B57=\"10-Pre-demo Legal Notice and Advertisement for Bids\",$M57,0)","v":0},{"$f":"IF($B57=\"11-Pre-demo Architectural Engineering Costs\",$M57,0)","v":0},{"$f":"IF($B57=\"12-Pre-demo Permit and Inspection Fees\",$M57,0)","v":0},{"$f":"IF($B57=\"13-Pre-demo Asbestos Testing\",$M57,0)","v":0},{"$f":"IF($B57=\"14-Demolition of Residential Structure\",$M57,0)","v":0},{"$f":"IF($B57=\"15-Removal of Other Structure\",$M57,0)","v":0},{"$f":"IF($B57=\"16-Removal of Debris\",$M57,0)","v":0},{"$f":"IF($B57=\"17-Removal of Materials/Refuse\",$M57,0)","v":0},{"$f":"IF($B57=\"18-Removal of Asbestos\",$M57,0)","v":0},{"$f":"IF($B57=\"19-Removal of Lead Paint\",$M57,0)","v":0},{"$f":"IF($B57=\"20-Removal of Hazardous Materials\",$M57,0)","v":0},{"$f":"IF($B57=\"21-Removal of underground storage tanks\",$M57,0)","v":0},{"$f":"IF($B57=\"22-Removal, filling of capping of septic systems and wells\",$M57,0)","v":0},{"$f":"IF($B57=\"23-Removal of debris and garbage from illegal dumping\",$M57,0)","v":0},{"$f":"IF($B57=\"24-Deposit of backfill materials\",$M57,0)","v":0},{"$f":"IF($B57=\"25-Compaction of backfill materials\",$M57,0)","v":0},{"$f":"IF($B57=\"26-Grading of the demolition site\",$M57,0)","v":0},{"$f":"IF($B57=\"27-Seeding of the site\",$M57,0)","v":0},{"$f":"IF($B57=\"28-Additional greening and/or improvement post demolition\",$M57,0)","v":0},{"$f":"IF($B57=\"29-Annual Property Taxes\",$M57,0)","v":0},{"$f":"IF($B57=\"30-Property Maintenance Fees\",$M57,0)","v":0},{"$f":"IF($B57=\"31-Administration Fee\",$M57,0)","v":0},{"$f":"IF($B57=\"32-Other (specify below)\",$M57,0)","v":0}]
[null,null,null,null,null,null,null,null,null,null,null,null,null,null,null,null,null,null,null,null,null,null,null,null,null,null,null,null,null,null,null,null,{"$f":"IF($B58=\"1-Acquisition Costs\",$M58,0)","v":0},0,{"$f":"IF($B58=\"3-Pre-demolition title work\",$M58,0)","v":0},0,0,0,0,0,0,0,0,0,0,0,0,0,0,0,0,0,0,0,0,0,0,0,0,0,0,0,0,0]
[null,null,null,null,null,null,null,null,null,null,null,null,null,null,null,null,null,null,null,null,null,null,null,null,null,null,null,null,null,null,null,null,0,0,0,0,0,0,0,0,0,0,0,0,0,0,0,0,0,0,0,0,0,0,0,0,0,0,0,0,0,0,0,0]
[null,null,null,null,null,null,null,null,null,null,null,null,null,null,null,null,null,null,null,null,null,null,null,null,null,null,null,null,null,null,null,null,0,0,0,0,0,0,0,0,0,0,0,0,0,0,0,0,0,0,0,0,0,0,0,0,0,0,0,0,0,0,0,0]
[null,null,null,null,null,null,null,null,null,null,null,null,null,null,null,null,null,null,null,null,null,null,null,null,null,null,null,null,null,null,null,null,0,0,0,0,0,0,0,0,0,0,0,0,0,0,0,0,0,0,0,0,0,0,0,0,0,0,0,0,0,0,0,0]
[null,null,null,null,null,null,null,null,null,null,null,null,null,null,null,null,null,null,null,null,null,null,null,null,null,null,null,null,null,null,null,null,0,0,0,0,0,0,0,0,0,0,0,0,0,0,0,0,0,0,0,0,0,0,0,0,0,0,0,0,0,0,0,0]
[null,null,null,null,null,null,null,null,null,null,null,null,null,null,null,null,null,null,null,null,null,null,null,null,null,null,null,null,null,null,null,null,0,0,0,0,0,0,0,0,0,0,0,0,0,0,0,0,0,0,0,0,0,0,0,0,0,0,0,0,0,0,0,0]
[null,null,null,null,null,null,null,null,null,null,null,null,null,null,null,null,null,null,null,null,null,null,null,null,null,null,null,null,null,null,null,null,0,0,0,0,0,0,0,0,0,0,0,0,0,0,0,0,0,0,0,0,0,0,0,0,0,0,0,0,0,0,0,0]
[null,null,null,null,null,null,null,null,null,null,null,null,null,null,null,null,null,null,null,null,null,null,null,null,null,null,null,null,null,null,null,null,0,0,0,0,0,0,0,0,0,0,0,0,0,0,0,0,0,0,0,0,0,0,0,0,0,0,0,0,0,0,0,0]
[null,null,null,null,null,null,null,null,null,null,null,null,null,null,null,null,null,null,null,null,null,null,null,null,null,null,null,null,null,null,null,null,0,0,0,0,0,0,0,0,0,0,0,0,0,0,0,0,0,0,0,0,0,0,0,0,0,0,0,0,0,0,0,0]
[null,null,null,null,null,null,null,null,null,null,null,null,null,null,null,null,null,null,null,null,null,null,null,null,null,null,null,null,null,null,null,null,0,0,0,0,0,0,0,0,0,0,0,0,0,0,0,0,0,0,0,0,0,0,0,0,0,0,0,0,0,0,0,0]
[null,null,null,null,null,null,null,null,null,null,null,null,null,null,null,null,null,null,null,null,null,null,null,null,null,null,null,null,null,null,null,null,0,0,0,0,0,0,0,0,0,0,0,0,0,0,0,0,0,0,0,0,0,0,0,0,0,0,0,0,0,0,0,0]
[null,null,null,null,null,null,null,null,null,null,null,null,null,null,null,null,null,null,null,null,null,null,null,null,null,null,null,null,null,null,null,null,0,0,0,0,0,0,0,0,0,0,0,0,0,0,0,0,0,0,0,0,0,0,0,0,0,0,0,0,0,0,0,0]
[null,null,null,null,null,null,null,null,null,null,null,null,null,null,null,null,null,null,null,null,null,null,null,null,null,null,null,null,null,null,null,null,0,0,0,0,0,0,0,0,0,0,0,0,0,0,0,0,0,0,0,0,0,0,0,0,0,0,0,0,0,0,0,0]
[null,null,null,null,null,null,null,null,null,null,null,null,null,null,null,null,null,null,null,null,null,null,null,null,null,null,null,null,null,null,null,null,0,0,0,0,0,0,0,0,0,0,0,0,0,0,0,0,0,0,0,0,0,0,0,0,0,0,0,0,0,0,0,0]
[null,null,null,null,null,null,null,null,null,null,null,null,null,null,null,null,null,null,null,null,null,null,null,null,null,null,null,null,null,null,null,null,0,0,0,0,0,0,0,0,0,0,0,0,0,0,0,0,0,0,0,0,0,0,0,0,0,0,0,0,0,0,0,0]
[null,null,null,null,null,null,null,null,null,null,null,null,null,null,null,null,null,null,null,null,null,null,null,null,null,null,null,null,null,null,null,null,0,0,0,0,0,0,0,0,0,0,0,0,0,0,0,0,0,0,0,0,0,0,0,0,0,0,0,0,0,0,0,0]
[null,null,null,null,null,null,null,null,null,null,null,null,null,null,null,null,null,null,null,null,null,null,null,null,null,null,null,null,null,null,null,null,0,0,0,0,0,0,0,0,0,0,0,0,0,0,0,0,0,0,0,0,0,0,0,0,0,0,0,0,0,0,0,0]
[null,null,null,null,null,null,null,null,null,null,null,null,null,null,null,null,null,null,null,null,null,null,null,null,null,null,null,null,null,null,null,null,0,0,0,0,0,0,0,0,0,0,0,0,0,0,0,0,0,0,0,0,0,0,0,0,0,0,0,0,0,0,0,0]
[null,null,null,null,null,null,null,null,null,null,null,null,null,null,null,null,null,null,null,null,null,null,null,null,null,null,null,null,null,null,null,null,0,0,0,0,0,0,0,0,0,0,0,0,0,0,0,0,0,0,0,0,0,0,0,0,0,0,0,0,0,0,0,0]
[null,null,null,null,null,null,null,null,null,null,null,null,null,null,null,null,null,null,null,null,null,null,null,null,null,null,null,null,null,null,null,null,0,0,0,0,0,0,0,0,0,0,0,0,0,0,0,0,0,0,0,0,0,0,0,0,0,0,0,0,0,0,0,0]
[null,null,null,null,null,null,null,null,null,null,null,null,null,null,null,null,null,null,null,null,null,null,null,null,null,null,null,null,null,null,null,null,0,0,0,0,0,0,0,0,0,0,0,0,0,0,0,0,0,0,0,0,0,0,0,0,0,0,0,0,0,0,0,0]
[null,null,null,null,null,null,null,null,null,null,null,null,null,null,null,null,null,null,null,null,null,null,null,null,null,null,null,null,null,null,null,null,0,0,0,0,0,0,0,0,0,0,0,0,0,0,0,0,0,0,0,0,0,0,0,0,0,0,0,0,0,0,0,0]
[null,null,null,null,null,null,null,null,null,null,null,null,null,null,null,null,null,null,null,null,null,null,null,null,null,null,null,null,null,null,null,null,0,0,0,0,0,0,0,0,0,0,0,0,0,0,0,0,0,0,0,0,0,0,0,0,0,0,0,0,0,0,0,0]
[null,null,null,null,null,null,null,null,null,null,"Total Draw Request:",null,{"$f":"SUM(M56:P80)","v":0},null,null,null,null,null,null,null,null,null,null,null,null,null,null,null,null,null,null,null,{"$f":"SUM(AG56:AG80)","v":0},{"$f":"SUM(AH56:AH80)","v":0},0,0,0,0,0,0,0,0,0,0,0,0,0,0,0,0,0,0,0,0,0,0,0,0,0,0,0,0,0,0]
[null,null,null,null,null,null,null,null,null,null,null,null,null,null,null,null,null,null,null,null,null,null,null,null,null,null,null,null,null,null,null,null,{"$f":"SUM(AG81)","v":0},{"$f":"SUM(AH81:AS81)","v":0},null,null,null,null,null,null,null,null,null,null,null,{"$f":"SUM(AT81:BC81)","v":0},null,null,null,null,null,null,null,null,null,{"$f":"SUM(BD81:BH81)","v":0},null,null,null,null,{"$f":"SUM(BI81:BL81)","v":0}]

{"sheet":"RFC (6)","index":5,"n_rows":82,"n_cols":64,"rows_kept":82,"cut":false,"hidden":true,"merged":[[3,2,3,6],[3,13,3,15],[5,8,5,15],[5,19,6,25],[7,10,7,12],[7,13,7,15],[7,20,8,24],[8,1,8,2],[8,3,8,6],[8,10,8,12],[11,19,12,25],[12,2,12,6],[12,13,12,15],[13,19,13,25],[18,2,18,4],[24,1,24,15],[8,13,8,15],[9,1,9,2],[9,8,9,12],[9,13,9,15],[10,13,10,15],[11,3,11,6],[11,8,11,12],[11,13,11,15],[30,2,30,8],[30,12,30,13],[34,4,34,8],[34,12,34,13],[36,1,36,15],[38,4,38,8],[38,12,38,13],[26,12,26,13],[27,2,27,8],[27,12,27,13],[27,14,27,15],[28,12,28,13],[28,14,28,15],[44,1,44,3],[44,4,44,7],[44,8,44,11],[44,12,44,15],[51,1,51,2],[53,33,53,44],[39,4,39,8],[40,4,40,8],[40,12,40,13],[41,4,41,8],[43,1,43,3],[43,4,43,7],[43,8,43,11],[43,12,43,15],[56,1,56,9],[56,12,56,15],[57,1,57,9],[57,12,57,15],[58,1,58,9],[58,12,58,15],[53,45,53,54],[53,55,53,59],[53,60,53,63],[54,1,54,9],[54,12,54,15],[55,1,55,9],[55,12,55,15],[62,1,62,9],[62,12,62,15],[63,1,63,9],[63,12,63,15],[64,1,64,9],[64,12,64,15],[59,1,59,9],[59,12,59,15],[60,1,60,9],[60,12,60,15],[61,1,61,9],[61,12,61,15],[68,1,68,9],[68,12,68,15],[69,1,69,9],[69,12,69,15],[70,1,70,9],[70,12,70,15],[65,1,65,9],[65,12,65,15],[66,1,66,9],[66,12,66,15],[67,1,67,9],[67,12,67,15],[74,1,74,9],[74,12,74,15],[75,1,75,9],[75,12,75,15],[76,1,76,9],[76,12,76,15],[71,1,71,9],[71,12,71,15],[72,1,72,9],[72,12,72,15],[73,1,73,9],[73,12,73,15],[80,12,80,15],[81,33,81,44],[81,45,81,54],[81,55,81,59],[81,60,81,63],[77,1,77,9],[77,12,77,15],[78,1,78,9],[78,12,78,15],[79,1,79,9],[79,12,79,15]]}
[null,"Mississippi Home Corporation"]
[null,"Request for Cash"]
[]
[null,"Program:","BLIGHT ELIMINATION PROGRAM",null,null,null,null,null,null,null,null,null,"Disbursement Type:","HHF Disbursement"]
[]
[null,"Section A:  General Information",null,null,null,null,null,null,"Section B:  Project Information",null,null,null,null,null,null,null,null,null,null,"Instructions:"]
[]
[null,"  Recipient",null,{"$f":"VLOOKUP('RFC (1)'!$D$8,Factors!I4:J7,2)","v":{"$error":"#N/A"}},null,null,null,null,"Program No.",null,"Property No.",null,null,"Blight Partner No.",null,null,null,null,null,1,"Complete the Cost Items section by entering the Cost Item Category and the amount to be reimbursed."]
[null,"  Mailing Address",null,{"$f":"'RFC (1)'!D9:G9","v":0},null,null,null,null,{"$f":"'RFC (1)'!I9","v":0},null,{"$f":"'RFC (1)'!K9:M9","v":0},null,null,{"$f":"'RFC (1)'!N9:P9","v":0}]
[null,"  Street Address",null,null,null,null,null,null,"Property Location",null,null,null,null,"Request No.",null,null,null,null,null,2,"Complete Section D"]
[null,"  City, State Zip",null,{"$f":"'RFC (1)'!D11","v":0},"MS",null,{"$f":"'RFC (1)'!G11","v":0},null,null,null,null,null,null,6,null,null,null,null,null,3,"Print form, execute, and upload to MHC MITAS Portal."]
[null,"  Telephone No.",null,{"$f":"'RFC (1)'!D12:G12","v":0},null,null,null,null,{"$f":"'RFC (1)'!I12:M12","v":0},null,null,null,null,"RLF No.",null,null,null,null,null,"Additional Draws:"]
[null,null,null,null,null,null,null,null,null,null,null,null,null,{"$f":"'RFC (1)'!N13:P13","v":0}]
[null,"Section C:  Request Per Cost Category",null,null,null,null,null,null,null,null,null,null,null,null,null,null,null,null,null,"For additional draws, click below:"]
[null,null,"Cost Category",null,null,null," Budget Amount",null,"Total Prior Request to Date",null,"This Request",null,"Remaining Balance"]
[null,null,"Acquisition Costs",null,null,null,{"$f":"'RFC (1)'!G16","v":0},null,{"$f":"'RFC (1)'!K16+'RFC (2)'!K16+'RFC (3)'!K16+'RFC (4)'!K16+'RFC (5)'!K16","v":0},null,{"$f":"AG82","v":0},null,{"$f":"+G16-I16-K16","v":0},{"$f":"IF(M16<0,\"ERROR\",\"\")","v":""}]
[null,null,"Pre-demolition Costs",null,null,null,{"$f":"'RFC (1)'!G17","v":0},null,{"$f":"'RFC (1)'!K17+'RFC (2)'!K17+'RFC (3)'!K17+'RFC (4)'!K17+'RFC (5)'!K17","v":0},null,{"$f":"AH82","v":0},null,0,{"$f":"IF(M17<0,\"ERROR\",\"\")","v":""}]
[null,null,"Demolition Costs",null,null,null,{"$f":"'RFC (1)'!G18","v":0},null,{"$f":"'RFC (1)'!K18+'RFC (2)'!K18+'RFC (3)'!K18+'RFC (4)'!K18+'RFC (5)'!K18","v":0},null,{"$f":"AT82","v":0},null,0,""]
[null,null,"Greening Costs",null,null,null,{"$f":"'RFC (1)'!G19","v":0},null,{"$f":"'RFC (1)'!K19+'RFC (2)'!K19+'RFC (3)'!K19+'RFC (4)'!K19+'RFC (5)'!K19","v":0},null,{"$f":"BD82","v":0},null,0,""]
[null,null,"Post Demolition Costs",null,null,null,{"$f":"'RFC (1)'!G20","v":0},null,{"$f":"'RFC (1)'!K20+'RFC (2)'!K20+'RFC (3)'!K20+'RFC (4)'!K20+'RFC (5)'!K20","v":0},null,{"$f":"BI82","v":0},null,0,""]
[null,null,null,"Total:",null,null,{"$f":"SUM(G16:G20)","v":0},null,{"$f":"SUM(I16:I20)","v":0},null,{"$f":"SUM(K16:K20)","v":0},null,{"$f":"SUM(M16:M20)","v":0}]
[]
[null,"Section D:  Authorized Signature"]
[]
[null,"By signing below, the Grantee hereby certifies to MHC that (i) the work and materials set forth above have been throgoughly reviewed by Grantee and are acceptable to Grantee; (ii) the work has been satisfactorily completed; and (iii) all suppliers and subcontractors have been paid for work currently in place."]
[]
[]
[null,null,null,null,null,null,null,null,null,null,"Date:"]
[null,null,"Signature of Authorized Official "]
[]
[]
[null,null,"Typed Name and Title of Authorized Official"]
[]
[]
[null,null,"Prepared By:",null,null,null,null,null,null,null,"Date:"]
[]
[null,"MHC USE ONLY"]
[]
[null,null,"Approved By",null,null,null,null,null,null,null,"Date:"]
[null,null,null,null,"Signature, Authorized MHC Representative"]
[null,null,"Authorized By",null,null,null,null,null,null,null,"Date:"]
[null,null,null,null,"Signature, Authorized MHC Representative"]
[]
[null,"Vendor Number",null,null,"Requisition No.",null,null,null,"Check/Wire",null,null,null,"Funding Source"]
[]
[]
[]
[null,{"$f":"I12","v":0},null,null,null,null,null,null,null,null,null,null,null,"Draw Request No.:",{"$f":"N11","v":6}]
[null,{"$f":"D8","v":{"$error":"#N/A"}}]
[]
[]
[null,"COST ITEMS:"]
[null,"MHC will only reimburse costs that meet the BEP Program Guidelines, are necessary and reasonable, and that is supported with documentation."]
[null,null,null,null,null,null,null,null,null,null,null,null,null,null,null,null,null,null,null,null,null,null,null,null,null,null,null,null,null,null,null,null,"ACQ","PRE-DEMO COSTS",null,null,null,null,null,null,null,null,null,null,null,"DEMO COSTS",null,null,null,null,null,null,null,null,null,"GREENING COSTS",null,null,null,null,"POST-DEMO COSTS"]
[null,"Cost Item Description",null,null,null,null,null,null,null,null,null,null,"Invoice Amount",null,null,null,null,null,null,null,null,null,null,null,null,null,null,null,null,null,null,null,1,2,3,4,5,6,7,8,9,10,11,12,13,14,15,16,17,18,19,20,21,22,23,24,25,26,27,28,29,30,31,32]
[null,null,null,null,null,null,null,null,null,null,null,null,null,null,null,null,null,null,null,null,null,null,null,null,null,null,null,null,null,null,null,null,{"$f":"IF($B56=\"1-Acquisition Costs\",$M56,0)","v":0},{"$f":"IF($B56=\"2-Payoff Back Taxes\",$M56,0)","v":0},{"$f":"IF($B56=\"3-Pre-demolition title work\",$M56,0)","v":0},{"$f":"IF($B56=\"4-Appraisal Fee\",$M56,0)","v":0},{"$f":"IF($B56=\"5-Survey\",$M56,0)","v":0},{"$f":"IF($B56=\"6-Legal Fees to clear title\",$M56,0)","v":0},{"$f":"IF($B56=\"7-Recording Fees\",$M56,0)","v":0},{"$f":"IF($B56=\"8-Closing Fees\",$M56,0)","v":0},{"$f":"IF($B56=\"9-General Administrative Fees\",$M56,0)","v":0},{"$f":"IF($B56=\"10-Pre-demo Legal Notice and Advertisement for Bids\",$M56,0)","v":0},{"$f":"IF($B56=\"11-Pre-demo Architectural Engineering Costs\",$M56,0)","v":0},{"$f":"IF($B56=\"12-Pre-demo Permit and Inspection Fees\",$M56,0)","v":0},{"$f":"IF($B56=\"13-Pre-demo Asbestos Testing\",$M56,0)","v":0},{"$f":"IF($B56=\"14-Demolition of Residential Structure\",$M56,0)","v":0},{"$f":"IF($B56=\"15-Removal of Other Structure\",$M56,0)","v":0},{"$f":"IF($B56=\"16-Removal of Debris\",$M56,0)","v":0},{"$f":"IF($B56=\"17-Removal of Materials/Refuse\",$M56,0)","v":0},{"$f":"IF($B56=\"18-Removal of Asbestos\",$M56,0)","v":0},{"$f":"IF($B56=\"19-Removal of Lead Paint\",$M56,0)","v":0},{"$f":"IF($B56=\"20-Removal of Hazardous Materials\",$M56,0)","v":0},{"$f":"IF($B56=\"21-Removal of underground storage tanks\",$M56,0)","v":0},{"$f":"IF($B56=\"22-Removal, filling of capping of septic systems and wells\",$M56,0)","v":0},{"$f":"IF($B56=\"23-Removal of debris and garbage from illegal dumping\",$M56,0)","v":0},{"$f":"IF($B56=\"24-Deposit of backfill materials\",$M56,0)","v":0},{"$f":"IF($B56=\"25-Compaction of backfill materials\",$M56,0)","v":0},{"$f":"IF($B56=\"26-Grading of the demolition site\",$M56,0)","v":0},{"$f":"IF($B56=\"27-Seeding of the site\",$M56,0)","v":0},{"$f":"IF($B56=\"28-Additional greening and/or improvement post demolition\",$M56,0)","v":0},{"$f":"IF($B56=\"29-Annual Property Taxes\",$M56,0)","v":0},{"$f":"IF($B56=\"30-Property Maintenance Fees\",$M56,0)","v":0},{"$f":"IF($B56=\"31-Administration Fee\",$M56,0)","v":0},{"$f":"IF($B56=\"32-Other (specify below)\",$M56,0)","v":0}]
[null,null,null,null,null,null,null,null,null,null,null,null,null,null,null,null,null,null,null,null,null,null,null,null,null,null,null,null,null,null,null,null,{"$f":"IF($B57=\"1-Acquisition Costs\",$M57,0)","v":0},{"$f":"IF($B57=\"2-Payoff Back Taxes\",$M57,0)","v":0},{"$f":"IF($B57=\"3-Pre-demolition title work\",$M57,0)","v":0},{"$f":"IF($B57=\"4-Appraisal Fee\",$M57,0)","v":0},{"$f":"IF($B57=\"5-Survey\",$M57,0)","v":0},{"$f":"IF($B57=\"6-Legal Fees to clear title\",$M57,0)","v":0},{"$f":"IF($B57=\"7-Recording Fees\",$M57,0)","v":0},{"$f":"IF($B57=\"8-Closing Fees\",$M57,0)","v":0},{"$f":"IF($B57=\"9-General Administrative Fees\",$M57,0)","v":0},{"$f":"IF($B57=\"10-Pre-demo Legal Notice and Advertisement for Bids\",$M57,0)","v":0},{"$f":"IF($B57=\"11-Pre-demo Architectural Engineering Costs\",$M57,0)","v":0},{"$f":"IF($B57=\"12-Pre-demo Permit and Inspection Fees\",$M57,0)","v":0},{"$f":"IF($B57=\"13-Pre-demo Asbestos Testing\",$M57,0)","v":0},{"$f":"IF($B57=\"14-Demolition of Residential Structure\",$M57,0)","v":0},{"$f":"IF($B57=\"15-Removal of Other Structure\",$M57,0)","v":0},{"$f":"IF($B57=\"16-Removal of Debris\",$M57,0)","v":0},{"$f":"IF($B57=\"17-Removal of Materials/Refuse\",$M57,0)","v":0},{"$f":"IF($B57=\"18-Removal of Asbestos\",$M57,0)","v":0},{"$f":"IF($B57=\"19-Removal of Lead Paint\",$M57,0)","v":0},{"$f":"IF($B57=\"20-Removal of Hazardous Materials\",$M57,0)","v":0},{"$f":"IF($B57=\"21-Removal of underground storage tanks\",$M57,0)","v":0},{"$f":"IF($B57=\"22-Removal, filling of capping of septic systems and wells\",$M57,0)","v":0},{"$f":"IF($B57=\"23-Removal of debris and garbage from illegal dumping\",$M57,0)","v":0},{"$f":"IF($B57=\"24-Deposit of backfill materials\",$M57,0)","v":0},{"$f":"IF($B57=\"25-Compaction of backfill materials\",$M57,0)","v":0},{"$f":"IF($B57=\"26-Grading of the demolition site\",$M57,0)","v":0},{"$f":"IF($B57=\"27-Seeding of the site\",$M57,0)","v":0},{"$f":"IF($B57=\"28-Additional greening and/or improvement post demolition\",$M57,0)","v":0},{"$f":"IF($B57=\"29-Annual Property Taxes\",$M57,0)","v":0},{"$f":"IF($B57=\"30-Property Maintenance Fees\",$M57,0)","v":0},{"$f":"IF($B57=\"31-Administration Fee\",$M57,0)","v":0},{"$f":"IF($B57=\"32-Other (specify below)\",$M57,0)","v":0}]
[null,null,null,null,null,null,null,null,null,null,null,null,null,null,null,null,null,null,null,null,null,null,null,null,null,null,null,null,null,null,null,null,{"$f":"IF($B58=\"1-Acquisition Costs\",$M58,0)","v":0},0,{"$f":"IF($B58=\"3-Pre-demolition title work\",$M58,0)","v":0},0,0,0,0,0,0,0,0,0,0,0,0,0,0,0,0,0,0,0,0,0,0,0,0,0,0,0,0,0]
[null,null,null,null,null,null,null,null,null,null,null,null,null,null,null,null,null,null,null,null,null,null,null,null,null,null,null,null,null,null,null,null,0,0,0,0,0,0,0,0,0,0,0,0,0,0,0,0,0,0,0,0,0,0,0,0,0,0,0,0,0,0,0,0]
[null,null,null,null,null,null,null,null,null,null,null,null,null,null,null,null,null,null,null,null,null,null,null,null,null,null,null,null,null,null,null,null,0,0,0,0,0,0,0,0,0,0,0,0,0,0,0,0,0,0,0,0,0,0,0,0,0,0,0,0,0,0,0,0]
[null,null,null,null,null,null,null,null,null,null,null,null,null,null,null,null,null,null,null,null,null,null,null,null,null,null,null,null,null,null,null,null,0,0,0,0,0,0,0,0,0,0,0,0,0,0,0,0,0,0,0,0,0,0,0,0,0,0,0,0,0,0,0,0]
[null,null,null,null,null,null,null,null,null,null,null,null,null,null,null,null,null,null,null,null,null,null,null,null,null,null,null,null,null,null,null,null,0,0,0,0,0,0,0,0,0,0,0,0,0,0,0,0,0,0,0,0,0,0,0,0,0,0,0,0,0,0,0,0]
[null,null,null,null,null,null,null,null,null,null,null,null,null,null,null,null,null,null,null,null,null,null,null,null,null,null,null,null,null,null,null,null,0,0,0,0,0,0,0,0,0,0,0,0,0,0,0,0,0,0,0,0,0,0,0,0,0,0,0,0,0,0,0,0]
[null,null,null,null,null,null,null,null,null,null,null,null,null,null,null,null,null,null,null,null,null,null,null,null,null,null,null,null,null,null,null,null,0,0,0,0,0,0,0,0,0,0,0,0,0,0,0,0,0,0,0,0,0,0,0,0,0,0,0,0,0,0,0,0]
[null,null,null,null,null,null,null,null,null,null,null,null,null,null,null,null,null,null,null,null,null,null,null,null,null,null,null,null,null,null,null,null,0,0,0,0,0,0,0,0,0,0,0,0,0,0,0,0,0,0,0,0,0,0,0,0,0,0,0,0,0,0,0,0]
[null,null,null,null,null,null,null,null,null,null,null,null,null,null,null,null,null,null,null,null,null,null,null,null,null,null,null,null,null,null,null,null,0,0,0,0,0,0,0,0,0,0,0,0,0,0,0,0,0,0,0,0,0,0,0,0,0,0,0,0,0,0,0,0]
[null,null,null,null,null,null,null,null,null,null,null,null,null,null,null,null,null,null,null,null,null,null,null,null,null,null,null,null,null,null,null,null,0,0,0,0,0,0,0,0,0,0,0,0,0,0,0,0,0,0,0,0,0,0,0,0,0,0,0,0,0,0,0,0]
[null,null,null,null,null,null,null,null,null,null,null,null,null,null,null,null,null,null,null,null,null,null,null,null,null,null,null,null,null,null,null,null,0,0,0,0,0,0,0,0,0,0,0,0,0,0,0,0,0,0,0,0,0,0,0,0,0,0,0,0,0,0,0,0]
[null,null,null,null,null,null,null,null,null,null,null,null,null,null,null,null,null,null,null,null,null,null,null,null,null,null,null,null,null,null,null,null,0,0,0,0,0,0,0,0,0,0,0,0,0,0,0,0,0,0,0,0,0,0,0,0,0,0,0,0,0,0,0,0]
[null,null,null,null,null,null,null,null,null,null,null,null,null,null,null,null,null,null,null,null,null,null,null,null,null,null,null,null,null,null,null,null,0,0,0,0,0,0,0,0,0,0,0,0,0,0,0,0,0,0,0,0,0,0,0,0,0,0,0,0,0,0,0,0]
[null,null,null,null,null,null,null,null,null,null,null,null,null,null,null,null,null,null,null,null,null,null,null,null,null,null,null,null,null,null,null,null,0,0,0,0,0,0,0,0,0,0,0,0,0,0,0,0,0,0,0,0,0,0,0,0,0,0,0,0,0,0,0,0]
[null,null,null,null,null,null,null,null,null,null,null,null,null,null,null,null,null,null,null,null,null,null,null,null,null,null,null,null,null,null,null,null,0,0,0,0,0,0,0,0,0,0,0,0,0,0,0,0,0,0,0,0,0,0,0,0,0,0,0,0,0,0,0,0]
[null,null,null,null,null,null,null,null,null,null,null,null,null,null,null,null,null,null,null,null,null,null,null,null,null,null,null,null,null,null,null,null,0,0,0,0,0,0,0,0,0,0,0,0,0,0,0,0,0,0,0,0,0,0,0,0,0,0,0,0,0,0,0,0]
[null,null,null,null,null,null,null,null,null,null,null,null,null,null,null,null,null,null,null,null,null,null,null,null,null,null,null,null,null,null,null,null,0,0,0,0,0,0,0,0,0,0,0,0,0,0,0,0,0,0,0,0,0,0,0,0,0,0,0,0,0,0,0,0]
[null,null,null,null,null,null,null,null,null,null,null,null,null,null,null,null,null,null,null,null,null,null,null,null,null,null,null,null,null,null,null,null,0,0,0,0,0,0,0,0,0,0,0,0,0,0,0,0,0,0,0,0,0,0,0,0,0,0,0,0,0,0,0,0]
[null,null,null,null,null,null,null,null,null,null,null,null,null,null,null,null,null,null,null,null,null,null,null,null,null,null,null,null,null,null,null,null,0,0,0,0,0,0,0,0,0,0,0,0,0,0,0,0,0,0,0,0,0,0,0,0,0,0,0,0,0,0,0,0]
[null,null,null,null,null,null,null,null,null,null,null,null,null,null,null,null,null,null,null,null,null,null,null,null,null,null,null,null,null,null,null,null,0,0,0,0,0,0,0,0,0,0,0,0,0,0,0,0,0,0,0,0,0,0,0,0,0,0,0,0,0,0,0,0]
[null,null,null,null,null,null,null,null,null,null,null,null,null,null,null,null,null,null,null,null,null,null,null,null,null,null,null,null,null,null,null,null,0,0,0,0,0,0,0,0,0,0,0,0,0,0,0,0,0,0,0,0,0,0,0,0,0,0,0,0,0,0,0,0]
[null,null,null,null,null,null,null,null,null,null,null,null,null,null,null,null,null,null,null,null,null,null,null,null,null,null,null,null,null,null,null,null,0,0,0,0,0,0,0,0,0,0,0,0,0,0,0,0,0,0,0,0,0,0,0,0,0,0,0,0,0,0,0,0]
[null,null,null,null,null,null,null,null,null,null,null,null,null,null,null,null,null,null,null,null,null,null,null,null,null,null,null,null,null,null,null,null,0,0,0,0,0,0,0,0,0,0,0,0,0,0,0,0,0,0,0,0,0,0,0,0,0,0,0,0,0,0,0,0]
[null,null,null,null,null,null,null,null,null,null,"Total Draw Request:",null,{"$f":"SUM(M56:P80)","v":0},null,null,null,null,null,null,null,null,null,null,null,null,null,null,null,null,null,null,null,{"$f":"SUM(AG56:AG80)","v":0},{"$f":"SUM(AH56:AH80)","v":0},0,0,0,0,0,0,0,0,0,0,0,0,0,0,0,0,0,0,0,0,0,0,0,0,0,0,0,0,0,0]
[null,null,null,null,null,null,null,null,null,null,null,null,null,null,null,null,null,null,null,null,null,null,null,null,null,null,null,null,null,null,null,null,{"$f":"SUM(AG81)","v":0},{"$f":"SUM(AH81:AS81)","v":0},null,null,null,null,null,null,null,null,null,null,null,{"$f":"SUM(AT81:BC81)","v":0},null,null,null,null,null,null,null,null,null,{"$f":"SUM(BD81:BH81)","v":0},null,null,null,null,{"$f":"SUM(BI81:BL81)","v":0}]

{"sheet":"RFC (7)","index":6,"n_rows":82,"n_cols":64,"rows_kept":82,"cut":false,"hidden":true,"merged":[[3,2,3,6],[3,13,3,15],[5,8,5,15],[5,19,6,25],[7,10,7,12],[7,13,7,15],[7,20,8,24],[8,1,8,2],[8,3,8,6],[8,10,8,12],[11,19,12,25],[12,2,12,6],[12,13,12,15],[13,19,13,25],[18,2,18,4],[24,1,24,15],[8,13,8,15],[9,1,9,2],[9,8,9,12],[9,13,9,15],[10,13,10,15],[11,3,11,6],[11,8,11,12],[11,13,11,15],[30,2,30,8],[30,12,30,13],[34,4,34,8],[34,12,34,13],[36,1,36,15],[38,4,38,8],[38,12,38,13],[26,12,26,13],[27,2,27,8],[27,12,27,13],[27,14,27,15],[28,12,28,13],[28,14,28,15],[44,1,44,3],[44,4,44,7],[44,8,44,11],[44,12,44,15],[51,1,51,2],[53,33,53,44],[39,4,39,8],[40,4,40,8],[40,12,40,13],[41,4,41,8],[43,1,43,3],[43,4,43,7],[43,8,43,11],[43,12,43,15],[56,1,56,9],[56,12,56,15],[57,1,57,9],[57,12,57,15],[58,1,58,9],[58,12,58,15],[53,45,53,54],[53,55,53,59],[53,60,53,63],[54,1,54,9],[54,12,54,15],[55,1,55,9],[55,12,55,15],[62,1,62,9],[62,12,62,15],[63,1,63,9],[63,12,63,15],[64,1,64,9],[64,12,64,15],[59,1,59,9],[59,12,59,15],[60,1,60,9],[60,12,60,15],[61,1,61,9],[61,12,61,15],[68,1,68,9],[68,12,68,15],[69,1,69,9],[69,12,69,15],[70,1,70,9],[70,12,70,15],[65,1,65,9],[65,12,65,15],[66,1,66,9],[66,12,66,15],[67,1,67,9],[67,12,67,15],[74,1,74,9],[74,12,74,15],[75,1,75,9],[75,12,75,15],[76,1,76,9],[76,12,76,15],[71,1,71,9],[71,12,71,15],[72,1,72,9],[72,12,72,15],[73,1,73,9],[73,12,73,15],[80,12,80,15],[81,33,81,44],[81,45,81,54],[81,55,81,59],[81,60,81,63],[77,1,77,9],[77,12,77,15],[78,1,78,9],[78,12,78,15],[79,1,79,9],[79,12,79,15]]}
[null,"Mississippi Home Corporation"]
[null,"Request for Cash"]
[]
[null,"Program:","BLIGHT ELIMINATION PROGRAM",null,null,null,null,null,null,null,null,null,"Disbursement Type:","HHF Disbursement"]
[]
[null,"Section A:  General Information",null,null,null,null,null,null,"Section B:  Project Information",null,null,null,null,null,null,null,null,null,null,"Instructions:"]
[]
[null,"  Recipient",null,{"$f":"VLOOKUP('RFC (1)'!$D$8,Factors!I4:J7,2)","v":{"$error":"#N/A"}},null,null,null,null,"Program No.",null,"Property No.",null,null,"Blight Partner No.",null,null,null,null,null,1,"Complete the Cost Items section by entering the Cost Item Category and the amount to be reimbursed."]
[null,"  Mailing Address",null,{"$f":"'RFC (1)'!D9:G9","v":0},null,null,null,null,{"$f":"'RFC (1)'!I9","v":0},null,{"$f":"'RFC (1)'!K9:M9","v":0},null,null,{"$f":"'RFC (1)'!N9:P9","v":0}]
[null,"  Street Address",null,null,null,null,null,null,"Property Location",null,null,null,null,"Request No.",null,null,null,null,null,2,"Complete Section D"]
[null,"  City, State Zip",null,{"$f":"'RFC (1)'!D11","v":0},"MS",null,{"$f":"'RFC (1)'!G11","v":0},null,null,null,null,null,null,7,null,null,null,null,null,3,"Print form, execute, and upload to MHC MITAS Portal."]
[null,"  Telephone No.",null,{"$f":"'RFC (1)'!D12:G12","v":0},null,null,null,null,{"$f":"'RFC (1)'!I12:M12","v":0},null,null,null,null,"RLF No.",null,null,null,null,null,"Additional Draws:"]
[null,null,null,null,null,null,null,null,null,null,null,null,null,{"$f":"'RFC (1)'!N13:P13","v":0}]
[null,"Section C:  Request Per Cost Category",null,null,null,null,null,null,null,null,null,null,null,null,null,null,null,null,null,"For additional draws, click below:"]
[null,null,"Cost Category",null,null,null," Budget Amount",null,"Total Prior Request to Date",null,"This Request",null,"Remaining Balance"]
[null,null,"Acquisition Costs",null,null,null,{"$f":"'RFC (1)'!G16","v":0},null,{"$f":"'RFC (1)'!K16+'RFC (2)'!K16+'RFC (3)'!K16+'RFC (4)'!K16+'RFC (5)'!K16+'RFC (6)'!K16","v":0},null,{"$f":"AG82","v":0},null,{"$f":"+G16-I16-K16","v":0},{"$f":"IF(M16<0,\"ERROR\",\"\")","v":""}]
[null,null,"Pre-demolition Costs",null,null,null,{"$f":"'RFC (1)'!G17","v":0},null,{"$f":"'RFC (1)'!K17+'RFC (2)'!K17+'RFC (3)'!K17+'RFC (4)'!K17+'RFC (5)'!K17+'RFC (6)'!K17","v":0},null,{"$f":"AH82","v":0},null,0,{"$f":"IF(M17<0,\"ERROR\",\"\")","v":""}]
[null,null,"Demolition Costs",null,null,null,{"$f":"'RFC (1)'!G18","v":0},null,{"$f":"'RFC (1)'!K18+'RFC (2)'!K18+'RFC (3)'!K18+'RFC (4)'!K18+'RFC (5)'!K18+'RFC (6)'!K18","v":0},null,{"$f":"AT82","v":0},null,0,""]
[null,null,"Greening Costs",null,null,null,{"$f":"'RFC (1)'!G19","v":0},null,{"$f":"'RFC (1)'!K19+'RFC (2)'!K19+'RFC (3)'!K19+'RFC (4)'!K19+'RFC (5)'!K19+'RFC (6)'!K19","v":0},null,{"$f":"BD82","v":0},null,0,""]
[null,null,"Post Demolition Costs",null,null,null,{"$f":"'RFC (1)'!G20","v":0},null,{"$f":"'RFC (1)'!K20+'RFC (2)'!K20+'RFC (3)'!K20+'RFC (4)'!K20+'RFC (5)'!K20+'RFC (6)'!K20","v":0},null,{"$f":"BI82","v":0},null,0,""]
[null,null,null,"Total:",null,null,{"$f":"SUM(G16:G20)","v":0},null,{"$f":"SUM(I16:I20)","v":0},null,{"$f":"SUM(K16:K20)","v":0},null,{"$f":"SUM(M16:M20)","v":0}]
[]
[null,"Section D:  Authorized Signature"]
[]
[null,"By signing below, the Grantee hereby certifies to MHC that (i) the work and materials set forth above have been throgoughly reviewed by Grantee and are acceptable to Grantee; (ii) the work has been satisfactorily completed; and (iii) all suppliers and subcontractors have been paid for work currently in place."]
[]
[]
[null,null,null,null,null,null,null,null,null,null,"Date:"]
[null,null,"Signature of Authorized Official "]
[]
[]
[null,null,"Typed Name and Title of Authorized Official"]
[]
[]
[null,null,"Prepared By:",null,null,null,null,null,null,null,"Date:"]
[]
[null,"MHC USE ONLY"]
[]
[null,null,"Approved By",null,null,null,null,null,null,null,"Date:"]
[null,null,null,null,"Signature, Authorized MHC Representative"]
[null,null,"Authorized By",null,null,null,null,null,null,null,"Date:"]
[null,null,null,null,"Signature, Authorized MHC Representative"]
[]
[null,"Vendor Number",null,null,"Requisition No.",null,null,null,"Check/Wire",null,null,null,"Funding Source"]
[]
[]
[]
[null,{"$f":"I12","v":0},null,null,null,null,null,null,null,null,null,null,null,"Draw Request No.:",{"$f":"N11","v":7}]
[null,{"$f":"D8","v":{"$error":"#N/A"}}]
[]
[]
[null,"COST ITEMS:"]
[null,"MHC will only reimburse costs that meet the BEP Program Guidelines, are necessary and reasonable, and that is supported with documentation."]
[null,null,null,null,null,null,null,null,null,null,null,null,null,null,null,null,null,null,null,null,null,null,null,null,null,null,null,null,null,null,null,null,"ACQ","PRE-DEMO COSTS",null,null,null,null,null,null,null,null,null,null,null,"DEMO COSTS",null,null,null,null,null,null,null,null,null,"GREENING COSTS",null,null,null,null,"POST-DEMO COSTS"]
[null,"Cost Item Description",null,null,null,null,null,null,null,null,null,null,"Invoice Amount",null,null,null,null,null,null,null,null,null,null,null,null,null,null,null,null,null,null,null,1,2,3,4,5,6,7,8,9,10,11,12,13,14,15,16,17,18,19,20,21,22,23,24,25,26,27,28,29,30,31,32]
[null,null,null,null,null,null,null,null,null,null,null,null,null,null,null,null,null,null,null,null,null,null,null,null,null,null,null,null,null,null,null,null,{"$f":"IF($B56=\"1-Acquisition Costs\",$M56,0)","v":0},{"$f":"IF($B56=\"2-Payoff Back Taxes\",$M56,0)","v":0},{"$f":"IF($B56=\"3-Pre-demolition title work\",$M56,0)","v":0},{"$f":"IF($B56=\"4-Appraisal Fee\",$M56,0)","v":0},{"$f":"IF($B56=\"5-Survey\",$M56,0)","v":0},{"$f":"IF($B56=\"6-Legal Fees to clear title\",$M56,0)","v":0},{"$f":"IF($B56=\"7-Recording Fees\",$M56,0)","v":0},{"$f":"IF($B56=\"8-Closing Fees\",$M56,0)","v":0},{"$f":"IF($B56=\"9-General Administrative Fees\",$M56,0)","v":0},{"$f":"IF($B56=\"10-Pre-demo Legal Notice and Advertisement for Bids\",$M56,0)","v":0},{"$f":"IF($B56=\"11-Pre-demo Architectural Engineering Costs\",$M56,0)","v":0},{"$f":"IF($B56=\"12-Pre-demo Permit and Inspection Fees\",$M56,0)","v":0},{"$f":"IF($B56=\"13-Pre-demo Asbestos Testing\",$M56,0)","v":0},{"$f":"IF($B56=\"14-Demolition of Residential Structure\",$M56,0)","v":0},{"$f":"IF($B56=\"15-Removal of Other Structure\",$M56,0)","v":0},{"$f":"IF($B56=\"16-Removal of Debris\",$M56,0)","v":0},{"$f":"IF($B56=\"17-Removal of Materials/Refuse\",$M56,0)","v":0},{"$f":"IF($B56=\"18-Removal of Asbestos\",$M56,0)","v":0},{"$f":"IF($B56=\"19-Removal of Lead Paint\",$M56,0)","v":0},{"$f":"IF($B56=\"20-Removal of Hazardous Materials\",$M56,0)","v":0},{"$f":"IF($B56=\"21-Removal of underground storage tanks\",$M56,0)","v":0},{"$f":"IF($B56=\"22-Removal, filling of capping of septic systems and wells\",$M56,0)","v":0},{"$f":"IF($B56=\"23-Removal of debris and garbage from illegal dumping\",$M56,0)","v":0},{"$f":"IF($B56=\"24-Deposit of backfill materials\",$M56,0)","v":0},{"$f":"IF($B56=\"25-Compaction of backfill materials\",$M56,0)","v":0},{"$f":"IF($B56=\"26-Grading of the demolition site\",$M56,0)","v":0},{"$f":"IF($B56=\"27-Seeding of the site\",$M56,0)","v":0},{"$f":"IF($B56=\"28-Additional greening and/or improvement post demolition\",$M56,0)","v":0},{"$f":"IF($B56=\"29-Annual Property Taxes\",$M56,0)","v":0},{"$f":"IF($B56=\"30-Property Maintenance Fees\",$M56,0)","v":0},{"$f":"IF($B56=\"31-Administration Fee\",$M56,0)","v":0},{"$f":"IF($B56=\"32-Other (specify below)\",$M56,0)","v":0}]
[null,null,null,null,null,null,null,null,null,null,null,null,null,null,null,null,null,null,null,null,null,null,null,null,null,null,null,null,null,null,null,null,{"$f":"IF($B57=\"1-Acquisition Costs\",$M57,0)","v":0},{"$f":"IF($B57=\"2-Payoff Back Taxes\",$M57,0)","v":0},{"$f":"IF($B57=\"3-Pre-demolition title work\",$M57,0)","v":0},{"$f":"IF($B57=\"4-Appraisal Fee\",$M57,0)","v":0},{"$f":"IF($B57=\"5-Survey\",$M57,0)","v":0},{"$f":"IF($B57=\"6-Legal Fees to clear title\",$M57,0)","v":0},{"$f":"IF($B57=\"7-Recording Fees\",$M57,0)","v":0},{"$f":"IF($B57=\"8-Closing Fees\",$M57,0)","v":0},{"$f":"IF($B57=\"9-General Administrative Fees\",$M57,0)","v":0},{"$f":"IF($B57=\"10-Pre-demo Legal Notice and Advertisement for Bids\",$M57,0)","v":0},{"$f":"IF($B57=\"11-Pre-demo Architectural Engineering Costs\",$M57,0)","v":0},{"$f":"IF($B57=\"12-Pre-demo Permit and Inspection Fees\",$M57,0)","v":0},{"$f":"IF($B57=\"13-Pre-demo Asbestos Testing\",$M57,0)","v":0},{"$f":"IF($B57=\"14-Demolition of Residential Structure\",$M57,0)","v":0},{"$f":"IF($B57=\"15-Removal of Other Structure\",$M57,0)","v":0},{"$f":"IF($B57=\"16-Removal of Debris\",$M57,0)","v":0},{"$f":"IF($B57=\"17-Removal of Materials/Refuse\",$M57,0)","v":0},{"$f":"IF($B57=\"18-Removal of Asbestos\",$M57,0)","v":0},{"$f":"IF($B57=\"19-Removal of Lead Paint\",$M57,0)","v":0},{"$f":"IF($B57=\"20-Removal of Hazardous Materials\",$M57,0)","v":0},{"$f":"IF($B57=\"21-Removal of underground storage tanks\",$M57,0)","v":0},{"$f":"IF($B57=\"22-Removal, filling of capping of septic systems and wells\",$M57,0)","v":0},{"$f":"IF($B57=\"23-Removal of debris and garbage from illegal dumping\",$M57,0)","v":0},{"$f":"IF($B57=\"24-Deposit of backfill materials\",$M57,0)","v":0},{"$f":"IF($B57=\"25-Compaction of backfill materials\",$M57,0)","v":0},{"$f":"IF($B57=\"26-Grading of the demolition site\",$M57,0)","v":0},{"$f":"IF($B57=\"27-Seeding of the site\",$M57,0)","v":0},{"$f":"IF($B57=\"28-Additional greening and/or improvement post demolition\",$M57,0)","v":0},{"$f":"IF($B57=\"29-Annual Property Taxes\",$M57,0)","v":0},{"$f":"IF($B57=\"30-Property Maintenance Fees\",$M57,0)","v":0},{"$f":"IF($B57=\"31-Administration Fee\",$M57,0)","v":0},{"$f":"IF($B57=\"32-Other (specify below)\",$M57,0)","v":0}]
[null,null,null,null,null,null,null,null,null,null,null,null,null,null,null,null,null,null,null,null,null,null,null,null,null,null,null,null,null,null,null,null,{"$f":"IF($B58=\"1-Acquisition Costs\",$M58,0)","v":0},0,{"$f":"IF($B58=\"3-Pre-demolition title work\",$M58,0)","v":0},0,0,0,0,0,0,0,0,0,0,0,0,0,0,0,0,0,0,0,0,0,0,0,0,0,0,0,0,0]
[null,null,null,null,null,null,null,null,null,null,null,null,null,null,null,null,null,null,null,null,null,null,null,null,null,null,null,null,null,null,null,null,0,0,0,0,0,0,0,0,0,0,0,0,0,0,0,0,0,0,0,0,0,0,0,0,0,0,0,0,0,0,0,0]
[null,null,null,null,null,null,null,null,null,null,null,null,null,null,null,null,null,null,null,null,null,null,null,null,null,null,null,null,null,null,null,null,0,0,0,0,0,0,0,0,0,0,0,0,0,0,0,0,0,0,0,0,0,0,0,0,0,0,0,0,0,0,0,0]
[null,null,null,null,null,null,null,null,null,null,null,null,null,null,null,null,null,null,null,null,null,null,null,null,null,null,null,null,null,null,null,null,0,0,0,0,0,0,0,0,0,0,0,0,0,0,0,0,0,0,0,0,0,0,0,0,0,0,0,0,0,0,0,0]
[null,null,null,null,null,null,null,null,null,null,null,null,null,null,null,null,null,null,null,null,null,null,null,null,null,null,null,null,null,null,null,null,0,0,0,0,0,0,0,0,0,0,0,0,0,0,0,0,0,0,0,0,0,0,0,0,0,0,0,0,0,0,0,0]
[null,null,null,null,null,null,null,null,null,null,null,null,null,null,null,null,null,null,null,null,null,null,null,null,null,null,null,null,null,null,null,null,0,0,0,0,0,0,0,0,0,0,0,0,0,0,0,0,0,0,0,0,0,0,0,0,0,0,0,0,0,0,0,0]
[null,null,null,null,null,null,null,null,null,null,null,null,null,null,null,null,null,null,null,null,null,null,null,null,null,null,null,null,null,null,null,null,0,0,0,0,0,0,0,0,0,0,0,0,0,0,0,0,0,0,0,0,0,0,0,0,0,0,0,0,0,0,0,0]
[null,null,null,null,null,null,null,null,null,null,null,null,null,null,null,null,null,null,null,null,null,null,null,null,null,null,null,null,null,null,null,null,0,0,0,0,0,0,0,0,0,0,0,0,0,0,0,0,0,0,0,0,0,0,0,0,0,0,0,0,0,0,0,0]
[null,null,null,null,null,null,null,null,null,null,null,null,null,null,null,null,null,null,null,null,null,null,null,null,null,null,null,null,null,null,null,null,0,0,0,0,0,0,0,0,0,0,0,0,0,0,0,0,0,0,0,0,0,0,0,0,0,0,0,0,0,0,0,0]
[null,null,null,null,null,null,null,null,null,null,null,null,null,null,null,null,null,null,null,null,null,null,null,null,null,null,null,null,null,null,null,null,0,0,0,0,0,0,0,0,0,0,0,0,0,0,0,0,0,0,0,0,0,0,0,0,0,0,0,0,0,0,0,0]
[null,null,null,null,null,null,null,null,null,null,null,null,null,null,null,null,null,null,null,null,null,null,null,null,null,null,null,null,null,null,null,null,0,0,0,0,0,0,0,0,0,0,0,0,0,0,0,0,0,0,0,0,0,0,0,0,0,0,0,0,0,0,0,0]
[null,null,null,null,null,null,null,null,null,null,null,null,null,null,null,null,null,null,null,null,null,null,null,null,null,null,null,null,null,null,null,null,0,0,0,0,0,0,0,0,0,0,0,0,0,0,0,0,0,0,0,0,0,0,0,0,0,0,0,0,0,0,0,0]
[null,null,null,null,null,null,null,null,null,null,null,null,null,null,null,null,null,null,null,null,null,null,null,null,null,null,null,null,null,null,null,null,0,0,0,0,0,0,0,0,0,0,0,0,0,0,0,0,0,0,0,0,0,0,0,0,0,0,0,0,0,0,0,0]
[null,null,null,null,null,null,null,null,null,null,null,null,null,null,null,null,null,null,null,null,null,null,null,null,null,null,null,null,null,null,null,null,0,0,0,0,0,0,0,0,0,0,0,0,0,0,0,0,0,0,0,0,0,0,0,0,0,0,0,0,0,0,0,0]
[null,null,null,null,null,null,null,null,null,null,null,null,null,null,null,null,null,null,null,null,null,null,null,null,null,null,null,null,null,null,null,null,0,0,0,0,0,0,0,0,0,0,0,0,0,0,0,0,0,0,0,0,0,0,0,0,0,0,0,0,0,0,0,0]
[null,null,null,null,null,null,null,null,null,null,null,null,null,null,null,null,null,null,null,null,null,null,null,null,null,null,null,null,null,null,null,null,0,0,0,0,0,0,0,0,0,0,0,0,0,0,0,0,0,0,0,0,0,0,0,0,0,0,0,0,0,0,0,0]
[null,null,null,null,null,null,null,null,null,null,null,null,null,null,null,null,null,null,null,null,null,null,null,null,null,null,null,null,null,null,null,null,0,0,0,0,0,0,0,0,0,0,0,0,0,0,0,0,0,0,0,0,0,0,0,0,0,0,0,0,0,0,0,0]
[null,null,null,null,null,null,null,null,null,null,null,null,null,null,null,null,null,null,null,null,null,null,null,null,null,null,null,null,null,null,null,null,0,0,0,0,0,0,0,0,0,0,0,0,0,0,0,0,0,0,0,0,0,0,0,0,0,0,0,0,0,0,0,0]
[null,null,null,null,null,null,null,null,null,null,null,null,null,null,null,null,null,null,null,null,null,null,null,null,null,null,null,null,null,null,null,null,0,0,0,0,0,0,0,0,0,0,0,0,0,0,0,0,0,0,0,0,0,0,0,0,0,0,0,0,0,0,0,0]
[null,null,null,null,null,null,null,null,null,null,null,null,null,null,null,null,null,null,null,null,null,null,null,null,null,null,null,null,null,null,null,null,0,0,0,0,0,0,0,0,0,0,0,0,0,0,0,0,0,0,0,0,0,0,0,0,0,0,0,0,0,0,0,0]
[null,null,null,null,null,null,null,null,null,null,null,null,null,null,null,null,null,null,null,null,null,null,null,null,null,null,null,null,null,null,null,null,0,0,0,0,0,0,0,0,0,0,0,0,0,0,0,0,0,0,0,0,0,0,0,0,0,0,0,0,0,0,0,0]
[null,null,null,null,null,null,null,null,null,null,null,null,null,null,null,null,null,null,null,null,null,null,null,null,null,null,null,null,null,null,null,null,0,0,0,0,0,0,0,0,0,0,0,0,0,0,0,0,0,0,0,0,0,0,0,0,0,0,0,0,0,0,0,0]
[null,null,null,null,null,null,null,null,null,null,null,null,null,null,null,null,null,null,null,null,null,null,null,null,null,null,null,null,null,null,null,null,0,0,0,0,0,0,0,0,0,0,0,0,0,0,0,0,0,0,0,0,0,0,0,0,0,0,0,0,0,0,0,0]
[null,null,null,null,null,null,null,null,null,null,"Total Draw Request:",null,{"$f":"SUM(M56:P80)","v":0},null,null,null,null,null,null,null,null,null,null,null,null,null,null,null,null,null,null,null,{"$f":"SUM(AG56:AG80)","v":0},{"$f":"SUM(AH56:AH80)","v":0},0,0,0,0,0,0,0,0,0,0,0,0,0,0,0,0,0,0,0,0,0,0,0,0,0,0,0,0,0,0]
[null,null,null,null,null,null,null,null,null,null,null,null,null,null,null,null,null,null,null,null,null,null,null,null,null,null,null,null,null,null,null,null,{"$f":"SUM(AG81)","v":0},{"$f":"SUM(AH81:AS81)","v":0},null,null,null,null,null,null,null,null,null,null,null,{"$f":"SUM(AT81:BC81)","v":0},null,null,null,null,null,null,null,null,null,{"$f":"SUM(BD81:BH81)","v":0},null,null,null,null,{"$f":"SUM(BI81:BL81)","v":0}]

{"sheet":"RFC (8)","index":7,"n_rows":82,"n_cols":64,"rows_kept":82,"cut":false,"hidden":true,"merged":[[3,2,3,6],[3,13,3,15],[5,8,5,15],[5,19,6,25],[7,10,7,12],[7,13,7,15],[7,20,8,24],[8,1,8,2],[8,3,8,6],[8,10,8,12],[11,19,12,25],[12,2,12,6],[12,13,12,15],[13,19,13,25],[18,2,18,4],[24,1,24,15],[8,13,8,15],[9,1,9,2],[9,8,9,12],[9,13,9,15],[10,13,10,15],[11,3,11,6],[11,8,11,12],[11,13,11,15],[30,2,30,8],[30,12,30,13],[34,4,34,8],[34,12,34,13],[36,1,36,15],[38,4,38,8],[38,12,38,13],[26,12,26,13],[27,2,27,8],[27,12,27,13],[27,14,27,15],[28,12,28,13],[28,14,28,15],[44,1,44,3],[44,4,44,7],[44,8,44,11],[44,12,44,15],[51,1,51,2],[53,33,53,44],[39,4,39,8],[40,4,40,8],[40,12,40,13],[41,4,41,8],[43,1,43,3],[43,4,43,7],[43,8,43,11],[43,12,43,15],[56,1,56,9],[56,12,56,15],[57,1,57,9],[57,12,57,15],[58,1,58,9],[58,12,58,15],[53,45,53,54],[53,55,53,59],[53,60,53,63],[54,1,54,9],[54,12,54,15],[55,1,55,9],[55,12,55,15],[62,1,62,9],[62,12,62,15],[63,1,63,9],[63,12,63,15],[64,1,64,9],[64,12,64,15],[59,1,59,9],[59,12,59,15],[60,1,60,9],[60,12,60,15],[61,1,61,9],[61,12,61,15],[68,1,68,9],[68,12,68,15],[69,1,69,9],[69,12,69,15],[70,1,70,9],[70,12,70,15],[65,1,65,9],[65,12,65,15],[66,1,66,9],[66,12,66,15],[67,1,67,9],[67,12,67,15],[74,1,74,9],[74,12,74,15],[75,1,75,9],[75,12,75,15],[76,1,76,9],[76,12,76,15],[71,1,71,9],[71,12,71,15],[72,1,72,9],[72,12,72,15],[73,1,73,9],[73,12,73,15],[80,12,80,15],[81,33,81,44],[81,45,81,54],[81,55,81,59],[81,60,81,63],[77,1,77,9],[77,12,77,15],[78,1,78,9],[78,12,78,15],[79,1,79,9],[79,12,79,15]]}
[null,"Mississippi Home Corporation"]
[null,"Request for Cash"]
[]
[null,"Program:","BLIGHT ELIMINATION PROGRAM",null,null,null,null,null,null,null,null,null,"Disbursement Type:","HHF Disbursement"]
[]
[null,"Section A:  General Information",null,null,null,null,null,null,"Section B:  Project Information",null,null,null,null,null,null,null,null,null,null,"Instructions:"]
[]
[null,"  Recipient",null,{"$f":"VLOOKUP('RFC (1)'!$D$8,Factors!I4:J7,2)","v":{"$error":"#N/A"}},null,null,null,null,"Program No.",null,"Property No.",null,null,"Blight Partner No.",null,null,null,null,null,1,"Complete the Cost Items section by entering the Cost Item Category and the amount to be reimbursed."]
[null,"  Mailing Address",null,{"$f":"'RFC (1)'!D9:G9","v":0},null,null,null,null,{"$f":"'RFC (1)'!I9","v":0},null,{"$f":"'RFC (1)'!K9:M9","v":0},null,null,{"$f":"'RFC (1)'!N9:P9","v":0}]
[null,"  Street Address",null,null,null,null,null,null,"Property Location",null,null,null,null,"Request No.",null,null,null,null,null,2,"Complete Section D"]
[null,"  City, State Zip",null,{"$f":"'RFC (1)'!D11","v":0},"MS",null,{"$f":"'RFC (1)'!G11","v":0},null,null,null,null,null,null,8,null,null,null,null,null,3,"Print form, execute, and upload to MHC MITAS Portal."]
[null,"  Telephone No.",null,{"$f":"'RFC (1)'!D12:G12","v":0},null,null,null,null,{"$f":"'RFC (1)'!I12:M12","v":0},null,null,null,null,"RLF No.",null,null,null,null,null,"Additional Draws:"]
[null,null,null,null,null,null,null,null,null,null,null,null,null,{"$f":"'RFC (1)'!N13:P13","v":0}]
[null,"Section C:  Request Per Cost Category",null,null,null,null,null,null,null,null,null,null,null,null,null,null,null,null,null,"For additional draws, click below:"]
[null,null,"Cost Category",null,null,null," Budget Amount",null,"Total Prior Request to Date",null,"This Request",null,"Remaining Balance"]
[null,null,"Acquisition Costs",null,null,null,{"$f":"'RFC (1)'!G16","v":0},null,{"$f":"'RFC (1)'!K16+'RFC (2)'!K16+'RFC (3)'!K16+'RFC (4)'!K16+'RFC (5)'!K16+'RFC (6)'!K16+'RFC (7)'!K16","v":0},null,{"$f":"AG82","v":0},null,{"$f":"+G16-I16-K16","v":0},{"$f":"IF(M16<0,\"ERROR\",\"\")","v":""}]
[null,null,"Pre-demolition Costs",null,null,null,{"$f":"'RFC (1)'!G17","v":0},null,{"$f":"'RFC (1)'!K17+'RFC (2)'!K17+'RFC (3)'!K17+'RFC (4)'!K17+'RFC (5)'!K17+'RFC (6)'!K17+'RFC (7)'!K17","v":0},null,{"$f":"AH82","v":0},null,0,{"$f":"IF(M17<0,\"ERROR\",\"\")","v":""}]
[null,null,"Demolition Costs",null,null,null,{"$f":"'RFC (1)'!G18","v":0},null,{"$f":"'RFC (1)'!K18+'RFC (2)'!K18+'RFC (3)'!K18+'RFC (4)'!K18+'RFC (5)'!K18+'RFC (6)'!K18+'RFC (7)'!K18","v":0},null,{"$f":"AT82","v":0},null,0,""]
[null,null,"Greening Costs",null,null,null,{"$f":"'RFC (1)'!G19","v":0},null,{"$f":"'RFC (1)'!K19+'RFC (2)'!K19+'RFC (3)'!K19+'RFC (4)'!K19+'RFC (5)'!K19+'RFC (6)'!K19+'RFC (7)'!K19","v":0},null,{"$f":"BD82","v":0},null,0,""]
[null,null,"Post Demolition Costs",null,null,null,{"$f":"'RFC (1)'!G20","v":0},null,{"$f":"'RFC (1)'!K20+'RFC (2)'!K20+'RFC (3)'!K20+'RFC (4)'!K20+'RFC (5)'!K20+'RFC (6)'!K20+'RFC (7)'!K20","v":0},null,{"$f":"BI82","v":0},null,0,""]
[null,null,null,"Total:",null,null,{"$f":"SUM(G16:G20)","v":0},null,{"$f":"SUM(I16:I20)","v":0},null,{"$f":"SUM(K16:K20)","v":0},null,{"$f":"SUM(M16:M20)","v":0}]
[]
[null,"Section D:  Authorized Signature"]
[]
[null,"By signing below, the Grantee hereby certifies to MHC that (i) the work and materials set forth above have been throgoughly reviewed by Grantee and are acceptable to Grantee; (ii) the work has been satisfactorily completed; and (iii) all suppliers and subcontractors have been paid for work currently in place."]
[]
[]
[null,null,null,null,null,null,null,null,null,null,"Date:"]
[null,null,"Signature of Authorized Official "]
[]
[]
[null,null,"Typed Name and Title of Authorized Official"]
[]
[]
[null,null,"Prepared By:",null,null,null,null,null,null,null,"Date:"]
[]
[null,"MHC USE ONLY"]
[]
[null,null,"Approved By",null,null,null,null,null,null,null,"Date:"]
[null,null,null,null,"Signature, Authorized MHC Representative"]
[null,null,"Authorized By",null,null,null,null,null,null,null,"Date:"]
[null,null,null,null,"Signature, Authorized MHC Representative"]
[]
[null,"Vendor Number",null,null,"Requisition No.",null,null,null,"Check/Wire",null,null,null,"Funding Source"]
[]
[]
[]
[null,{"$f":"I12","v":0},null,null,null,null,null,null,null,null,null,null,null,"Draw Request No.:",{"$f":"N11","v":8}]
[null,{"$f":"D8","v":{"$error":"#N/A"}}]
[]
[]
[null,"COST ITEMS:"]
[null,"MHC will only reimburse costs that meet the BEP Program Guidelines, are necessary and reasonable, and that is supported with documentation."]
[null,null,null,null,null,null,null,null,null,null,null,null,null,null,null,null,null,null,null,null,null,null,null,null,null,null,null,null,null,null,null,null,"ACQ","PRE-DEMO COSTS",null,null,null,null,null,null,null,null,null,null,null,"DEMO COSTS",null,null,null,null,null,null,null,null,null,"GREENING COSTS",null,null,null,null,"POST-DEMO COSTS"]
[null,"Cost Item Description",null,null,null,null,null,null,null,null,null,null,"Invoice Amount",null,null,null,null,null,null,null,null,null,null,null,null,null,null,null,null,null,null,null,1,2,3,4,5,6,7,8,9,10,11,12,13,14,15,16,17,18,19,20,21,22,23,24,25,26,27,28,29,30,31,32]
[null,null,null,null,null,null,null,null,null,null,null,null,null,null,null,null,null,null,null,null,null,null,null,null,null,null,null,null,null,null,null,null,{"$f":"IF($B56=\"1-Acquisition Costs\",$M56,0)","v":0},{"$f":"IF($B56=\"2-Payoff Back Taxes\",$M56,0)","v":0},{"$f":"IF($B56=\"3-Pre-demolition title work\",$M56,0)","v":0},{"$f":"IF($B56=\"4-Appraisal Fee\",$M56,0)","v":0},{"$f":"IF($B56=\"5-Survey\",$M56,0)","v":0},{"$f":"IF($B56=\"6-Legal Fees to clear title\",$M56,0)","v":0},{"$f":"IF($B56=\"7-Recording Fees\",$M56,0)","v":0},{"$f":"IF($B56=\"8-Closing Fees\",$M56,0)","v":0},{"$f":"IF($B56=\"9-General Administrative Fees\",$M56,0)","v":0},{"$f":"IF($B56=\"10-Pre-demo Legal Notice and Advertisement for Bids\",$M56,0)","v":0},{"$f":"IF($B56=\"11-Pre-demo Architectural Engineering Costs\",$M56,0)","v":0},{"$f":"IF($B56=\"12-Pre-demo Permit and Inspection Fees\",$M56,0)","v":0},{"$f":"IF($B56=\"13-Pre-demo Asbestos Testing\",$M56,0)","v":0},{"$f":"IF($B56=\"14-Demolition of Residential Structure\",$M56,0)","v":0},{"$f":"IF($B56=\"15-Removal of Other Structure\",$M56,0)","v":0},{"$f":"IF($B56=\"16-Removal of Debris\",$M56,0)","v":0},{"$f":"IF($B56=\"17-Removal of Materials/Refuse\",$M56,0)","v":0},{"$f":"IF($B56=\"18-Removal of Asbestos\",$M56,0)","v":0},{"$f":"IF($B56=\"19-Removal of Lead Paint\",$M56,0)","v":0},{"$f":"IF($B56=\"20-Removal of Hazardous Materials\",$M56,0)","v":0},{"$f":"IF($B56=\"21-Removal of underground storage tanks\",$M56,0)","v":0},{"$f":"IF($B56=\"22-Removal, filling of capping of septic systems and wells\",$M56,0)","v":0},{"$f":"IF($B56=\"23-Removal of debris and garbage from illegal dumping\",$M56,0)","v":0},{"$f":"IF($B56=\"24-Deposit of backfill materials\",$M56,0)","v":0},{"$f":"IF($B56=\"25-Compaction of backfill materials\",$M56,0)","v":0},{"$f":"IF($B56=\"26-Grading of the demolition site\",$M56,0)","v":0},{"$f":"IF($B56=\"27-Seeding of the site\",$M56,0)","v":0},{"$f":"IF($B56=\"28-Additional greening and/or improvement post demolition\",$M56,0)","v":0},{"$f":"IF($B56=\"29-Annual Property Taxes\",$M56,0)","v":0},{"$f":"IF($B56=\"30-Property Maintenance Fees\",$M56,0)","v":0},{"$f":"IF($B56=\"31-Administration Fee\",$M56,0)","v":0},{"$f":"IF($B56=\"32-Other (specify below)\",$M56,0)","v":0}]
[null,null,null,null,null,null,null,null,null,null,null,null,null,null,null,null,null,null,null,null,null,null,null,null,null,null,null,null,null,null,null,null,{"$f":"IF($B57=\"1-Acquisition Costs\",$M57,0)","v":0},{"$f":"IF($B57=\"2-Payoff Back Taxes\",$M57,0)","v":0},{"$f":"IF($B57=\"3-Pre-demolition title work\",$M57,0)","v":0},{"$f":"IF($B57=\"4-Appraisal Fee\",$M57,0)","v":0},{"$f":"IF($B57=\"5-Survey\",$M57,0)","v":0},{"$f":"IF($B57=\"6-Legal Fees to clear title\",$M57,0)","v":0},{"$f":"IF($B57=\"7-Recording Fees\",$M57,0)","v":0},{"$f":"IF($B57=\"8-Closing Fees\",$M57,0)","v":0},{"$f":"IF($B57=\"9-General Administrative Fees\",$M57,0)","v":0},{"$f":"IF($B57=\"10-Pre-demo Legal Notice and Advertisement for Bids\",$M57,0)","v":0},{"$f":"IF($B57=\"11-Pre-demo Architectural Engineering Costs\",$M57,0)","v":0},{"$f":"IF($B57=\"12-Pre-demo Permit and Inspection Fees\",$M57,0)","v":0},{"$f":"IF($B57=\"13-Pre-demo Asbestos Testing\",$M57,0)","v":0},{"$f":"IF($B57=\"14-Demolition of Residential Structure\",$M57,0)","v":0},{"$f":"IF($B57=\"15-Removal of Other Structure\",$M57,0)","v":0},{"$f":"IF($B57=\"16-Removal of Debris\",$M57,0)","v":0},{"$f":"IF($B57=\"17-Removal of Materials/Refuse\",$M57,0)","v":0},{"$f":"IF($B57=\"18-Removal of Asbestos\",$M57,0)","v":0},{"$f":"IF($B57=\"19-Removal of Lead Paint\",$M57,0)","v":0},{"$f":"IF($B57=\"20-Removal of Hazardous Materials\",$M57,0)","v":0},{"$f":"IF($B57=\"21-Removal of underground storage tanks\",$M57,0)","v":0},{"$f":"IF($B57=\"22-Removal, filling of capping of septic systems and wells\",$M57,0)","v":0},{"$f":"IF($B57=\"23-Removal of debris and garbage from illegal dumping\",$M57,0)","v":0},{"$f":"IF($B57=\"24-Deposit of backfill materials\",$M57,0)","v":0},{"$f":"IF($B57=\"25-Compaction of backfill materials\",$M57,0)","v":0},{"$f":"IF($B57=\"26-Grading of the demolition site\",$M57,0)","v":0},{"$f":"IF($B57=\"27-Seeding of the site\",$M57,0)","v":0},{"$f":"IF($B57=\"28-Additional greening and/or improvement post demolition\",$M57,0)","v":0},{"$f":"IF($B57=\"29-Annual Property Taxes\",$M57,0)","v":0},{"$f":"IF($B57=\"30-Property Maintenance Fees\",$M57,0)","v":0},{"$f":"IF($B57=\"31-Administration Fee\",$M57,0)","v":0},{"$f":"IF($B57=\"32-Other (specify below)\",$M57,0)","v":0}]
[null,null,null,null,null,null,null,null,null,null,null,null,null,null,null,null,null,null,null,null,null,null,null,null,null,null,null,null,null,null,null,null,{"$f":"IF($B58=\"1-Acquisition Costs\",$M58,0)","v":0},0,{"$f":"IF($B58=\"3-Pre-demolition title work\",$M58,0)","v":0},0,0,0,0,0,0,0,0,0,0,0,0,0,0,0,0,0,0,0,0,0,0,0,0,0,0,0,0,0]
[null,null,null,null,null,null,null,null,null,null,null,null,null,null,null,null,null,null,null,null,null,null,null,null,null,null,null,null,null,null,null,null,0,0,0,0,0,0,0,0,0,0,0,0,0,0,0,0,0,0,0,0,0,0,0,0,0,0,0,0,0,0,0,0]
[null,null,null,null,null,null,null,null,null,null,null,null,null,null,null,null,null,null,null,null,null,null,null,null,null,null,null,null,null,null,null,null,0,0,0,0,0,0,0,0,0,0,0,0,0,0,0,0,0,0,0,0,0,0,0,0,0,0,0,0,0,0,0,0]
[null,null,null,null,null,null,null,null,null,null,null,null,null,null,null,null,null,null,null,null,null,null,null,null,null,null,null,null,null,null,null,null,0,0,0,0,0,0,0,0,0,0,0,0,0,0,0,0,0,0,0,0,0,0,0,0,0,0,0,0,0,0,0,0]
[null,null,null,null,null,null,null,null,null,null,null,null,null,null,null,null,null,null,null,null,null,null,null,null,null,null,null,null,null,null,null,null,0,0,0,0,0,0,0,0,0,0,0,0,0,0,0,0,0,0,0,0,0,0,0,0,0,0,0,0,0,0,0,0]
[null,null,null,null,null,null,null,null,null,null,null,null,null,null,null,null,null,null,null,null,null,null,null,null,null,null,null,null,null,null,null,null,0,0,0,0,0,0,0,0,0,0,0,0,0,0,0,0,0,0,0,0,0,0,0,0,0,0,0,0,0,0,0,0]
[null,null,null,null,null,null,null,null,null,null,null,null,null,null,null,null,null,null,null,null,null,null,null,null,null,null,null,null,null,null,null,null,0,0,0,0,0,0,0,0,0,0,0,0,0,0,0,0,0,0,0,0,0,0,0,0,0,0,0,0,0,0,0,0]
[null,null,null,null,null,null,null,null,null,null,null,null,null,null,null,null,null,null,null,null,null,null,null,null,null,null,null,null,null,null,null,null,0,0,0,0,0,0,0,0,0,0,0,0,0,0,0,0,0,0,0,0,0,0,0,0,0,0,0,0,0,0,0,0]
[null,null,null,null,null,null,null,null,null,null,null,null,null,null,null,null,null,null,null,null,null,null,null,null,null,null,null,null,null,null,null,null,0,0,0,0,0,0,0,0,0,0,0,0,0,0,0,0,0,0,0,0,0,0,0,0,0,0,0,0,0,0,0,0]
[null,null,null,null,null,null,null,null,null,null,null,null,null,null,null,null,null,null,null,null,null,null,null,null,null,null,null,null,null,null,null,null,0,0,0,0,0,0,0,0,0,0,0,0,0,0,0,0,0,0,0,0,0,0,0,0,0,0,0,0,0,0,0,0]
[null,null,null,null,null,null,null,null,null,null,null,null,null,null,null,null,null,null,null,null,null,null,null,null,null,null,null,null,null,null,null,null,0,0,0,0,0,0,0,0,0,0,0,0,0,0,0,0,0,0,0,0,0,0,0,0,0,0,0,0,0,0,0,0]
[null,null,null,null,null,null,null,null,null,null,null,null,null,null,null,null,null,null,null,null,null,null,null,null,null,null,null,null,null,null,null,null,0,0,0,0,0,0,0,0,0,0,0,0,0,0,0,0,0,0,0,0,0,0,0,0,0,0,0,0,0,0,0,0]
[null,null,null,null,null,null,null,null,null,null,null,null,null,null,null,null,null,null,null,null,null,null,null,null,null,null,null,null,null,null,null,null,0,0,0,0,0,0,0,0,0,0,0,0,0,0,0,0,0,0,0,0,0,0,0,0,0,0,0,0,0,0,0,0]
[null,null,null,null,null,null,null,null,null,null,null,null,null,null,null,null,null,null,null,null,null,null,null,null,null,null,null,null,null,null,null,null,0,0,0,0,0,0,0,0,0,0,0,0,0,0,0,0,0,0,0,0,0,0,0,0,0,0,0,0,0,0,0,0]
[null,null,null,null,null,null,null,null,null,null,null,null,null,null,null,null,null,null,null,null,null,null,null,null,null,null,null,null,null,null,null,null,0,0,0,0,0,0,0,0,0,0,0,0,0,0,0,0,0,0,0,0,0,0,0,0,0,0,0,0,0,0,0,0]
[null,null,null,null,null,null,null,null,null,null,null,null,null,null,null,null,null,null,null,null,null,null,null,null,null,null,null,null,null,null,null,null,0,0,0,0,0,0,0,0,0,0,0,0,0,0,0,0,0,0,0,0,0,0,0,0,0,0,0,0,0,0,0,0]
[null,null,null,null,null,null,null,null,null,null,null,null,null,null,null,null,null,null,null,null,null,null,null,null,null,null,null,null,null,null,null,null,0,0,0,0,0,0,0,0,0,0,0,0,0,0,0,0,0,0,0,0,0,0,0,0,0,0,0,0,0,0,0,0]
[null,null,null,null,null,null,null,null,null,null,null,null,null,null,null,null,null,null,null,null,null,null,null,null,null,null,null,null,null,null,null,null,0,0,0,0,0,0,0,0,0,0,0,0,0,0,0,0,0,0,0,0,0,0,0,0,0,0,0,0,0,0,0,0]
[null,null,null,null,null,null,null,null,null,null,null,null,null,null,null,null,null,null,null,null,null,null,null,null,null,null,null,null,null,null,null,null,0,0,0,0,0,0,0,0,0,0,0,0,0,0,0,0,0,0,0,0,0,0,0,0,0,0,0,0,0,0,0,0]
[null,null,null,null,null,null,null,null,null,null,null,null,null,null,null,null,null,null,null,null,null,null,null,null,null,null,null,null,null,null,null,null,0,0,0,0,0,0,0,0,0,0,0,0,0,0,0,0,0,0,0,0,0,0,0,0,0,0,0,0,0,0,0,0]
[null,null,null,null,null,null,null,null,null,null,null,null,null,null,null,null,null,null,null,null,null,null,null,null,null,null,null,null,null,null,null,null,0,0,0,0,0,0,0,0,0,0,0,0,0,0,0,0,0,0,0,0,0,0,0,0,0,0,0,0,0,0,0,0]
[null,null,null,null,null,null,null,null,null,null,null,null,null,null,null,null,null,null,null,null,null,null,null,null,null,null,null,null,null,null,null,null,0,0,0,0,0,0,0,0,0,0,0,0,0,0,0,0,0,0,0,0,0,0,0,0,0,0,0,0,0,0,0,0]
[null,null,null,null,null,null,null,null,null,null,null,null,null,null,null,null,null,null,null,null,null,null,null,null,null,null,null,null,null,null,null,null,0,0,0,0,0,0,0,0,0,0,0,0,0,0,0,0,0,0,0,0,0,0,0,0,0,0,0,0,0,0,0,0]
[null,null,null,null,null,null,null,null,null,null,"Total Draw Request:",null,{"$f":"SUM(M56:P80)","v":0},null,null,null,null,null,null,null,null,null,null,null,null,null,null,null,null,null,null,null,{"$f":"SUM(AG56:AG80)","v":0},{"$f":"SUM(AH56:AH80)","v":0},0,0,0,0,0,0,0,0,0,0,0,0,0,0,0,0,0,0,0,0,0,0,0,0,0,0,0,0,0,0]
[null,null,null,null,null,null,null,null,null,null,null,null,null,null,null,null,null,null,null,null,null,null,null,null,null,null,null,null,null,null,null,null,{"$f":"SUM(AG81)","v":0},{"$f":"SUM(AH81:AS81)","v":0},null,null,null,null,null,null,null,null,null,null,null,{"$f":"SUM(AT81:BC81)","v":0},null,null,null,null,null,null,null,null,null,{"$f":"SUM(BD81:BH81)","v":0},null,null,null,null,{"$f":"SUM(BI81:BL81)","v":0}]

{"sheet":"RFC (9)","index":8,"n_rows":82,"n_cols":64,"rows_kept":82,"cut":false,"hidden":true,"merged":[[3,2,3,6],[3,13,3,15],[5,8,5,15],[5,19,6,25],[7,10,7,12],[7,13,7,15],[7,20,8,24],[8,1,8,2],[8,3,8,6],[8,10,8,12],[11,19,12,25],[12,2,12,6],[12,13,12,15],[13,19,13,25],[18,2,18,4],[24,1,24,15],[8,13,8,15],[9,1,9,2],[9,8,9,12],[9,13,9,15],[10,13,10,15],[11,3,11,6],[11,8,11,12],[11,13,11,15],[30,2,30,8],[30,12,30,13],[34,4,34,8],[34,12,34,13],[36,1,36,15],[38,4,38,8],[38,12,38,13],[26,12,26,13],[27,2,27,8],[27,12,27,13],[27,14,27,15],[28,12,28,13],[28,14,28,15],[44,1,44,3],[44,4,44,7],[44,8,44,11],[44,12,44,15],[51,1,51,2],[53,33,53,44],[39,4,39,8],[40,4,40,8],[40,12,40,13],[41,4,41,8],[43,1,43,3],[43,4,43,7],[43,8,43,11],[43,12,43,15],[56,1,56,9],[56,12,56,15],[57,1,57,9],[57,12,57,15],[58,1,58,9],[58,12,58,15],[53,45,53,54],[53,55,53,59],[53,60,53,63],[54,1,54,9],[54,12,54,15],[55,1,55,9],[55,12,55,15],[62,1,62,9],[62,12,62,15],[63,1,63,9],[63,12,63,15],[64,1,64,9],[64,12,64,15],[59,1,59,9],[59,12,59,15],[60,1,60,9],[60,12,60,15],[61,1,61,9],[61,12,61,15],[68,1,68,9],[68,12,68,15],[69,1,69,9],[69,12,69,15],[70,1,70,9],[70,12,70,15],[65,1,65,9],[65,12,65,15],[66,1,66,9],[66,12,66,15],[67,1,67,9],[67,12,67,15],[74,1,74,9],[74,12,74,15],[75,1,75,9],[75,12,75,15],[76,1,76,9],[76,12,76,15],[71,1,71,9],[71,12,71,15],[72,1,72,9],[72,12,72,15],[73,1,73,9],[73,12,73,15],[80,12,80,15],[81,33,81,44],[81,45,81,54],[81,55,81,59],[81,60,81,63],[77,1,77,9],[77,12,77,15],[78,1,78,9],[78,12,78,15],[79,1,79,9],[79,12,79,15]]}
[null,"Mississippi Home Corporation"]
[null,"Request for Cash"]
[]
[null,"Program:","BLIGHT ELIMINATION PROGRAM",null,null,null,null,null,null,null,null,null,"Disbursement Type:","HHF Disbursement"]
[]
[null,"Section A:  General Information",null,null,null,null,null,null,"Section B:  Project Information",null,null,null,null,null,null,null,null,null,null,"Instructions:"]
[]
[null,"  Recipient",null,{"$f":"VLOOKUP('RFC (1)'!$D$8,Factors!I4:J7,2)","v":{"$error":"#N/A"}},null,null,null,null,"Program No.",null,"Property No.",null,null,"Blight Partner No.",null,null,null,null,null,1,"Complete the Cost Items section by entering the Cost Item Category and the amount to be reimbursed."]
[null,"  Mailing Address",null,{"$f":"'RFC (1)'!D9:G9","v":0},null,null,null,null,{"$f":"'RFC (1)'!I9","v":0},null,{"$f":"'RFC (1)'!K9:M9","v":0},null,null,{"$f":"'RFC (1)'!N9:P9","v":0}]
[null,"  Street Address",null,null,null,null,null,null,"Property Location",null,null,null,null,"Request No.",null,null,null,null,null,2,"Complete Section D"]
[null,"  City, State Zip",null,{"$f":"'RFC (1)'!D11","v":0},"MS",null,{"$f":"'RFC (1)'!G11","v":0},null,null,null,null,null,null,9,null,null,null,null,null,3,"Print form, execute, and upload to MHC MITAS Portal."]
[null,"  Telephone No.",null,{"$f":"'RFC (1)'!D12:G12","v":0},null,null,null,null,{"$f":"'RFC (1)'!I12:M12","v":0},null,null,null,null,"RLF No.",null,null,null,null,null,"Additional Draws:"]
[null,null,null,null,null,null,null,null,null,null,null,null,null,{"$f":"'RFC (1)'!N13:P13","v":0}]
[null,"Section C:  Request Per Cost Category",null,null,null,null,null,null,null,null,null,null,null,null,null,null,null,null,null,"For additional draws, click below:"]
[null,null,"Cost Category",null,null,null," Budget Amount",null,"Total Prior Request to Date",null,"This Request",null,"Remaining Balance"]
[null,null,"Acquisition Costs",null,null,null,{"$f":"'RFC (1)'!G16","v":0},null,{"$f":"'RFC (1)'!K16+'RFC (2)'!K16+'RFC (3)'!K16+'RFC (4)'!K16+'RFC (5)'!K16+'RFC (6)'!K16+'RFC (7)'!K16+'RFC (8)'!K16","v":0},null,{"$f":"AG82","v":0},null,{"$f":"+G16-I16-K16","v":0},{"$f":"IF(M16<0,\"ERROR\",\"\")","v":""}]
[null,null,"Pre-demolition Costs",null,null,null,{"$f":"'RFC (1)'!G17","v":0},null,{"$f":"'RFC (1)'!K17+'RFC (2)'!K17+'RFC (3)'!K17+'RFC (4)'!K17+'RFC (5)'!K17+'RFC (6)'!K17+'RFC (7)'!K17+'RFC (8)'!K17","v":0},null,{"$f":"AH82","v":0},null,0,{"$f":"IF(M17<0,\"ERROR\",\"\")","v":""}]
[null,null,"Demolition Costs",null,null,null,{"$f":"'RFC (1)'!G18","v":0},null,{"$f":"'RFC (1)'!K18+'RFC (2)'!K18+'RFC (3)'!K18+'RFC (4)'!K18+'RFC (5)'!K18+'RFC (6)'!K18+'RFC (7)'!K18+'RFC (8)'!K18","v":0},null,{"$f":"AT82","v":0},null,0,""]
[null,null,"Greening Costs",null,null,null,{"$f":"'RFC (1)'!G19","v":0},null,{"$f":"'RFC (1)'!K19+'RFC (2)'!K19+'RFC (3)'!K19+'RFC (4)'!K19+'RFC (5)'!K19+'RFC (6)'!K19+'RFC (7)'!K19+'RFC (8)'!K19","v":0},null,{"$f":"BD82","v":0},null,0,""]
[null,null,"Post Demolition Costs",null,null,null,{"$f":"'RFC (1)'!G20","v":0},null,{"$f":"'RFC (1)'!K20+'RFC (2)'!K20+'RFC (3)'!K20+'RFC (4)'!K20+'RFC (5)'!K20+'RFC (6)'!K20+'RFC (7)'!K20+'RFC (8)'!K20","v":0},null,{"$f":"BI82","v":0},null,0,""]
[null,null,null,"Total:",null,null,{"$f":"SUM(G16:G20)","v":0},null,{"$f":"SUM(I16:I20)","v":0},null,{"$f":"SUM(K16:K20)","v":0},null,{"$f":"SUM(M16:M20)","v":0}]
[]
[null,"Section D:  Authorized Signature"]
[]
[null,"By signing below, the Grantee hereby certifies to MHC that (i) the work and materials set forth above have been throgoughly reviewed by Grantee and are acceptable to Grantee; (ii) the work has been satisfactorily completed; and (iii) all suppliers and subcontractors have been paid for work currently in place."]
[]
[]
[null,null,null,null,null,null,null,null,null,null,"Date:"]
[null,null,"Signature of Authorized Official "]
[]
[]
[null,null,"Typed Name and Title of Authorized Official"]
[]
[]
[null,null,"Prepared By:",null,null,null,null,null,null,null,"Date:"]
[]
[null,"MHC USE ONLY"]
[]
[null,null,"Approved By",null,null,null,null,null,null,null,"Date:"]
[null,null,null,null,"Signature, Authorized MHC Representative"]
[null,null,"Authorized By",null,null,null,null,null,null,null,"Date:"]
[null,null,null,null,"Signature, Authorized MHC Representative"]
[]
[null,"Vendor Number",null,null,"Requisition No.",null,null,null,"Check/Wire",null,null,null,"Funding Source"]
[]
[]
[]
[null,{"$f":"I12","v":0},null,null,null,null,null,null,null,null,null,null,null,"Draw Request No.:",{"$f":"N11","v":9}]
[null,{"$f":"D8","v":{"$error":"#N/A"}}]
[]
[]
[null,"COST ITEMS:"]
[null,"MHC will only reimburse costs that meet the BEP Program Guidelines, are necessary and reasonable, and that is supported with documentation."]
[null,null,null,null,null,null,null,null,null,null,null,null,null,null,null,null,null,null,null,null,null,null,null,null,null,null,null,null,null,null,null,null,"ACQ","PRE-DEMO COSTS",null,null,null,null,null,null,null,null,null,null,null,"DEMO COSTS",null,null,null,null,null,null,null,null,null,"GREENING COSTS",null,null,null,null,"POST-DEMO COSTS"]
[null,"Cost Item Description",null,null,null,null,null,null,null,null,null,null,"Invoice Amount",null,null,null,null,null,null,null,null,null,null,null,null,null,null,null,null,null,null,null,1,2,3,4,5,6,7,8,9,10,11,12,13,14,15,16,17,18,19,20,21,22,23,24,25,26,27,28,29,30,31,32]
[null,null,null,null,null,null,null,null,null,null,null,null,null,null,null,null,null,null,null,null,null,null,null,null,null,null,null,null,null,null,null,null,{"$f":"IF($B56=\"1-Acquisition Costs\",$M56,0)","v":0},{"$f":"IF($B56=\"2-Payoff Back Taxes\",$M56,0)","v":0},{"$f":"IF($B56=\"3-Pre-demolition title work\",$M56,0)","v":0},{"$f":"IF($B56=\"4-Appraisal Fee\",$M56,0)","v":0},{"$f":"IF($B56=\"5-Survey\",$M56,0)","v":0},{"$f":"IF($B56=\"6-Legal Fees to clear title\",$M56,0)","v":0},{"$f":"IF($B56=\"7-Recording Fees\",$M56,0)","v":0},{"$f":"IF($B56=\"8-Closing Fees\",$M56,0)","v":0},{"$f":"IF($B56=\"9-General Administrative Fees\",$M56,0)","v":0},{"$f":"IF($B56=\"10-Pre-demo Legal Notice and Advertisement for Bids\",$M56,0)","v":0},{"$f":"IF($B56=\"11-Pre-demo Architectural Engineering Costs\",$M56,0)","v":0},{"$f":"IF($B56=\"12-Pre-demo Permit and Inspection Fees\",$M56,0)","v":0},{"$f":"IF($B56=\"13-Pre-demo Asbestos Testing\",$M56,0)","v":0},{"$f":"IF($B56=\"14-Demolition of Residential Structure\",$M56,0)","v":0},{"$f":"IF($B56=\"15-Removal of Other Structure\",$M56,0)","v":0},{"$f":"IF($B56=\"16-Removal of Debris\",$M56,0)","v":0},{"$f":"IF($B56=\"17-Removal of Materials/Refuse\",$M56,0)","v":0},{"$f":"IF($B56=\"18-Removal of Asbestos\",$M56,0)","v":0},{"$f":"IF($B56=\"19-Removal of Lead Paint\",$M56,0)","v":0},{"$f":"IF($B56=\"20-Removal of Hazardous Materials\",$M56,0)","v":0},{"$f":"IF($B56=\"21-Removal of underground storage tanks\",$M56,0)","v":0},{"$f":"IF($B56=\"22-Removal, filling of capping of septic systems and wells\",$M56,0)","v":0},{"$f":"IF($B56=\"23-Removal of debris and garbage from illegal dumping\",$M56,0)","v":0},{"$f":"IF($B56=\"24-Deposit of backfill materials\",$M56,0)","v":0},{"$f":"IF($B56=\"25-Compaction of backfill materials\",$M56,0)","v":0},{"$f":"IF($B56=\"26-Grading of the demolition site\",$M56,0)","v":0},{"$f":"IF($B56=\"27-Seeding of the site\",$M56,0)","v":0},{"$f":"IF($B56=\"28-Additional greening and/or improvement post demolition\",$M56,0)","v":0},{"$f":"IF($B56=\"29-Annual Property Taxes\",$M56,0)","v":0},{"$f":"IF($B56=\"30-Property Maintenance Fees\",$M56,0)","v":0},{"$f":"IF($B56=\"31-Administration Fee\",$M56,0)","v":0},{"$f":"IF($B56=\"32-Other (specify below)\",$M56,0)","v":0}]
[null,null,null,null,null,null,null,null,null,null,null,null,null,null,null,null,null,null,null,null,null,null,null,null,null,null,null,null,null,null,null,null,{"$f":"IF($B57=\"1-Acquisition Costs\",$M57,0)","v":0},{"$f":"IF($B57=\"2-Payoff Back Taxes\",$M57,0)","v":0},{"$f":"IF($B57=\"3-Pre-demolition title work\",$M57,0)","v":0},{"$f":"IF($B57=\"4-Appraisal Fee\",$M57,0)","v":0},{"$f":"IF($B57=\"5-Survey\",$M57,0)","v":0},{"$f":"IF($B57=\"6-Legal Fees to clear title\",$M57,0)","v":0},{"$f":"IF($B57=\"7-Recording Fees\",$M57,0)","v":0},{"$f":"IF($B57=\"8-Closing Fees\",$M57,0)","v":0},{"$f":"IF($B57=\"9-General Administrative Fees\",$M57,0)","v":0},{"$f":"IF($B57=\"10-Pre-demo Legal Notice and Advertisement for Bids\",$M57,0)","v":0},{"$f":"IF($B57=\"11-Pre-demo Architectural Engineering Costs\",$M57,0)","v":0},{"$f":"IF($B57=\"12-Pre-demo Permit and Inspection Fees\",$M57,0)","v":0},{"$f":"IF($B57=\"13-Pre-demo Asbestos Testing\",$M57,0)","v":0},{"$f":"IF($B57=\"14-Demolition of Residential Structure\",$M57,0)","v":0},{"$f":"IF($B57=\"15-Removal of Other Structure\",$M57,0)","v":0},{"$f":"IF($B57=\"16-Removal of Debris\",$M57,0)","v":0},{"$f":"IF($B57=\"17-Removal of Materials/Refuse\",$M57,0)","v":0},{"$f":"IF($B57=\"18-Removal of Asbestos\",$M57,0)","v":0},{"$f":"IF($B57=\"19-Removal of Lead Paint\",$M57,0)","v":0},{"$f":"IF($B57=\"20-Removal of Hazardous Materials\",$M57,0)","v":0},{"$f":"IF($B57=\"21-Removal of underground storage tanks\",$M57,0)","v":0},{"$f":"IF($B57=\"22-Removal, filling of capping of septic systems and wells\",$M57,0)","v":0},{"$f":"IF($B57=\"23-Removal of debris and garbage from illegal dumping\",$M57,0)","v":0},{"$f":"IF($B57=\"24-Deposit of backfill materials\",$M57,0)","v":0},{"$f":"IF($B57=\"25-Compaction of backfill materials\",$M57,0)","v":0},{"$f":"IF($B57=\"26-Grading of the demolition site\",$M57,0)","v":0},{"$f":"IF($B57=\"27-Seeding of the site\",$M57,0)","v":0},{"$f":"IF($B57=\"28-Additional greening and/or improvement post demolition\",$M57,0)","v":0},{"$f":"IF($B57=\"29-Annual Property Taxes\",$M57,0)","v":0},{"$f":"IF($B57=\"30-Property Maintenance Fees\",$M57,0)","v":0},{"$f":"IF($B57=\"31-Administration Fee\",$M57,0)","v":0},{"$f":"IF($B57=\"32-Other (specify below)\",$M57,0)","v":0}]
[null,null,null,null,null,null,null,null,null,null,null,null,null,null,null,null,null,null,null,null,null,null,null,null,null,null,null,null,null,null,null,null,{"$f":"IF($B58=\"1-Acquisition Costs\",$M58,0)","v":0},0,{"$f":"IF($B58=\"3-Pre-demolition title work\",$M58,0)","v":0},0,0,0,0,0,0,0,0,0,0,0,0,0,0,0,0,0,0,0,0,0,0,0,0,0,0,0,0,0]
[null,null,null,null,null,null,null,null,null,null,null,null,null,null,null,null,null,null,null,null,null,null,null,null,null,null,null,null,null,null,null,null,0,0,0,0,0,0,0,0,0,0,0,0,0,0,0,0,0,0,0,0,0,0,0,0,0,0,0,0,0,0,0,0]
[null,null,null,null,null,null,null,null,null,null,null,null,null,null,null,null,null,null,null,null,null,null,null,null,null,null,null,null,null,null,null,null,0,0,0,0,0,0,0,0,0,0,0,0,0,0,0,0,0,0,0,0,0,0,0,0,0,0,0,0,0,0,0,0]
[null,null,null,null,null,null,null,null,null,null,null,null,null,null,null,null,null,null,null,null,null,null,null,null,null,null,null,null,null,null,null,null,0,0,0,0,0,0,0,0,0,0,0,0,0,0,0,0,0,0,0,0,0,0,0,0,0,0,0,0,0,0,0,0]
[null,null,null,null,null,null,null,null,null,null,null,null,null,null,null,null,null,null,null,null,null,null,null,null,null,null,null,null,null,null,null,null,0,0,0,0,0,0,0,0,0,0,0,0,0,0,0,0,0,0,0,0,0,0,0,0,0,0,0,0,0,0,0,0]
[null,null,null,null,null,null,null,null,null,null,null,null,null,null,null,null,null,null,null,null,null,null,null,null,null,null,null,null,null,null,null,null,0,0,0,0,0,0,0,0,0,0,0,0,0,0,0,0,0,0,0,0,0,0,0,0,0,0,0,0,0,0,0,0]
[null,null,null,null,null,null,null,null,null,null,null,null,null,null,null,null,null,null,null,null,null,null,null,null,null,null,null,null,null,null,null,null,0,0,0,0,0,0,0,0,0,0,0,0,0,0,0,0,0,0,0,0,0,0,0,0,0,0,0,0,0,0,0,0]
[null,null,null,null,null,null,null,null,null,null,null,null,null,null,null,null,null,null,null,null,null,null,null,null,null,null,null,null,null,null,null,null,0,0,0,0,0,0,0,0,0,0,0,0,0,0,0,0,0,0,0,0,0,0,0,0,0,0,0,0,0,0,0,0]
[null,null,null,null,null,null,null,null,null,null,null,null,null,null,null,null,null,null,null,null,null,null,null,null,null,null,null,null,null,null,null,null,0,0,0,0,0,0,0,0,0,0,0,0,0,0,0,0,0,0,0,0,0,0,0,0,0,0,0,0,0,0,0,0]
[null,null,null,null,null,null,null,null,null,null,null,null,null,null,null,null,null,null,null,null,null,null,null,null,null,null,null,null,null,null,null,null,0,0,0,0,0,0,0,0,0,0,0,0,0,0,0,0,0,0,0,0,0,0,0,0,0,0,0,0,0,0,0,0]
[null,null,null,null,null,null,null,null,null,null,null,null,null,null,null,null,null,null,null,null,null,null,null,null,null,null,null,null,null,null,null,null,0,0,0,0,0,0,0,0,0,0,0,0,0,0,0,0,0,0,0,0,0,0,0,0,0,0,0,0,0,0,0,0]
[null,null,null,null,null,null,null,null,null,null,null,null,null,null,null,null,null,null,null,null,null,null,null,null,null,null,null,null,null,null,null,null,0,0,0,0,0,0,0,0,0,0,0,0,0,0,0,0,0,0,0,0,0,0,0,0,0,0,0,0,0,0,0,0]
[null,null,null,null,null,null,null,null,null,null,null,null,null,null,null,null,null,null,null,null,null,null,null,null,null,null,null,null,null,null,null,null,0,0,0,0,0,0,0,0,0,0,0,0,0,0,0,0,0,0,0,0,0,0,0,0,0,0,0,0,0,0,0,0]
[null,null,null,null,null,null,null,null,null,null,null,null,null,null,null,null,null,null,null,null,null,null,null,null,null,null,null,null,null,null,null,null,0,0,0,0,0,0,0,0,0,0,0,0,0,0,0,0,0,0,0,0,0,0,0,0,0,0,0,0,0,0,0,0]
[null,null,null,null,null,null,null,null,null,null,null,null,null,null,null,null,null,null,null,null,null,null,null,null,null,null,null,null,null,null,null,null,0,0,0,0,0,0,0,0,0,0,0,0,0,0,0,0,0,0,0,0,0,0,0,0,0,0,0,0,0,0,0,0]
[null,null,null,null,null,null,null,null,null,null,null,null,null,null,null,null,null,null,null,null,null,null,null,null,null,null,null,null,null,null,null,null,0,0,0,0,0,0,0,0,0,0,0,0,0,0,0,0,0,0,0,0,0,0,0,0,0,0,0,0,0,0,0,0]
[null,null,null,null,null,null,null,null,null,null,null,null,null,null,null,null,null,null,null,null,null,null,null,null,null,null,null,null,null,null,null,null,0,0,0,0,0,0,0,0,0,0,0,0,0,0,0,0,0,0,0,0,0,0,0,0,0,0,0,0,0,0,0,0]
[null,null,null,null,null,null,null,null,null,null,null,null,null,null,null,null,null,null,null,null,null,null,null,null,null,null,null,null,null,null,null,null,0,0,0,0,0,0,0,0,0,0,0,0,0,0,0,0,0,0,0,0,0,0,0,0,0,0,0,0,0,0,0,0]
[null,null,null,null,null,null,null,null,null,null,null,null,null,null,null,null,null,null,null,null,null,null,null,null,null,null,null,null,null,null,null,null,0,0,0,0,0,0,0,0,0,0,0,0,0,0,0,0,0,0,0,0,0,0,0,0,0,0,0,0,0,0,0,0]
[null,null,null,null,null,null,null,null,null,null,null,null,null,null,null,null,null,null,null,null,null,null,null,null,null,null,null,null,null,null,null,null,0,0,0,0,0,0,0,0,0,0,0,0,0,0,0,0,0,0,0,0,0,0,0,0,0,0,0,0,0,0,0,0]
[null,null,null,null,null,null,null,null,null,null,null,null,null,null,null,null,null,null,null,null,null,null,null,null,null,null,null,null,null,null,null,null,0,0,0,0,0,0,0,0,0,0,0,0,0,0,0,0,0,0,0,0,0,0,0,0,0,0,0,0,0,0,0,0]
[null,null,null,null,null,null,null,null,null,null,null,null,null,null,null,null,null,null,null,null,null,null,null,null,null,null,null,null,null,null,null,null,0,0,0,0,0,0,0,0,0,0,0,0,0,0,0,0,0,0,0,0,0,0,0,0,0,0,0,0,0,0,0,0]
[null,null,null,null,null,null,null,null,null,null,null,null,null,null,null,null,null,null,null,null,null,null,null,null,null,null,null,null,null,null,null,null,0,0,0,0,0,0,0,0,0,0,0,0,0,0,0,0,0,0,0,0,0,0,0,0,0,0,0,0,0,0,0,0]
[null,null,null,null,null,null,null,null,null,null,"Total Draw Request:",null,{"$f":"SUM(M56:P80)","v":0},null,null,null,null,null,null,null,null,null,null,null,null,null,null,null,null,null,null,null,{"$f":"SUM(AG56:AG80)","v":0},{"$f":"SUM(AH56:AH80)","v":0},0,0,0,0,0,0,0,0,0,0,0,0,0,0,0,0,0,0,0,0,0,0,0,0,0,0,0,0,0,0]
[null,null,null,null,null,null,null,null,null,null,null,null,null,null,null,null,null,null,null,null,null,null,null,null,null,null,null,null,null,null,null,null,{"$f":"SUM(AG81)","v":0},{"$f":"SUM(AH81:AS81)","v":0},null,null,null,null,null,null,null,null,null,null,null,{"$f":"SUM(AT81:BC81)","v":0},null,null,null,null,null,null,null,null,null,{"$f":"SUM(BD81:BH81)","v":0},null,null,null,null,{"$f":"SUM(BI81:BL81)","v":0}]

{"sheet":"RFC (10)","index":9,"n_rows":82,"n_cols":64,"rows_kept":82,"cut":false,"hidden":true,"merged":[[3,2,3,6],[3,13,3,15],[5,8,5,15],[5,19,6,25],[7,10,7,12],[7,13,7,15],[7,20,8,24],[8,1,8,2],[8,3,8,6],[8,10,8,12],[12,2,12,6],[12,13,12,15],[13,19,13,25],[18,2,18,4],[24,1,24,15],[8,13,8,15],[9,1,9,2],[9,8,9,12],[9,13,9,15],[10,13,10,15],[11,3,11,6],[11,8,11,12],[11,13,11,15],[30,2,30,8],[30,12,30,13],[34,4,34,8],[34,12,34,13],[36,1,36,15],[38,4,38,8],[38,12,38,13],[26,12,26,13],[27,2,27,8],[27,12,27,13],[27,14,27,15],[28,12,28,13],[28,14,28,15],[44,1,44,3],[44,4,44,7],[44,8,44,11],[44,12,44,15],[51,1,51,2],[53,33,53,44],[39,4,39,8],[40,4,40,8],[40,12,40,13],[41,4,41,8],[43,1,43,3],[43,4,43,7],[43,8,43,11],[43,12,43,15],[56,1,56,9],[56,12,56,15],[57,1,57,9],[57,12,57,15],[58,1,58,9],[58,12,58,15],[53,45,53,54],[53,55,53,59],[53,60,53,63],[54,1,54,9],[54,12,54,15],[55,1,55,9],[55,12,55,15],[62,1,62,9],[62,12,62,15],[63,1,63,9],[63,12,63,15],[64,1,64,9],[64,12,64,15],[59,1,59,9],[59,12,59,15],[60,1,60,9],[60,12,60,15],[61,1,61,9],[61,12,61,15],[68,1,68,9],[68,12,68,15],[69,1,69,9],[69,12,69,15],[70,1,70,9],[70,12,70,15],[65,1,65,9],[65,12,65,15],[66,1,66,9],[66,12,66,15],[67,1,67,9],[67,12,67,15],[74,1,74,9],[74,12,74,15],[75,1,75,9],[75,12,75,15],[76,1,76,9],[76,12,76,15],[71,1,71,9],[71,12,71,15],[72,1,72,9],[72,12,72,15],[73,1,73,9],[73,12,73,15],[80,12,80,15],[81,33,81,44],[81,45,81,54],[81,55,81,59],[81,60,81,63],[77,1,77,9],[77,12,77,15],[78,1,78,9],[78,12,78,15],[79,1,79,9],[79,12,79,15]]}
[null,"Mississippi Home Corporation"]
[null,"Request for Cash"]
[]
[null,"Program:","BLIGHT ELIMINATION PROGRAM",null,null,null,null,null,null,null,null,null,"Disbursement Type:","HHF Disbursement"]
[]
[null,"Section A:  General Information",null,null,null,null,null,null,"Section B:  Project Information",null,null,null,null,null,null,null,null,null,null,"Instructions:"]
[]
[null,"  Recipient",null,{"$f":"VLOOKUP('RFC (1)'!$D$8,Factors!I4:J7,2)","v":{"$error":"#N/A"}},null,null,null,null,"Program No.",null,"Property No.",null,null,"Blight Partner No.",null,null,null,null,null,1,"Complete the Cost Items section by entering the Cost Item Category and the amount to be reimbursed."]
[null,"  Mailing Address",null,{"$f":"'RFC (1)'!D9:G9","v":0},null,null,null,null,{"$f":"'RFC (1)'!I9","v":0},null,{"$f":"'RFC (1)'!K9:M9","v":0},null,null,{"$f":"'RFC (1)'!N9:P9","v":0}]
[null,"  Street Address",null,null,null,null,null,null,"Property Location",null,null,null,null,"Request No.",null,null,null,null,null,2,"Complete Section D"]
[null,"  City, State Zip",null,{"$f":"'RFC (1)'!D11","v":0},"MS",null,{"$f":"'RFC (1)'!G11","v":0},null,null,null,null,null,null,10,null,null,null,null,null,3,"Print form, execute, and upload to MHC MITAS Portal."]
[null,"  Telephone No.",null,{"$f":"'RFC (1)'!D12:G12","v":0},null,null,null,null,{"$f":"'RFC (1)'!I12:M12","v":0},null,null,null,null,"RLF No."]
[null,null,null,null,null,null,null,null,null,null,null,null,null,{"$f":"'RFC (1)'!N13:P13","v":0}]
[null,"Section C:  Request Per Cost Category"]
[null,null,"Cost Category",null,null,null," Budget Amount",null,"Total Prior Request to Date",null,"This Request",null,"Remaining Balance"]
[null,null,"Acquisition Costs",null,null,null,{"$f":"'RFC (1)'!G16","v":0},null,{"$f":"'RFC (1)'!K16+'RFC (2)'!K16+'RFC (3)'!K16+'RFC (4)'!K16+'RFC (5)'!K16+'RFC (6)'!K16+'RFC (7)'!K16+'RFC (8)'!K16+'RFC (9)'!K16","v":0},null,{"$f":"AG82","v":0},null,{"$f":"+G16-I16-K16","v":0},{"$f":"IF(M16<0,\"ERROR\",\"\")","v":""}]
[null,null,"Pre-demolition Costs",null,null,null,{"$f":"'RFC (1)'!G17","v":0},null,{"$f":"'RFC (1)'!K17+'RFC (2)'!K17+'RFC (3)'!K17+'RFC (4)'!K17+'RFC (5)'!K17+'RFC (6)'!K17+'RFC (7)'!K17+'RFC (8)'!K17+'RFC (9)'!K17","v":0},null,{"$f":"AH82","v":0},null,0,{"$f":"IF(M17<0,\"ERROR\",\"\")","v":""}]
[null,null,"Demolition Costs",null,null,null,{"$f":"'RFC (1)'!G18","v":0},null,{"$f":"'RFC (1)'!K18+'RFC (2)'!K18+'RFC (3)'!K18+'RFC (4)'!K18+'RFC (5)'!K18+'RFC (6)'!K18+'RFC (7)'!K18+'RFC (8)'!K18+'RFC (9)'!K18","v":0},null,{"$f":"AT82","v":0},null,0,""]
[null,null,"Greening Costs",null,null,null,{"$f":"'RFC (1)'!G19","v":0},null,{"$f":"'RFC (1)'!K19+'RFC (2)'!K19+'RFC (3)'!K19+'RFC (4)'!K19+'RFC (5)'!K19+'RFC (6)'!K19+'RFC (7)'!K19+'RFC (8)'!K19+'RFC (9)'!K19","v":0},null,{"$f":"BD82","v":0},null,0,""]
[null,null,"Post Demolition Costs",null,null,null,{"$f":"'RFC (1)'!G20","v":0},null,{"$f":"'RFC (1)'!K20+'RFC (2)'!K20+'RFC (3)'!K20+'RFC (4)'!K20+'RFC (5)'!K20+'RFC (6)'!K20+'RFC (7)'!K20+'RFC (8)'!K20+'RFC (9)'!K20","v":0},null,{"$f":"BI82","v":0},null,0,""]
[null,null,null,"Total:",null,null,{"$f":"SUM(G16:G20)","v":0},null,{"$f":"SUM(I16:I20)","v":0},null,{"$f":"SUM(K16:K20)","v":0},null,{"$f":"SUM(M16:M20)","v":0}]
[]
[null,"Section D:  Authorized Signature"]
[]
[null,"By signing below, the Grantee hereby certifies to MHC that (i) the work and materials set forth above have been throgoughly reviewed by Grantee and are acceptable to Grantee; (ii) the work has been satisfactorily completed; and (iii) all suppliers and subcontractors have been paid for work currently in place."]
[]
[]
[null,null,null,null,null,null,null,null,null,null,"Date:"]
[null,null,"Signature of Authorized Official "]
[]
[]
[null,null,"Typed Name and Title of Authorized Official"]
[]
[]
[null,null,"Prepared By:",null,null,null,null,null,null,null,"Date:"]
[]
[null,"MHC USE ONLY"]
[]
[null,null,"Approved By",null,null,null,null,null,null,null,"Date:"]
[null,null,null,null,"Signature, Authorized MHC Representative"]
[null,null,"Authorized By",null,null,null,null,null,null,null,"Date:"]
[null,null,null,null,"Signature, Authorized MHC Representative"]
[]
[null,"Vendor Number",null,null,"Requisition No.",null,null,null,"Check/Wire",null,null,null,"Funding Source"]
[]
[]
[]
[null,{"$f":"I12","v":0},null,null,null,null,null,null,null,null,null,null,null,"Draw Request No.:",{"$f":"N11","v":10}]
[null,{"$f":"D8","v":{"$error":"#N/A"}}]
[]
[]
[null,"COST ITEMS:"]
[null,"MHC will only reimburse costs that meet the BEP Program Guidelines, are necessary and reasonable, and that is supported with documentation."]
[null,null,null,null,null,null,null,null,null,null,null,null,null,null,null,null,null,null,null,null,null,null,null,null,null,null,null,null,null,null,null,null,"ACQ","PRE-DEMO COSTS",null,null,null,null,null,null,null,null,null,null,null,"DEMO COSTS",null,null,null,null,null,null,null,null,null,"GREENING COSTS",null,null,null,null,"POST-DEMO COSTS"]
[null,"Cost Item Description",null,null,null,null,null,null,null,null,null,null,"Invoice Amount",null,null,null,null,null,null,null,null,null,null,null,null,null,null,null,null,null,null,null,1,2,3,4,5,6,7,8,9,10,11,12,13,14,15,16,17,18,19,20,21,22,23,24,25,26,27,28,29,30,31,32]
[null,null,null,null,null,null,null,null,null,null,null,null,null,null,null,null,null,null,null,null,null,null,null,null,null,null,null,null,null,null,null,null,{"$f":"IF($B56=\"1-Acquisition Costs\",$M56,0)","v":0},{"$f":"IF($B56=\"2-Payoff Back Taxes\",$M56,0)","v":0},{"$f":"IF($B56=\"3-Pre-demolition title work\",$M56,0)","v":0},{"$f":"IF($B56=\"4-Appraisal Fee\",$M56,0)","v":0},{"$f":"IF($B56=\"5-Survey\",$M56,0)","v":0},{"$f":"IF($B56=\"6-Legal Fees to clear title\",$M56,0)","v":0},{"$f":"IF($B56=\"7-Recording Fees\",$M56,0)","v":0},{"$f":"IF($B56=\"8-Closing Fees\",$M56,0)","v":0},{"$f":"IF($B56=\"9-General Administrative Fees\",$M56,0)","v":0},{"$f":"IF($B56=\"10-Pre-demo Legal Notice and Advertisement for Bids\",$M56,0)","v":0},{"$f":"IF($B56=\"11-Pre-demo Architectural Engineering Costs\",$M56,0)","v":0},{"$f":"IF($B56=\"12-Pre-demo Permit and Inspection Fees\",$M56,0)","v":0},{"$f":"IF($B56=\"13-Pre-demo Asbestos Testing\",$M56,0)","v":0},{"$f":"IF($B56=\"14-Demolition of Residential Structure\",$M56,0)","v":0},{"$f":"IF($B56=\"15-Removal of Other Structure\",$M56,0)","v":0},{"$f":"IF($B56=\"16-Removal of Debris\",$M56,0)","v":0},{"$f":"IF($B56=\"17-Removal of Materials/Refuse\",$M56,0)","v":0},{"$f":"IF($B56=\"18-Removal of Asbestos\",$M56,0)","v":0},{"$f":"IF($B56=\"19-Removal of Lead Paint\",$M56,0)","v":0},{"$f":"IF($B56=\"20-Removal of Hazardous Materials\",$M56,0)","v":0},{"$f":"IF($B56=\"21-Removal of underground storage tanks\",$M56,0)","v":0},{"$f":"IF($B56=\"22-Removal, filling of capping of septic systems and wells\",$M56,0)","v":0},{"$f":"IF($B56=\"23-Removal of debris and garbage from illegal dumping\",$M56,0)","v":0},{"$f":"IF($B56=\"24-Deposit of backfill materials\",$M56,0)","v":0},{"$f":"IF($B56=\"25-Compaction of backfill materials\",$M56,0)","v":0},{"$f":"IF($B56=\"26-Grading of the demolition site\",$M56,0)","v":0},{"$f":"IF($B56=\"27-Seeding of the site\",$M56,0)","v":0},{"$f":"IF($B56=\"28-Additional greening and/or improvement post demolition\",$M56,0)","v":0},{"$f":"IF($B56=\"29-Annual Property Taxes\",$M56,0)","v":0},{"$f":"IF($B56=\"30-Property Maintenance Fees\",$M56,0)","v":0},{"$f":"IF($B56=\"31-Administration Fee\",$M56,0)","v":0},{"$f":"IF($B56=\"32-Other (specify below)\",$M56,0)","v":0}]
[null,null,null,null,null,null,null,null,null,null,null,null,null,null,null,null,null,null,null,null,null,null,null,null,null,null,null,null,null,null,null,null,{"$f":"IF($B57=\"1-Acquisition Costs\",$M57,0)","v":0},{"$f":"IF($B57=\"2-Payoff Back Taxes\",$M57,0)","v":0},{"$f":"IF($B57=\"3-Pre-demolition title work\",$M57,0)","v":0},{"$f":"IF($B57=\"4-Appraisal Fee\",$M57,0)","v":0},{"$f":"IF($B57=\"5-Survey\",$M57,0)","v":0},{"$f":"IF($B57=\"6-Legal Fees to clear title\",$M57,0)","v":0},{"$f":"IF($B57=\"7-Recording Fees\",$M57,0)","v":0},{"$f":"IF($B57=\"8-Closing Fees\",$M57,0)","v":0},{"$f":"IF($B57=\"9-General Administrative Fees\",$M57,0)","v":0},{"$f":"IF($B57=\"10-Pre-demo Legal Notice and Advertisement for Bids\",$M57,0)","v":0},{"$f":"IF($B57=\"11-Pre-demo Architectural Engineering Costs\",$M57,0)","v":0},{"$f":"IF($B57=\"12-Pre-demo Permit and Inspection Fees\",$M57,0)","v":0},{"$f":"IF($B57=\"13-Pre-demo Asbestos Testing\",$M57,0)","v":0},{"$f":"IF($B57=\"14-Demolition of Residential Structure\",$M57,0)","v":0},{"$f":"IF($B57=\"15-Removal of Other Structure\",$M57,0)","v":0},{"$f":"IF($B57=\"16-Removal of Debris\",$M57,0)","v":0},{"$f":"IF($B57=\"17-Removal of Materials/Refuse\",$M57,0)","v":0},{"$f":"IF($B57=\"18-Removal of Asbestos\",$M57,0)","v":0},{"$f":"IF($B57=\"19-Removal of Lead Paint\",$M57,0)","v":0},{"$f":"IF($B57=\"20-Removal of Hazardous Materials\",$M57,0)","v":0},{"$f":"IF($B57=\"21-Removal of underground storage tanks\",$M57,0)","v":0},{"$f":"IF($B57=\"22-Removal, filling of capping of septic systems and wells\",$M57,0)","v":0},{"$f":"IF($B57=\"23-Removal of debris and garbage from illegal dumping\",$M57,0)","v":0},{"$f":"IF($B57=\"24-Deposit of backfill materials\",$M57,0)","v":0},{"$f":"IF($B57=\"25-Compaction of backfill materials\",$M57,0)","v":0},{"$f":"IF($B57=\"26-Grading of the demolition site\",$M57,0)","v":0},{"$f":"IF($B57=\"27-Seeding of the site\",$M57,0)","v":0},{"$f":"IF($B57=\"28-Additional greening and/or improvement post demolition\",$M57,0)","v":0},{"$f":"IF($B57=\"29-Annual Property Taxes\",$M57,0)","v":0},{"$f":"IF($B57=\"30-Property Maintenance Fees\",$M57,0)","v":0},{"$f":"IF($B57=\"31-Administration Fee\",$M57,0)","v":0},{"$f":"IF($B57=\"32-Other (specify below)\",$M57,0)","v":0}]
[null,null,null,null,null,null,null,null,null,null,null,null,null,null,null,null,null,null,null,null,null,null,null,null,null,null,null,null,null,null,null,null,{"$f":"IF($B58=\"1-Acquisition Costs\",$M58,0)","v":0},0,{"$f":"IF($B58=\"3-Pre-demolition title work\",$M58,0)","v":0},0,0,0,0,0,0,0,0,0,0,0,0,0,0,0,0,0,0,0,0,0,0,0,0,0,0,0,0,0]
[null,null,null,null,null,null,null,null,null,null,null,null,null,null,null,null,null,null,null,null,null,null,null,null,null,null,null,null,null,null,null,null,0,0,0,0,0,0,0,0,0,0,0,0,0,0,0,0,0,0,0,0,0,0,0,0,0,0,0,0,0,0,0,0]
[null,null,null,null,null,null,null,null,null,null,null,null,null,null,null,null,null,null,null,null,null,null,null,null,null,null,null,null,null,null,null,null,0,0,0,0,0,0,0,0,0,0,0,0,0,0,0,0,0,0,0,0,0,0,0,0,0,0,0,0,0,0,0,0]
[null,null,null,null,null,null,null,null,null,null,null,null,null,null,null,null,null,null,null,null,null,null,null,null,null,null,null,null,null,null,null,null,0,0,0,0,0,0,0,0,0,0,0,0,0,0,0,0,0,0,0,0,0,0,0,0,0,0,0,0,0,0,0,0]
[null,null,null,null,null,null,null,null,null,null,null,null,null,null,null,null,null,null,null,null,null,null,null,null,null,null,null,null,null,null,null,null,0,0,0,0,0,0,0,0,0,0,0,0,0,0,0,0,0,0,0,0,0,0,0,0,0,0,0,0,0,0,0,0]
[null,null,null,null,null,null,null,null,null,null,null,null,null,null,null,null,null,null,null,null,null,null,null,null,null,null,null,null,null,null,null,null,0,0,0,0,0,0,0,0,0,0,0,0,0,0,0,0,0,0,0,0,0,0,0,0,0,0,0,0,0,0,0,0]
[null,null,null,null,null,null,null,null,null,null,null,null,null,null,null,null,null,null,null,null,null,null,null,null,null,null,null,null,null,null,null,null,0,0,0,0,0,0,0,0,0,0,0,0,0,0,0,0,0,0,0,0,0,0,0,0,0,0,0,0,0,0,0,0]
[null,null,null,null,null,null,null,null,null,null,null,null,null,null,null,null,null,null,null,null,null,null,null,null,null,null,null,null,null,null,null,null,0,0,0,0,0,0,0,0,0,0,0,0,0,0,0,0,0,0,0,0,0,0,0,0,0,0,0,0,0,0,0,0]
[null,null,null,null,null,null,null,null,null,null,null,null,null,null,null,null,null,null,null,null,null,null,null,null,null,null,null,null,null,null,null,null,0,0,0,0,0,0,0,0,0,0,0,0,0,0,0,0,0,0,0,0,0,0,0,0,0,0,0,0,0,0,0,0]
[null,null,null,null,null,null,null,null,null,null,null,null,null,null,null,null,null,null,null,null,null,null,null,null,null,null,null,null,null,null,null,null,0,0,0,0,0,0,0,0,0,0,0,0,0,0,0,0,0,0,0,0,0,0,0,0,0,0,0,0,0,0,0,0]
[null,null,null,null,null,null,null,null,null,null,null,null,null,null,null,null,null,null,null,null,null,null,null,null,null,null,null,null,null,null,null,null,0,0,0,0,0,0,0,0,0,0,0,0,0,0,0,0,0,0,0,0,0,0,0,0,0,0,0,0,0,0,0,0]
[null,null,null,null,null,null,null,null,null,null,null,null,null,null,null,null,null,null,null,null,null,null,null,null,null,null,null,null,null,null,null,null,0,0,0,0,0,0,0,0,0,0,0,0,0,0,0,0,0,0,0,0,0,0,0,0,0,0,0,0,0,0,0,0]
[null,null,null,null,null,null,null,null,null,null,null,null,null,null,null,null,null,null,null,null,null,null,null,null,null,null,null,null,null,null,null,null,0,0,0,0,0,0,0,0,0,0,0,0,0,0,0,0,0,0,0,0,0,0,0,0,0,0,0,0,0,0,0,0]
[null,null,null,null,null,null,null,null,null,null,null,null,null,null,null,null,null,null,null,null,null,null,null,null,null,null,null,null,null,null,null,null,0,0,0,0,0,0,0,0,0,0,0,0,0,0,0,0,0,0,0,0,0,0,0,0,0,0,0,0,0,0,0,0]
[null,null,null,null,null,null,null,null,null,null,null,null,null,null,null,null,null,null,null,null,null,null,null,null,null,null,null,null,null,null,null,null,0,0,0,0,0,0,0,0,0,0,0,0,0,0,0,0,0,0,0,0,0,0,0,0,0,0,0,0,0,0,0,0]
[null,null,null,null,null,null,null,null,null,null,null,null,null,null,null,null,null,null,null,null,null,null,null,null,null,null,null,null,null,null,null,null,0,0,0,0,0,0,0,0,0,0,0,0,0,0,0,0,0,0,0,0,0,0,0,0,0,0,0,0,0,0,0,0]
[null,null,null,null,null,null,null,null,null,null,null,null,null,null,null,null,null,null,null,null,null,null,null,null,null,null,null,null,null,null,null,null,0,0,0,0,0,0,0,0,0,0,0,0,0,0,0,0,0,0,0,0,0,0,0,0,0,0,0,0,0,0,0,0]
[null,null,null,null,null,null,null,null,null,null,null,null,null,null,null,null,null,null,null,null,null,null,null,null,null,null,null,null,null,null,null,null,0,0,0,0,0,0,0,0,0,0,0,0,0,0,0,0,0,0,0,0,0,0,0,0,0,0,0,0,0,0,0,0]
[null,null,null,null,null,null,null,null,null,null,null,null,null,null,null,null,null,null,null,null,null,null,null,null,null,null,null,null,null,null,null,null,0,0,0,0,0,0,0,0,0,0,0,0,0,0,0,0,0,0,0,0,0,0,0,0,0,0,0,0,0,0,0,0]
[null,null,null,null,null,null,null,null,null,null,null,null,null,null,null,null,null,null,null,null,null,null,null,null,null,null,null,null,null,null,null,null,0,0,0,0,0,0,0,0,0,0,0,0,0,0,0,0,0,0,0,0,0,0,0,0,0,0,0,0,0,0,0,0]
[null,null,null,null,null,null,null,null,null,null,null,null,null,null,null,null,null,null,null,null,null,null,null,null,null,null,null,null,null,null,null,null,0,0,0,0,0,0,0,0,0,0,0,0,0,0,0,0,0,0,0,0,0,0,0,0,0,0,0,0,0,0,0,0]
[null,null,null,null,null,null,null,null,null,null,null,null,null,null,null,null,null,null,null,null,null,null,null,null,null,null,null,null,null,null,null,null,0,0,0,0,0,0,0,0,0,0,0,0,0,0,0,0,0,0,0,0,0,0,0,0,0,0,0,0,0,0,0,0]
[null,null,null,null,null,null,null,null,null,null,null,null,null,null,null,null,null,null,null,null,null,null,null,null,null,null,null,null,null,null,null,null,0,0,0,0,0,0,0,0,0,0,0,0,0,0,0,0,0,0,0,0,0,0,0,0,0,0,0,0,0,0,0,0]
[null,null,null,null,null,null,null,null,null,null,"Total Draw Request:",null,{"$f":"SUM(M56:P80)","v":0},null,null,null,null,null,null,null,null,null,null,null,null,null,null,null,null,null,null,null,{"$f":"SUM(AG56:AG80)","v":0},{"$f":"SUM(AH56:AH80)","v":0},0,0,0,0,0,0,0,0,0,0,0,0,0,0,0,0,0,0,0,0,0,0,0,0,0,0,0,0,0,0]
[null,null,null,null,null,null,null,null,null,null,null,null,null,null,null,null,null,null,null,null,null,null,null,null,null,null,null,null,null,null,null,null,{"$f":"SUM(AG81)","v":0},{"$f":"SUM(AH81:AS81)","v":0},null,null,null,null,null,null,null,null,null,null,null,{"$f":"SUM(AT81:BC81)","v":0},null,null,null,null,null,null,null,null,null,{"$f":"SUM(BD81:BH81)","v":0},null,null,null,null,{"$f":"SUM(BI81:BL81)","v":0}]

{"sheet":"Factors","index":10,"n_rows":34,"n_cols":17,"rows_kept":34,"cut":false,"hidden":true,"merged":[]}
[null,null,"budget_items",null,null,null,null,null,"app_info"]
[]
[null,null,"1-Acquisition Costs",null,null,null,null,null,null,"ApplicantName","AppAddress","AppCity","AppState","AppZip","AppPhone","ProgramNo","AppStatus"]
[null,null,"2-Payoff Back Taxes",null,null,null,null,null,1,"City of Columbus","1621 Main Street","Columbus","MS","39701",6623287021,"BEP-002","Application Approved"]
[null,null,"3-Pre-demolition title work",null,null,null,null,null,2,"City of Vicksburg","1401 Walnut Street","Vicksburg","MS","39180","(601) 634-4528","BEP-004","Application Approved"]
[null,null,"4-Appraisal Fee",null,null,null,null,null,3,"City of Shaw","101 Faison Street","Shaw","MS","38773",6627543131,"BEP-005","Application Approved"]
[null,null,"5-Survey",null,null,null,null,null,4,"City of Jackson","P.O. Box 17","Jackson","MS","39205",6019601084,"BEP-006","Application Approved"]
[null,null,"6-Legal Fees to clear title"]
[null,null,"7-Recording Fees"]
[null,null,"8-Closing Fees"]
[null,null,"9-General Administrative Fees"]
[null,null,"10-Pre-demo Legal Notice and Advertisement for Bids"]
[null,null,"11-Pre-demo Architectural Engineering Costs"]
[null,null,"12-Pre-demo Permit and Inspection Fees"]
[null,null,"13-Pre-demo Asbestos Testing"]
[null,null,"14-Demolition of Residential Structure"]
[null,null,"15-Removal of Other Structure"]
[null,null,"16-Removal of Debris"]
[null,null,"17-Removal of Materials/Refuse"]
[null,null,"18-Removal of Asbestos"]
[null,null,"19-Removal of Lead Paint"]
[null,null,"20-Removal of Hazardous Materials"]
[null,null,"21-Removal of underground storage tanks"]
[null,null,"22-Removal, filling of capping of septic systems and wells"]
[null,null,"23-Removal of debris and garbage from illegal dumping"]
[null,null,"24-Deposit of backfill materials"]
[null,null,"25-Compaction of backfill materials"]
[null,null,"26-Grading of the demolition site"]
[null,null,"27-Seeding of the site"]
[null,null,"28-Additional greening and/or improvement post demolition"]
[null,null,"29-Annual Property Taxes"]
[null,null,"30-Property Maintenance Fees"]
[null,null,"31-Administration Fee"]
[null,null,"32-Other (specify below)"]